Body Name,Purpose,Dr/Cr,Gross Amount,Beneficiary,Transaction date,Directorate
Nottinghamshire County Council ,Provisions,Debit,21.39,tesco stores 5437,03.05.2019,"Children, Fam"
Nottinghamshire County Council ,Provisions,Debit,4,asda superstore 04261,06.05.2019,"Children, Fam"
Nottinghamshire County Council ,Provisions,Debit,24.67,asda superstore 04261,07.05.2019,"Children, Fam"
Nottinghamshire County Council ,Provisions,Debit,23,tesco stores 5437,08.05.2019,"Children, Fam"
Nottinghamshire County Council ,Provisions,Debit,20.89,tesco stores 2995,10.05.2019,"Children, Fam"
Nottinghamshire County Council ,Provisions,Debit,21.53,tesco stores 5437,14.05.2019,"Children, Fam"
Nottinghamshire County Council ,Provisions,Debit,35,poundland ltd 1333,15.05.2019,"Children, Fam"
Nottinghamshire County Council ,Provisions,Debit,41.96,tesco stores 5437,17.05.2019,"Children, Fam"
Nottinghamshire County Council ,Provisions,Debit,1.49,amznmktplace,19.05.2019,"Children, Fam"
Nottinghamshire County Council ,Provisions,Debit,10.49,amzn mktp uk mn0yi0bv4,19.05.2019,"Children, Fam"
Nottinghamshire County Council ,Provisions,Debit,13.48,amzn mktp uk mn8i498r4,20.05.2019,"Children, Fam"
Nottinghamshire County Council ,Provisions,Debit,1.7,victoria street,07.05.2019,"Children, Fam"
Nottinghamshire County Council ,Provisions,Debit,94.32,asda  stores 4201,07.05.2019,"Children, Fam"
Nottinghamshire County Council ,Provisions,Debit,26.98,sportsdirect 278,16.05.2019,"Children, Fam"
Nottinghamshire County Council ,Provisions,Debit,9.65,home bargains newark,17.05.2019,"Children, Fam"
Nottinghamshire County Council ,Provisions,Debit,8,the works,17.05.2019,"Children, Fam"
Nottinghamshire County Council ,Provisions,Debit,4.3,one stop 1520,03.06.2019,"Children, Fam"
Nottinghamshire County Council ,Provisions,Debit,10.14,bm retail,02.04.2019,"Children, Fam"
Nottinghamshire County Council ,Provisions,Debit,0.95,victoria street,02.04.2019,"Children, Fam"
Nottinghamshire County Council ,Provisions,Debit,19.02,aldi 31 779,04.06.2019,"Children, Fam"
Nottinghamshire County Council ,Provisions,Debit,18.14,bm retail,07.06.2019,"Children, Fam"
Nottinghamshire County Council ,Provisions,Debit,12.99,bowbridge road gro,07.06.2019,"Children, Fam"
Nottinghamshire County Council ,Provisions,Debit,21.78,iceland,11.06.2019,"Children, Fam"
Nottinghamshire County Council ,Provisions,Debit,31.29,home bargains newark,18.06.2019,"Children, Fam"
Nottinghamshire County Council ,Provisions,Debit,5.79,londis vg fs,18.06.2019,"Children, Fam"
Nottinghamshire County Council ,Provisions,Debit,27,the range-newark,18.06.2019,"Children, Fam"
Nottinghamshire County Council ,Provisions,Debit,12.24,asda  stores 4201,24.06.2019,"Children, Fam"
Nottinghamshire County Council ,Provisions,Debit,16.66,poundstretcher 569,27.06.2019,"Children, Fam"
Nottinghamshire County Council ,Provisions,Debit,3,bm retail,27.06.2019,"Children, Fam"
Nottinghamshire County Council ,Provisions,Debit,5.34,home bargains newark,27.06.2019,"Children, Fam"
Nottinghamshire County Council ,Provisions,Debit,16.1,asda  stores 4201,27.06.2019,"Children, Fam"
Nottinghamshire County Council ,Provisions,Debit,13.96,the range-newark,28.06.2019,"Children, Fam"
Nottinghamshire County Council ,Provisions,Debit,32.1,wickes sutton,05.06.2019,"Children, Fam"
Nottinghamshire County Council ,Provisions,Debit,42.51,w boyes  co ltd kirkb,07.06.2019,"Children, Fam"
Nottinghamshire County Council ,Provisions,Debit,4.98,aldi 74 779,11.06.2019,"Children, Fam"
Nottinghamshire County Council ,Provisions,Debit,13.46,tesco stores 2995,12.06.2019,"Children, Fam"
Nottinghamshire County Council ,Provisions,Debit,61.26,aldi stores,18.06.2019,"Children, Fam"
Nottinghamshire County Council ,Provisions,Debit,10.15,tesco stores 5281,19.06.2019,"Children, Fam"
Nottinghamshire County Council ,Provisions,Debit,25.25,wickes sutton,19.06.2019,"Children, Fam"
Nottinghamshire County Council ,Provisions,Debit,3.45,local 4 u,20.06.2019,"Children, Fam"
Nottinghamshire County Council ,Provisions,Debit,12.64,aldi 68 779,25.06.2019,"Children, Fam"
Nottinghamshire County Council ,Provisions,Debit,14.8,home bargains,26.06.2019,"Children, Fam"
Nottinghamshire County Council ,Provisions,Debit,2.79,aldi stores,27.06.2019,"Children, Fam"
Nottinghamshire County Council ,Provisions,Debit,44.74,aldi 68 779,02.04.2019,"Children, Fam"
Nottinghamshire County Council ,Provisions,Debit,11,b  q 1261,10.05.2019,"Children, Fam"
Nottinghamshire County Council ,Provisions,Debit,7.5,b  q 1261,24.05.2019,"Children, Fam"
Nottinghamshire County Council ,Provisions,Debit,8.57,aldi 74 779,03.05.2019,"Children, Fam"
Nottinghamshire County Council ,Provisions,Debit,32.88,aldi stores,07.05.2019,"Children, Fam"
Nottinghamshire County Council ,Provisions,Debit,18.3,tesco stores 2995,08.05.2019,"Children, Fam"
Nottinghamshire County Council ,Provisions,Debit,9.96,asda store ston in as,10.05.2019,"Children, Fam"
Nottinghamshire County Council ,Provisions,Debit,23.38,aldi stores,14.05.2019,"Children, Fam"
Nottinghamshire County Council ,Provisions,Debit,7.45,aldi stores,21.05.2019,"Children, Fam"
Nottinghamshire County Council ,Provisions,Debit,4.61,aldi stores,22.05.2019,"Children, Fam"
Nottinghamshire County Council ,Provisions,Debit,18.02,asda stores 4474,22.05.2019,"Children, Fam"
Nottinghamshire County Council ,Provisions,Debit,5.39,aldi stores,23.05.2019,"Children, Fam"
Nottinghamshire County Council ,Provisions,Debit,7.5,tesco stores 5281,24.05.2019,"Children, Fam"
Nottinghamshire County Council ,Provisions,Debit,8.56,aldi 68 779,03.06.2019,"Children, Fam"
Nottinghamshire County Council ,Provisions,Debit,2.49,home bargains,03.06.2019,"Children, Fam"
Nottinghamshire County Council ,Provisions,Debit,13.89,asda superstore 04261,04.04.2019,"Children, Fam"
Nottinghamshire County Council ,Office / General Equipment,Credi,-53.98,psd fraud temp. credit,23.06.2019,ASCHPP
Nottinghamshire County Council ,Office / General Equipment,Credi,-7.6,psd fraud temp. credit,23.06.2019,ASCHPP
Nottinghamshire County Council ,Office / General Equipment,Credi,-53.98,psd - fraud perm. credit,23.06.2019,ASCHPP
Nottinghamshire County Council ,Office / General Equipment,Credi,-7.6,psd - fraud perm. credit,23.06.2019,ASCHPP
Nottinghamshire County Council ,Office / General Equipment,Debit,53.98,nintendo.com,23.06.2019,ASCHPP
Nottinghamshire County Council ,Building Maintenance,Debit,42,seton,21.06.2019,ASCHPP
Nottinghamshire County Council ,Office / General Equipment,Debit,7.6,cineworld,23.06.2019,ASCHPP
Nottinghamshire County Council ,Activities & Support,Debit,20.25,asda petrol 4880,12.04.2019,Resources
Nottinghamshire County Council ,Activities & Support,Credi,-28,wilko.com,27.06.2019,"Children, Fam"
Nottinghamshire County Council ,Activities & Support,Debit,38.32,eb  happiness festival,05.06.2019,"Children, Fam"
Nottinghamshire County Council ,Activities & Support,Debit,28,wilko.com,27.06.2019,"Children, Fam"
Nottinghamshire County Council ,Activities & Support,Debit,28,wilko.com,27.06.2019,"Children, Fam"
Nottinghamshire County Council ,Activities & Support,Debit,21.08,amznmktplace,28.06.2019,"Children, Fam"
Nottinghamshire County Council ,Activities & Support,Debit,29.25,amznmktplace amazon.co.u,23.04.2019,"Children, Fam"
Nottinghamshire County Council ,Activities & Support,Debit,96.52,amznmktplace,13.04.2019,"Children, Fam"
Nottinghamshire County Council ,Activities & Support,Debit,17.4,amznmktplace,14.04.2019,"Children, Fam"
Nottinghamshire County Council ,Activities & Support,Debit,14.48,amznmktplace,25.04.2019,ASCHPP
Nottinghamshire County Council ,Activities & Support,Debit,43.34,polesblinds,11.04.2019,ASCHPP
Nottinghamshire County Council ,Provisions,Debit,60.12,aldi 31 779,26.05.2019,"Children, Fam"
Nottinghamshire County Council ,Office / General Equipment,Debit,3,tesco stores 2995,25.05.2019,"Children, Fam"
Nottinghamshire County Council ,Provisions,Debit,3.7,co-op group 017091,05.06.2019,"Children, Fam"
Nottinghamshire County Council ,Activities & Support,Debit,17.89,tesco stores 2702,14.06.2019,"Children, Fam"
Nottinghamshire County Council ,Activities & Support,Debit,73.41,davpac,24.06.2019,"Children, Fam"
Nottinghamshire County Council ,Activities & Support,Debit,8.5,wilko retail limit,29.06.2019,"Children, Fam"
Nottinghamshire County Council ,Activities & Support,Debit,36.76,wm morrisons store,15.04.2019,"Children, Fam"
Nottinghamshire County Council ,Activities & Support,Debit,7.89,tesco stores 5329,10.04.2019,"Children, Fam"
Nottinghamshire County Council ,Activities & Support,Debit,36.43,wm morrisons store,06.04.2019,"Children, Fam"
Nottinghamshire County Council ,Activities & Support,Debit,18,wilko retail limit,18.05.2019,"Children, Fam"
Nottinghamshire County Council ,Activities & Support,Debit,53.48,argos ltd,02.06.2019,"Children, Fam"
Nottinghamshire County Council ,Provisions,Debit,6,one stop (5079),08.05.2019,"Children, Fam"
Nottinghamshire County Council ,Provisions,Debit,11.59,one stop (5079),10.06.2019,"Children, Fam"
Nottinghamshire County Council ,Provisions,Debit,72.55,booker limited mansfield,13.06.2019,"Children, Fam"
Nottinghamshire County Council ,Provisions,Debit,78.07,booker limited mansfield,13.06.2019,"Children, Fam"
Nottinghamshire County Council ,Provisions,Debit,36.6,tesco stores 5437,03.04.2019,"Children, Fam"
Nottinghamshire County Council ,Family Financial Assistance,Debit,464.91,www.argos.co.uk,04.06.2019,"Children, Fam"
Nottinghamshire County Council ,Family Financial Assistance,Debit,79,www.argos.co.uk,01.05.2019,"Children, Fam"
Nottinghamshire County Council ,Family Financial Assistance,Debit,112.94,www.argos.co.uk,01.05.2019,"Children, Fam"
Nottinghamshire County Council ,Family Financial Assistance,Debit,650,countrywide residentia,23.04.2019,"Children, Fam"
Nottinghamshire County Council ,Personal Needs,Debit,154.5,tvlicensing.co.uk,17.06.2019,ASCHPP
Nottinghamshire County Council ,Provisions,Debit,18.55,wm morrisons store,02.05.2019,"Children, Fam"
Nottinghamshire County Council ,Provisions,Debit,399.98,www.zoro.co.uk,20.05.2019,"Children, Fam"
Nottinghamshire County Council ,Provisions,Debit,51.95,screwfix direct,21.05.2019,"Children, Fam"
Nottinghamshire County Council ,Provisions,Debit,82.74,premier inflate,28.05.2019,"Children, Fam"
Nottinghamshire County Council ,Provisions,Debit,8.62,wm morrisons store,01.05.2019,"Children, Fam"
Nottinghamshire County Council ,Provisions,Debit,7,crowne plaza hotels,30.04.2019,"Children, Fam"
Nottinghamshire County Council ,Provisions,Debit,29.99,amazon.co.uk m628v54f4 a,07.06.2019,"Children, Fam"
Nottinghamshire County Council ,Provisions,Debit,109.88,amazon.co.uk m688v94v4 a,07.06.2019,"Children, Fam"
Nottinghamshire County Council ,Provisions,Debit,59.98,amazon.co.uk m62ij2nc4 a,10.06.2019,"Children, Fam"
Nottinghamshire County Council ,Provisions,Debit,218.5,www.csi-products.co.uk,24.06.2019,"Children, Fam"
Nottinghamshire County Council ,Minor Works,Debit,266.34,tesco stores 5379,04.06.2019,"Children, Fam"
Nottinghamshire County Council ,Minor Works,Debit,358.65,amznmktplace amazon.co.u,07.06.2019,"Children, Fam"
Nottinghamshire County Council ,Minor Works,Debit,19.48,amazon.co.uk m69o10zp4,10.06.2019,"Children, Fam"
Nottinghamshire County Council ,Minor Works,Debit,194.38,tesco stores 5379,11.06.2019,"Children, Fam"
Nottinghamshire County Council ,Minor Works,Debit,84.25,tesco stores 5379,17.06.2019,"Children, Fam"
Nottinghamshire County Council ,Minor Works,Debit,160.78,tesco stores 5379,20.06.2019,"Children, Fam"
Nottinghamshire County Council ,Minor Works,Debit,104.7,tesco stores 5379,24.06.2019,"Children, Fam"
Nottinghamshire County Council ,Minor Works,Debit,211.29,tesco stores 5379,27.06.2019,"Children, Fam"
Nottinghamshire County Council ,Minor Works,Debit,200,blooming wonderful ltd,03.04.2019,"Children, Fam"
Nottinghamshire County Council ,Minor Works,Debit,57.44,b  q 1237,07.05.2019,"Children, Fam"
Nottinghamshire County Council ,Minor Works,Debit,36.98,amazon.co.uk mn25c7gx4,13.05.2019,"Children, Fam"
Nottinghamshire County Council ,Minor Works,Debit,114.23,tesco stores 5379,16.05.2019,"Children, Fam"
Nottinghamshire County Council ,Minor Works,Debit,199.96,tesco stores 5379,20.05.2019,"Children, Fam"
Nottinghamshire County Council ,Minor Works,Debit,45.61,amznmktplace,02.05.2019,"Children, Fam"
Nottinghamshire County Council ,Minor Works,Debit,139.86,tesco stores 5379,01.05.2019,"Children, Fam"
Nottinghamshire County Council ,Minor Works,Debit,76.34,amznmktplace amazon.co.u,17.04.2019,"Children, Fam"
Nottinghamshire County Council ,Minor Works,Debit,12.48,amznmktplace,17.04.2019,"Children, Fam"
Nottinghamshire County Council ,Minor Works,Debit,15.45,amzn mktp uk mz55j5v34 a,10.04.2019,"Children, Fam"
Nottinghamshire County Council ,Personal Needs,Debit,8,sports clips barbers,01.05.2019,"Children, Fam"
Nottinghamshire County Council ,Provisions,Debit,14.6,sainsburys spmrkts,24.04.2019,"Children, Fam"
Nottinghamshire County Council ,Provisions,Debit,11.6,sainsburys s/mkts,19.04.2019,"Children, Fam"
Nottinghamshire County Council ,Provisions,Debit,59.81,aldi 31 779,19.04.2019,"Children, Fam"
Nottinghamshire County Council ,Personal Needs,Debit,20,the blue john cavern,10.04.2019,"Children, Fam"
Nottinghamshire County Council ,Provisions,Debit,6.3,sainsburys s/mkt,10.04.2019,"Children, Fam"
Nottinghamshire County Council ,Provisions,Debit,47.72,aldi,05.04.2019,"Children, Fam"
Nottinghamshire County Council ,Clothing/Shoes/Uniforms,Debit,123.96,sportsdirect 437,03.05.2019,"Children, Fam"
Nottinghamshire County Council ,Clothing/Shoes/Uniforms,Debit,80,j d sports fashion plc,03.05.2019,"Children, Fam"
Nottinghamshire County Council ,Provisions,Debit,15.54,sainsburys s/mkts,03.05.2019,"Children, Fam"
Nottinghamshire County Council ,Provisions,Debit,5.3,co-op group 017091,24.05.2019,"Children, Fam"
Nottinghamshire County Council ,Provisions,Debit,35.75,aldi 1 779,24.05.2019,"Children, Fam"
Nottinghamshire County Council ,Provisions,Debit,11.05,sainsburys s/mkts,29.05.2019,"Children, Fam"
Nottinghamshire County Council ,Provisions,Debit,2.89,boots 1126,31.05.2019,"Children, Fam"
Nottinghamshire County Council ,Provisions,Debit,11.5,starbucks,31.05.2019,"Children, Fam"
Nottinghamshire County Council ,Provisions,Debit,37.42,tesco stores 2995,19.06.2019,"Children, Fam"
Nottinghamshire County Council ,Personal Needs,Debit,29.98,tesco store 3439,25.06.2019,"Children, Fam"
Nottinghamshire County Council ,Provisions,Debit,3.36,tesco store 3439,25.06.2019,"Children, Fam"
Nottinghamshire County Council ,Provisions,Debit,6.49,kfc-mansfield,27.06.2019,"Children, Fam"
Nottinghamshire County Council ,Personal Needs,Debit,20,halfords 0900,27.06.2019,"Children, Fam"
Nottinghamshire County Council ,Provisions,Debit,3.5,sainsburys s/mkts,08.05.2019,"Children, Fam"
Nottinghamshire County Council ,Provisions,Debit,8.97,b  m retail,08.05.2019,"Children, Fam"
Nottinghamshire County Council ,Provisions,Debit,13.2,sainsburys s/mkts,13.05.2019,"Children, Fam"
Nottinghamshire County Council ,Provisions,Debit,12.71,asda superstore,15.05.2019,"Children, Fam"
Nottinghamshire County Council ,Provisions,Debit,10.61,bm retail,16.05.2019,"Children, Fam"
Nottinghamshire County Council ,Provisions,Debit,2.95,ikea ltd 263 nottingham,21.05.2019,"Children, Fam"
Nottinghamshire County Council ,Provisions,Debit,7.99,decathlon,21.05.2019,"Children, Fam"
Nottinghamshire County Council ,Provisions,Debit,5.88,lidl gb  arnold,22.05.2019,"Children, Fam"
Nottinghamshire County Council ,Provisions,Debit,28.41,b  m retail,01.05.2019,"Children, Fam"
Nottinghamshire County Council ,Provisions,Debit,13,tiger uk (midlands)ltd,04.06.2019,"Children, Fam"
Nottinghamshire County Council ,Provisions,Debit,40.7,primark,04.06.2019,"Children, Fam"
Nottinghamshire County Council ,Provisions,Debit,3.87,aldi 98 779,05.06.2019,"Children, Fam"
Nottinghamshire County Council ,Provisions,Debit,12.06,b  m retail,07.06.2019,"Children, Fam"
Nottinghamshire County Council ,Provisions,Debit,7,sainsburys s/mkts,10.06.2019,"Children, Fam"
Nottinghamshire County Council ,Provisions,Debit,19.15,aldi 98 779,12.06.2019,"Children, Fam"
Nottinghamshire County Council ,Provisions,Debit,3.99,b  m retail,12.06.2019,"Children, Fam"
Nottinghamshire County Council ,Provisions,Debit,37.03,b  m retail,20.06.2019,"Children, Fam"
Nottinghamshire County Council ,Provisions,Debit,8.74,lidl gb netherfield,24.06.2019,"Children, Fam"
Nottinghamshire County Council ,Publicity,Debit,25.08,hilton hotels,02.05.2019,Place
Nottinghamshire County Council ,Road Signs,Debit,7.97,b  q 1310,02.04.2019,Place
Nottinghamshire County Council ,Road Signs,Debit,7.97,b  q 1310,02.04.2019,Place
Nottinghamshire County Council ,Advertising & Marketing,Debit,11.99,123 reg r/t,07.06.2019,Resources
Nottinghamshire County Council ,Advertising & Marketing,Debit,19.19,123 reg r/t,18.06.2019,Resources
Nottinghamshire County Council ,Advertising & Marketing,Debit,500,google  ads6019404425,21.06.2019,Resources
Nottinghamshire County Council ,Advertising & Marketing,Debit,25,facebk xhrb9mw9z2,30.06.2019,Resources
Nottinghamshire County Council ,Advertising & Marketing,Debit,25,facebk xhrb9mw9z2,30.06.2019,Resources
Nottinghamshire County Council ,Advertising & Marketing,Debit,20.49,canva  for work month,02.04.2019,Resources
Nottinghamshire County Council ,Advertising & Marketing,Debit,94.87,hotjar,01.04.2019,Resources
Nottinghamshire County Council ,Advertising & Marketing,Debit,20.49,canva  for work month,02.05.2019,Resources
Nottinghamshire County Council ,Advertising & Marketing,Debit,100,nottm digital summit,02.05.2019,Resources
Nottinghamshire County Council ,Advertising & Marketing,Debit,94.65,hotjar,01.05.2019,Resources
Nottinghamshire County Council ,Advertising & Marketing,Debit,50,facebk dzkzzk2az2,30.04.2019,Resources
Nottinghamshire County Council ,Advertising & Marketing,Debit,281.52,facebk dzkzzk2az2,30.04.2019,Resources
Nottinghamshire County Council ,Advertising & Marketing,Debit,8.51,twitter online ads,27.04.2019,Resources
Nottinghamshire County Council ,Advertising & Marketing,Debit,500,google  ads6019404425,23.04.2019,Resources
Nottinghamshire County Council ,Advertising & Marketing,Debit,91.28,twitter online ads,20.04.2019,Resources
Nottinghamshire County Council ,Advertising & Marketing,Debit,56.16,facebk kyahbm69z2,18.04.2019,Resources
Nottinghamshire County Council ,Advertising & Marketing,Debit,107.1,facebk kyahbm69z2,18.04.2019,Resources
Nottinghamshire County Council ,Advertising & Marketing,Debit,536.74,facebk kyahbm69z2,18.04.2019,Resources
Nottinghamshire County Council ,Advertising & Marketing,Debit,85.68,twitter online ads,13.04.2019,Resources
Nottinghamshire County Council ,Advertising & Marketing,Debit,14.28,twitter online ads,06.04.2019,Resources
Nottinghamshire County Council ,Advertising & Marketing,Debit,258.77,123 reg r/t,15.05.2019,Resources
Nottinghamshire County Council ,Advertising & Marketing,Debit,200,google  ads6019404425,19.05.2019,Resources
Nottinghamshire County Council ,Advertising & Marketing,Debit,350,google  ads6019404425,31.05.2019,Resources
Nottinghamshire County Council ,Advertising & Marketing,Debit,97.96,facebk dd6egl2az2,31.05.2019,Resources
Nottinghamshire County Council ,Advertising & Marketing,Debit,330,facebk dd6egl2az2,31.05.2019,"Children, Fam"
Nottinghamshire County Council ,Advertising & Marketing,Debit,6.74,facebk dd6egl2az2,31.05.2019,Resources
Nottinghamshire County Council ,Advertising & Marketing,Debit,97.59,hotjar,01.06.2019,Resources
Nottinghamshire County Council ,Advertising & Marketing,Debit,21.23,canva  pro monthly,02.06.2019,Resources
Nottinghamshire County Council ,Office / General Equipment,Debit,60,dvsa,15.04.2019,Place
Nottinghamshire County Council ,Office / General Equipment,Debit,66.45,mfg   maid marion,08.04.2019,Place
Nottinghamshire County Council ,Provisions,Credi,-7.5,gen register office,13.06.2019,"Children, Fam"
Nottinghamshire County Council ,Window Cleaning,Debit,317.95,wastecycle,05.06.2019,"Children, Fam"
Nottinghamshire County Council ,Family Financial Assistance,Debit,19.99,argos retail group,13.06.2019,"Children, Fam"
Nottinghamshire County Council ,Other Fees & Services,Debit,14,gen register office,13.06.2019,"Children, Fam"
Nottinghamshire County Council ,Other Fees & Services,Credi,-7.5,gen register office,24.05.2019,"Children, Fam"
Nottinghamshire County Council ,Office / General Equipment,Debit,50,halfords 0433,26.06.2019,"Children, Fam"
Nottinghamshire County Council ,Family Financial Assistance,Debit,22.91,www.argos.co.uk,01.05.2019,"Children, Fam"
Nottinghamshire County Council ,Activities & Support,Debit,12,freedom programme limite,30.04.2019,"Children, Fam"
Nottinghamshire County Council ,Activities & Support,Debit,12,freedom programme limite,26.04.2019,"Children, Fam"
Nottinghamshire County Council ,Activities & Support,Debit,17.94,www.192.com,26.04.2019,"Children, Fam"
Nottinghamshire County Council ,Family Financial Assistance,Debit,10,the furniture project,15.04.2019,"Children, Fam"
Nottinghamshire County Council ,Family Financial Assistance,Debit,114,westbourne house nurse,12.04.2019,"Children, Fam"
Nottinghamshire County Council ,Activities & Support,Debit,12,freedom programme limite,05.04.2019,"Children, Fam"
Nottinghamshire County Council ,Family Financial Assistance,Debit,22.5,claremont house nu,07.05.2019,"Children, Fam"
Nottinghamshire County Council ,Family Financial Assistance,Debit,1.84,www.argos.co.uk,08.05.2019,"Children, Fam"
Nottinghamshire County Council ,Office / General Equipment,Debit,55,heads yard limited,14.05.2019,"Children, Fam"
Nottinghamshire County Council ,Legal Fees,Debit,215,www.justice.gov.uk,14.05.2019,"Children, Fam"
Nottinghamshire County Council ,Other Fees & Services,Debit,14,gen register office,24.05.2019,"Children, Fam"
Nottinghamshire County Council ,Activities & Support,Debit,196,spokz,21.06.2019,Resources
Nottinghamshire County Council ,Legal Fees,Debit,52.2,logmein gotomeeting,17.05.2019,Resources
Nottinghamshire County Council ,Legal Fees,Debit,96.3,www.complete.co.uk,23.05.2019,Resources
Nottinghamshire County Council ,Legal Fees,Debit,105.55,posturite ltd,23.05.2019,Resources
Nottinghamshire County Council ,Legal Fees,Debit,11,http://www.derbyshire.,02.05.2019,Resources
Nottinghamshire County Council ,Legal Fees,Debit,75.23,amznmktplace,30.04.2019,Resources
Nottinghamshire County Council ,Legal Fees,Debit,29.65,amazon.co.uk mz8rg5wa4 a,27.04.2019,Resources
Nottinghamshire County Council ,Legal Fees,Debit,55.44,amznmktplace,26.04.2019,Resources
Nottinghamshire County Council ,Legal Fees,Debit,52.2,logmein gotomeeting,17.04.2019,Resources
Nottinghamshire County Council ,Legal Fees,Debit,355,www.justice.gov.uk,15.04.2019,Resources
Nottinghamshire County Council ,Legal Fees,Debit,225.74,www.severntrentsearche,11.04.2019,Resources
Nottinghamshire County Council ,Legal Fees,Debit,11,www.lincolnshire,11.06.2019,Resources
Nottinghamshire County Council ,Legal Fees,Debit,52.2,logmein gotomeeting,17.06.2019,Resources
Nottinghamshire County Council ,Legal Fees,Debit,12,ncc card payment inter,18.06.2019,Resources
Nottinghamshire County Council ,Activities & Support,Debit,18.6,lne railway ret stn,25.06.2019,"Children, Fam"
Nottinghamshire County Council ,Activities & Support,Debit,9.99,max spielmann ltd,25.06.2019,"Children, Fam"
Nottinghamshire County Council ,Activities & Support,Debit,6.06,aldi 28 779,25.06.2019,"Children, Fam"
Nottinghamshire County Council ,Activities & Support,Debit,15,esso king edward service,25.06.2019,"Children, Fam"
Nottinghamshire County Council ,Activities & Support,Debit,29.57,aldi 28 779,25.06.2019,"Children, Fam"
Nottinghamshire County Council ,Activities & Support,Debit,1.79,aldi 28 779,12.06.2019,"Children, Fam"
Nottinghamshire County Council ,Activities & Support,Debit,29.23,aldi 28 779,12.06.2019,"Children, Fam"
Nottinghamshire County Council ,Activities & Support,Debit,30,spar,24.05.2019,"Children, Fam"
Nottinghamshire County Council ,Activities & Support,Debit,8.5,wm morrisons store,24.05.2019,"Children, Fam"
Nottinghamshire County Council ,Activities & Support,Debit,29.35,wm morrisons store,24.05.2019,"Children, Fam"
Nottinghamshire County Council ,Activities & Support,Debit,28.34,wm morrisons store,10.05.2019,"Children, Fam"
Nottinghamshire County Council ,Activities & Support,Debit,8.65,wm morrisons store,10.05.2019,"Children, Fam"
Nottinghamshire County Council ,Activities & Support,Debit,30,spar,10.05.2019,"Children, Fam"
Nottinghamshire County Council ,Activities & Support,Debit,14.99,tesco stores 5379,08.05.2019,"Children, Fam"
Nottinghamshire County Council ,Housing/Accommodation Financial Support,Debit,75,premier inn44521025,07.05.2019,"Children, Fam"
Nottinghamshire County Council ,Leaving Care - Home Establishment Grant,Debit,9,nott emt carpark,16.04.2019,"Children, Fam"
Nottinghamshire County Council ,Leaving Care - Home Establishment Grant,Debit,74.75,trainline.com,15.04.2019,"Children, Fam"
Nottinghamshire County Council ,Leaving Care - Home Establishment Grant,Debit,75,2maa008796638 td e-pmt,10.04.2019,"Children, Fam"
Nottinghamshire County Council ,Leaving Care - Home Establishment Grant,Debit,399,currys online,09.04.2019,"Children, Fam"
Nottinghamshire County Council ,Leaving Care - Home Establishment Grant,Debit,46.95,the range,05.04.2019,"Children, Fam"
Nottinghamshire County Council ,Leaving Care - Home Establishment Grant,Debit,395,united carpets,21.06.2019,"Children, Fam"
Nottinghamshire County Council ,Leaving Care - Home Establishment Grant,Debit,594.97,www.argos.co.uk,24.06.2019,"Children, Fam"
Nottinghamshire County Council ,Leaving Care - Home Establishment Grant,Credi,-239.99,www.argos.co.uk,25.06.2019,"Children, Fam"
Nottinghamshire County Council ,Leaving Care - Home Establishment Grant,Debit,239.99,www.argos.co.uk,25.06.2019,"Children, Fam"
Nottinghamshire County Council ,Leaving Care - Home Establishment Grant,Debit,498,ikea ltd 263 nottingham,24.06.2019,"Children, Fam"
Nottinghamshire County Council ,Leaving Care - Home Establishment Grant,Debit,59.8,tesco stores 6814,03.04.2019,"Children, Fam"
Nottinghamshire County Council ,Other Fees & Services,Debit,95.42,www.dominos.co.uk,11.04.2019,"Children, Fam"
Nottinghamshire County Council ,Other Fees & Services,Debit,74.97,www.dominos.co.uk,10.04.2019,"Children, Fam"
Nottinghamshire County Council ,Other Fees & Services,Debit,78.94,tesco stores,08.04.2019,"Children, Fam"
Nottinghamshire County Council ,Other Fees & Services,Debit,204,legoland,30.05.2019,"Children, Fam"
Nottinghamshire County Council ,Other Fees & Services,Debit,11.75,tesco stores 5437,17.06.2019,"Children, Fam"
Nottinghamshire County Council ,Other Fees & Services,Debit,44.96,dominos pizza uk  irela,17.06.2019,"Children, Fam"
Nottinghamshire County Council ,Personal Needs,Debit,23,odeon,22.06.2019,"Children, Fam"
Nottinghamshire County Council ,Office / General Equipment,Debit,10.09,amznmktplace,01.04.2019,"Children, Fam"
Nottinghamshire County Council ,Cleaning & Domestic Equipment,Debit,7.29,asda stores 4474,11.05.2019,"Children, Fam"
Nottinghamshire County Council ,Provisions,Debit,4.05,robin hood plaice,16.05.2019,"Children, Fam"
Nottinghamshire County Council ,Provisions,Debit,1.49,mcdonalds 935,16.05.2019,"Children, Fam"
Nottinghamshire County Council ,Personal Needs,Debit,24.4,tesco stores 2995,22.05.2019,"Children, Fam"
Nottinghamshire County Council ,Clothing/Shoes/Uniforms,Debit,14,sportsdirect 437,29.05.2019,"Children, Fam"
Nottinghamshire County Council ,Office / General Equipment,Debit,99.96,asda superstore 04261,29.05.2019,"Children, Fam"
Nottinghamshire County Council ,Office / General Equipment,Debit,18.35,max asda 3786,17.04.2019,"Children, Fam"
Nottinghamshire County Council ,Other Public Transport,Debit,32.7,lul ticket machine,16.04.2019,"Children, Fam"
Nottinghamshire County Council ,Office / General Equipment,Debit,43.05,nandos kensington,16.04.2019,"Children, Fam"
Nottinghamshire County Council ,Office / General Equipment,Debit,20,kensington hair salon lt,16.04.2019,"Children, Fam"
Nottinghamshire County Council ,Office / General Equipment,Debit,5.5,ncp limited pd,16.04.2019,"Children, Fam"
Nottinghamshire County Council ,Office / General Equipment,Debit,68.1,tower of london,16.04.2019,"Children, Fam"
Nottinghamshire County Council ,Office / General Equipment,Debit,7.49,boots 0884,16.04.2019,"Children, Fam"
Nottinghamshire County Council ,Office / General Equipment,Debit,46.91,parcel yard,16.04.2019,"Children, Fam"
Nottinghamshire County Council ,Office / General Equipment,Debit,3.98,w boyes  co ltd,11.04.2019,"Children, Fam"
Nottinghamshire County Council ,Office / General Equipment,Debit,17,tesco stores 2995,11.04.2019,"Children, Fam"
Nottinghamshire County Council ,Office / General Equipment,Debit,11.6,co-op group 017091,09.04.2019,"Children, Fam"
Nottinghamshire County Council ,Activities & Support,Debit,54,stagecoach service,17.04.2019,"Children, Fam"
Nottinghamshire County Council ,Activities & Support,Debit,12,ncc card payment inter,09.04.2019,"Children, Fam"
Nottinghamshire County Council ,Bus Fares,Debit,54,stagecoach service,17.05.2019,"Children, Fam"
Nottinghamshire County Council ,Other Fees & Services,Debit,12,ncc card payment inter,20.05.2019,"Children, Fam"
Nottinghamshire County Council ,Ext Schools Comm Admin Supplies,Debit,4.39,amzn mktp uk mn4xj9dc4,24.05.2019,"Children, Fam"
Nottinghamshire County Council ,Provisions,Debit,30.6,sainsburys smkt,07.06.2019,"Children, Fam"
Nottinghamshire County Council ,Provisions,Debit,48.85,sainsburys smkt,10.06.2019,"Children, Fam"
Nottinghamshire County Council ,Provisions,Debit,17.65,sainsburys smkt,12.06.2019,"Children, Fam"
Nottinghamshire County Council ,Provisions,Debit,44.2,sainsburys smkt,17.06.2019,"Children, Fam"
Nottinghamshire County Council ,Provisions,Debit,18,sainsburys smkt,19.06.2019,"Children, Fam"
Nottinghamshire County Council ,Provisions,Debit,4.41,co op food,20.06.2019,"Children, Fam"
Nottinghamshire County Council ,Provisions,Debit,43,sainsburys smkt,24.06.2019,"Children, Fam"
Nottinghamshire County Council ,Provisions,Debit,3.7,co op food,25.06.2019,"Children, Fam"
Nottinghamshire County Council ,Provisions,Debit,22.9,sainsburys smkt,26.06.2019,"Children, Fam"
Nottinghamshire County Council ,Provisions,Debit,23.5,sainsburys smkt,02.04.2019,"Children, Fam"
Nottinghamshire County Council ,Provisions,Debit,35.85,sainsburys smkt,01.04.2019,"Children, Fam"
Nottinghamshire County Council ,Provisions,Debit,10.46,co op food,04.05.2019,"Children, Fam"
Nottinghamshire County Council ,Provisions,Debit,45.85,sainsburys smkt,03.05.2019,"Children, Fam"
Nottinghamshire County Council ,Provisions,Debit,8.6,sainsburys s/mkts,05.05.2019,"Children, Fam"
Nottinghamshire County Council ,Provisions,Debit,57.4,sainsburys smkt,13.05.2019,"Children, Fam"
Nottinghamshire County Council ,Provisions,Debit,8.09,co op food,13.05.2019,"Children, Fam"
Nottinghamshire County Council ,Provisions,Debit,7.98,co op food,15.05.2019,"Children, Fam"
Nottinghamshire County Council ,Provisions,Debit,28.3,sainsburys smkt,16.05.2019,"Children, Fam"
Nottinghamshire County Council ,Provisions,Debit,5.25,sainsburys s/mkts,19.05.2019,"Children, Fam"
Nottinghamshire County Council ,Provisions,Debit,15.4,asda superstore,20.05.2019,"Children, Fam"
Nottinghamshire County Council ,Provisions,Debit,15.5,sainsburys smkt,25.05.2019,"Children, Fam"
Nottinghamshire County Council ,Provisions,Debit,57.35,sainsburys smkt,24.05.2019,"Children, Fam"
Nottinghamshire County Council ,Provisions,Debit,35.54,sainsburys smkt,28.05.2019,"Children, Fam"
Nottinghamshire County Council ,Provisions,Debit,24.6,sainsburys smkt,31.05.2019,"Children, Fam"
Nottinghamshire County Council ,Provisions,Debit,54.85,sainsburys smkt,03.06.2019,"Children, Fam"
Nottinghamshire County Council ,Provisions,Debit,32.9,sainsburys smkt,01.05.2019,"Children, Fam"
Nottinghamshire County Council ,Provisions,Debit,54.9,sainsburys smkt,29.04.2019,"Children, Fam"
Nottinghamshire County Council ,Provisions,Debit,23.95,sainsburys smkt,25.04.2019,"Children, Fam"
Nottinghamshire County Council ,Provisions,Debit,46.6,sainsburys smkt,23.04.2019,"Children, Fam"
Nottinghamshire County Council ,Provisions,Debit,2.7,sainsburys s/mkts,20.04.2019,"Children, Fam"
Nottinghamshire County Council ,Provisions,Debit,3.1,co op food,20.04.2019,"Children, Fam"
Nottinghamshire County Council ,Provisions,Debit,17.85,sainsburys smkt,19.04.2019,"Children, Fam"
Nottinghamshire County Council ,Provisions,Debit,11.65,sainsburys smkt,20.04.2019,"Children, Fam"
Nottinghamshire County Council ,Provisions,Debit,16.38,asda superstore,14.04.2019,"Children, Fam"
Nottinghamshire County Council ,Provisions,Debit,45.2,sainsburys smkt,13.04.2019,"Children, Fam"
Nottinghamshire County Council ,Provisions,Debit,3.56,aldi 98 779,13.04.2019,"Children, Fam"
Nottinghamshire County Council ,Provisions,Debit,18.61,co op food,11.04.2019,"Children, Fam"
Nottinghamshire County Council ,Provisions,Debit,5.05,co op food,10.04.2019,"Children, Fam"
Nottinghamshire County Council ,Provisions,Debit,17.8,sainsburys smkt,09.04.2019,"Children, Fam"
Nottinghamshire County Council ,Provisions,Debit,30,sainsburys smkt,09.04.2019,"Children, Fam"
Nottinghamshire County Council ,Provisions,Debit,12.87,aldi 98 779,09.04.2019,"Children, Fam"
Nottinghamshire County Council ,Provisions,Debit,4.7,sainsburys s/mkts,07.04.2019,"Children, Fam"
Nottinghamshire County Council ,Provisions,Debit,30,sainsburys smkt,05.04.2019,"Children, Fam"
Nottinghamshire County Council ,Furniture,Debit,145.94,www.argos.co.uk,04.06.2019,"Children, Fam"
Nottinghamshire County Council ,Foster Carers Equipment,Debit,43.94,www.argos.co.uk,13.05.2019,"Children, Fam"
Nottinghamshire County Council ,Family Financial Assistance,Debit,13,sainsburys s/mkts,22.05.2019,"Children, Fam"
Nottinghamshire County Council ,Provisions,Debit,4.64,tesco stores 6735,07.05.2019,"Children, Fam"
Nottinghamshire County Council ,Provisions,Debit,29.99,house of fraser st,09.05.2019,"Children, Fam"
Nottinghamshire County Council ,Provisions,Debit,13.72,tesco store 2960,09.05.2019,"Children, Fam"
Nottinghamshire County Council ,Provisions,Debit,6.15,wm morrisons store,13.05.2019,"Children, Fam"
Nottinghamshire County Council ,Provisions,Debit,24.99,amzn mktp uk mn07c5xy4 a,14.05.2019,"Children, Fam"
Nottinghamshire County Council ,Provisions,Debit,1.6,co-op group 065071,15.05.2019,"Children, Fam"
Nottinghamshire County Council ,Provisions,Debit,0.9,co-op group 065071,15.05.2019,"Children, Fam"
Nottinghamshire County Council ,Provisions,Debit,16.4,co-op group 065071,15.05.2019,"Children, Fam"
Nottinghamshire County Council ,Provisions,Debit,20.47,wm morrisons store,20.05.2019,"Children, Fam"
Nottinghamshire County Council ,Provisions,Debit,6.84,tesco stores 5329,21.05.2019,"Children, Fam"
Nottinghamshire County Council ,Provisions,Debit,15.14,tesco store 2960,23.05.2019,"Children, Fam"
Nottinghamshire County Council ,Provisions,Debit,2,tesco store 2960,24.05.2019,"Children, Fam"
Nottinghamshire County Council ,Provisions,Debit,6.34,tesco store 2960,24.05.2019,"Children, Fam"
Nottinghamshire County Council ,Provisions,Debit,116.31,tesco stores 5379,24.05.2019,"Children, Fam"
Nottinghamshire County Council ,Provisions,Debit,62.42,mcdonalds,26.05.2019,"Children, Fam"
Nottinghamshire County Council ,Provisions,Debit,16.2,wm morrisons store,03.06.2019,"Children, Fam"
Nottinghamshire County Council ,Provisions,Debit,12.23,tesco store 2960,02.05.2019,"Children, Fam"
Nottinghamshire County Council ,Provisions,Debit,4,onebelow,02.05.2019,"Children, Fam"
Nottinghamshire County Council ,Provisions,Debit,18.6,co-op group 065071,01.05.2019,"Children, Fam"
Nottinghamshire County Council ,Provisions,Debit,28.99,wm morrisons store,29.04.2019,"Children, Fam"
Nottinghamshire County Council ,Provisions,Debit,12.75,tesco store 2960,04.06.2019,"Children, Fam"
Nottinghamshire County Council ,Provisions,Debit,21.85,co-op group 065071,05.06.2019,"Children, Fam"
Nottinghamshire County Council ,Provisions,Debit,12.35,tesco store 2960,06.06.2019,"Children, Fam"
Nottinghamshire County Council ,Provisions,Debit,28.03,wm morrisons store,10.06.2019,"Children, Fam"
Nottinghamshire County Council ,Provisions,Debit,17.38,tesco stores 5329,18.06.2019,"Children, Fam"
Nottinghamshire County Council ,Provisions,Debit,29.99,amznmktplace,19.06.2019,"Children, Fam"
Nottinghamshire County Council ,Provisions,Debit,6.9,co-op group 065071,19.06.2019,"Children, Fam"
Nottinghamshire County Council ,Provisions,Debit,30.09,argos ltd,21.06.2019,"Children, Fam"
Nottinghamshire County Council ,Provisions,Debit,40.5,wm morrisons store,24.06.2019,"Children, Fam"
Nottinghamshire County Council ,Provisions,Debit,19.3,tesco stores 5329,25.06.2019,"Children, Fam"
Nottinghamshire County Council ,Provisions,Debit,12,co-op group 065071,26.06.2019,"Children, Fam"
Nottinghamshire County Council ,Provisions,Debit,8.15,asda superstore,27.06.2019,"Children, Fam"
Nottinghamshire County Council ,Provisions,Debit,4.4,wilko retail limit,03.04.2019,"Children, Fam"
Nottinghamshire County Council ,Provisions,Debit,0.52,co-op group 065071,03.04.2019,"Children, Fam"
Nottinghamshire County Council ,Provisions,Debit,9.06,tesco store 2960,02.04.2019,"Children, Fam"
Nottinghamshire County Council ,Provisions,Debit,13.49,wm morrisons store,01.04.2019,"Children, Fam"
,Housing/Accommodation Financial Support,Debit,12,freedom programme limite,10.06.2019,"Children, Fam"
Nottinghamshire County Council ,Activities & Support,Debit,15.2,amznmktplace amazon.co.u,28.06.2019,ASCHPP
Nottinghamshire County Council ,Office / General Equipment,Debit,35.99,amznmktplace amazon.co.u,28.05.2019,ASCHPP
Nottinghamshire County Council ,Office / General Equipment,Debit,15.48,amzn mktp uk mn6yn7ob4,30.04.2019,ASCHPP
Nottinghamshire County Council ,Office / General Equipment,Debit,19.8,amznmktplace,29.04.2019,ASCHPP
Nottinghamshire County Council ,Unplanned Needs and Financial Support,Debit,10,mip vodafone topup,13.05.2019,"Children, Fam"
Nottinghamshire County Council ,Unplanned Needs and Financial Support,Debit,75.5,hm passport office,14.05.2019,"Children, Fam"
Nottinghamshire County Council ,Unplanned Needs and Financial Support,Debit,9.4,mcdonalds,14.05.2019,"Children, Fam"
Nottinghamshire County Council ,Unplanned Needs and Financial Support,Debit,5.65,bm retail,17.05.2019,"Children, Fam"
Nottinghamshire County Council ,Unplanned Needs and Financial Support,Debit,27.54,w boyes  co ltd newar,17.05.2019,"Children, Fam"
Nottinghamshire County Council ,Unplanned Needs and Financial Support,Debit,34,dvla driver online,20.05.2019,"Children, Fam"
Nottinghamshire County Council ,Housing/Accommodation Financial Support,Debit,56,broxtowe b/oro cnc,22.05.2019,"Children, Fam"
Nottinghamshire County Council ,Unplanned Needs and Financial Support,Debit,11,surrey cc card pay,22.05.2019,"Children, Fam"
Nottinghamshire County Council ,Unplanned Needs and Financial Support,Debit,14,gen register office,23.05.2019,"Children, Fam"
Nottinghamshire County Council ,Unplanned Needs and Financial Support,Debit,38,gen register office,23.05.2019,"Children, Fam"
Nottinghamshire County Council ,Unplanned Needs and Financial Support,Debit,9.99,max spielmann ltd,24.05.2019,"Children, Fam"
Nottinghamshire County Council ,Leaving Care - Home Establishment Grant,Debit,22,asda superstore 04261,28.05.2019,"Children, Fam"
Nottinghamshire County Council ,Unplanned Needs and Financial Support,Debit,7.2,fillets,28.05.2019,"Children, Fam"
Nottinghamshire County Council ,Unplanned Needs and Financial Support,Debit,20,utilita energy limited,30.05.2019,"Children, Fam"
Nottinghamshire County Council ,Unplanned Needs and Financial Support,Debit,5.72,mcdonalds,31.05.2019,"Children, Fam"
Nottinghamshire County Council ,Unplanned Needs and Financial Support,Debit,489.97,www.argos.co.uk,30.05.2019,"Children, Fam"
Nottinghamshire County Council ,Unplanned Needs and Financial Support,Debit,34,dvla driver online,31.05.2019,"Children, Fam"
Nottinghamshire County Council ,Unplanned Needs and Financial Support,Debit,7,tesco stores 2995,31.05.2019,"Children, Fam"
Nottinghamshire County Council ,Unplanned Needs and Financial Support,Debit,20,british gas online,31.05.2019,"Children, Fam"
Nottinghamshire County Council ,Unplanned Needs and Financial Support,Debit,7.58,mcdonalds 963,02.05.2019,"Children, Fam"
Nottinghamshire County Council ,Unplanned Needs and Financial Support,Debit,16.95,tesco stores 5379,01.05.2019,"Children, Fam"
Nottinghamshire County Council ,Unplanned Needs and Financial Support,Debit,20,british gas online,29.04.2019,"Children, Fam"
Nottinghamshire County Council ,Unplanned Needs and Financial Support,Debit,11.96,lidl gb netherfield,29.04.2019,"Children, Fam"
Nottinghamshire County Council ,Unplanned Needs and Financial Support,Debit,38.16,wm morrisons store,25.04.2019,"Children, Fam"
Nottinghamshire County Council ,Leaving Care - Home Establishment Grant,Debit,264,currys online,25.04.2019,"Children, Fam"
Nottinghamshire County Council ,Unplanned Needs and Financial Support,Debit,18.03,aldi 55 779,17.04.2019,"Children, Fam"
Nottinghamshire County Council ,Unplanned Needs and Financial Support,Debit,75,2maa008840252 td e-pmt,12.04.2019,"Children, Fam"
Nottinghamshire County Council ,"Leaving Care Educaton,Employment & Training",Debit,30,www.trentbarton.co.uk,12.04.2019,"Children, Fam"
Nottinghamshire County Council ,Unplanned Needs and Financial Support,Debit,20,british gas online,09.04.2019,"Children, Fam"
Nottinghamshire County Council ,Unplanned Needs and Financial Support,Debit,14.18,wm morrisons store,09.04.2019,"Children, Fam"
Nottinghamshire County Council ,Leaving Care - Home Establishment Grant,Debit,72.1,wilko retail limit,09.04.2019,"Children, Fam"
Nottinghamshire County Council ,Unplanned Needs and Financial Support,Debit,20,british gas online,09.04.2019,"Children, Fam"
Nottinghamshire County Council ,Leaving Care - Home Establishment Grant,Debit,370,affordable carpets,08.04.2019,"Children, Fam"
Nottinghamshire County Council ,Unplanned Needs and Financial Support,Debit,6.65,starbucks,07.06.2019,"Children, Fam"
Nottinghamshire County Council ,Unplanned Needs and Financial Support,Debit,100,wm morrisons store,07.06.2019,"Children, Fam"
Nottinghamshire County Council ,Leaving Care - Home Establishment Grant,Debit,154.5,tvlicensing.co.uk,06.06.2019,"Children, Fam"
Nottinghamshire County Council ,"Leaving Care Educaton,Employment & Training",Debit,30,www.trentbarton.co.uk,11.06.2019,"Children, Fam"
Nottinghamshire County Council ,Unplanned Needs and Financial Support,Debit,293,kings carpets  furnit,01.04.2019,"Children, Fam"
Nottinghamshire County Council ,Postages,Debit,10,camping  caravan,30.04.2019,"Children, Fam"
Nottinghamshire County Council ,Activities & Support,Debit,10,camping  caravan,30.04.2019,"Children, Fam"
Nottinghamshire County Council ,Postages,Debit,4,post office counter,18.04.2019,"Children, Fam"
Nottinghamshire County Council ,Activities & Support,Debit,10,camping  caravan,12.04.2019,"Children, Fam"
Nottinghamshire County Council ,Activities & Support,Debit,3.53,post office counter,11.04.2019,"Children, Fam"
Nottinghamshire County Council ,Provisions,Debit,225,kennys,16.05.2019,"Children, Fam"
Nottinghamshire County Council ,Provisions,Debit,171.8,kennys,06.06.2019,"Children, Fam"
Nottinghamshire County Council ,Sports Equipment,Debit,"1,002.41",adventure climb rescue,12.06.2019,"Children, Fam"
Nottinghamshire County Council ,Postages,Debit,20,adventure climb rescue,12.06.2019,"Children, Fam"
Nottinghamshire County Council ,Provisions,Debit,132,kennys,13.06.2019,"Children, Fam"
Nottinghamshire County Council ,Postages,Debit,2.52,post office counter,14.06.2019,"Children, Fam"
Nottinghamshire County Council ,Sports Equipment,Debit,966.57,www.petzl.com,18.06.2019,"Children, Fam"
Nottinghamshire County Council ,Provisions,Debit,73.2,kennys,18.06.2019,"Children, Fam"
Nottinghamshire County Council ,Provisions,Debit,597.2,kennys,20.06.2019,"Children, Fam"
Nottinghamshire County Council ,Provisions,Debit,108.3,kennys,25.06.2019,"Children, Fam"
Nottinghamshire County Council ,Provisions,Debit,20.88,asda superstore,07.05.2019,"Children, Fam"
Nottinghamshire County Council ,Provisions,Debit,12.12,lidl gb nottingham,08.05.2019,"Children, Fam"
Nottinghamshire County Council ,Provisions,Debit,13.17,amzn mktp uk mn0878a24,09.05.2019,"Children, Fam"
Nottinghamshire County Council ,Provisions,Debit,16.36,asda superstore,13.05.2019,"Children, Fam"
Nottinghamshire County Council ,Provisions,Debit,8.83,asda superstore,14.05.2019,"Children, Fam"
Nottinghamshire County Council ,Provisions,Debit,4.25,amzn mktp uk mn5tv4vo4,15.05.2019,"Children, Fam"
Nottinghamshire County Council ,Provisions,Debit,23.98,argos arnold,17.05.2019,"Children, Fam"
Nottinghamshire County Council ,Provisions,Debit,45.66,farmfoods- carlton,17.05.2019,"Children, Fam"
Nottinghamshire County Council ,Provisions,Debit,49.78,wm morrisons store,20.05.2019,"Children, Fam"
Nottinghamshire County Council ,Provisions,Debit,14.98,farmfoods- carlton,21.05.2019,"Children, Fam"
Nottinghamshire County Council ,Provisions,Debit,12,wilko retail limit,21.05.2019,"Children, Fam"
Nottinghamshire County Council ,Provisions,Debit,25.52,asda superstore,24.05.2019,"Children, Fam"
Nottinghamshire County Council ,Provisions,Debit,19.34,lidl gb  arnold,03.06.2019,"Children, Fam"
Nottinghamshire County Council ,Provisions,Debit,18.3,sainsburys s/mkts,01.05.2019,"Children, Fam"
Nottinghamshire County Council ,Provisions,Debit,8.99,argos ltd,30.04.2019,"Children, Fam"
Nottinghamshire County Council ,Provisions,Debit,152.48,booker limited nottingha,30.04.2019,"Children, Fam"
Nottinghamshire County Council ,Provisions,Debit,154.5,tvlicensing.co.uk,05.04.2019,"Children, Fam"
Nottinghamshire County Council ,Provisions,Debit,32.3,sainsburys s/mkts,05.04.2019,"Children, Fam"
Nottinghamshire County Council ,Provisions,Debit,8.99,amznmktplace,05.06.2019,"Children, Fam"
Nottinghamshire County Council ,Provisions,Debit,3.75,lidl gb nottingham,05.06.2019,"Children, Fam"
Nottinghamshire County Council ,Provisions,Debit,15,poundland ltd 1726,07.06.2019,"Children, Fam"
Nottinghamshire County Council ,Provisions,Debit,23.71,bm retail,10.06.2019,"Children, Fam"
Nottinghamshire County Council ,Provisions,Debit,102.67,booker limited nottingha,11.06.2019,"Children, Fam"
Nottinghamshire County Council ,Provisions,Debit,8.35,sainsburys s/mkts,12.06.2019,"Children, Fam"
Nottinghamshire County Council ,Provisions,Debit,22.39,wm morrisons store,14.06.2019,"Children, Fam"
Nottinghamshire County Council ,Provisions,Debit,31.71,wm morrisons store,18.06.2019,"Children, Fam"
Nottinghamshire County Council ,Provisions,Debit,7.15,sainsburys s/mkts,19.06.2019,"Children, Fam"
Nottinghamshire County Council ,Provisions,Debit,38.79,amznmktplace amazon.co.u,19.06.2019,"Children, Fam"
Nottinghamshire County Council ,Provisions,Debit,20.97,amznmktplace amazon.co.u,19.06.2019,"Children, Fam"
Nottinghamshire County Council ,Provisions,Debit,12,amznmktplace amazon.co.u,19.06.2019,"Children, Fam"
Nottinghamshire County Council ,Provisions,Debit,12,amznmktplace amazon.co.u,19.06.2019,"Children, Fam"
Nottinghamshire County Council ,Provisions,Debit,13.98,amznmktplace amazon.co.u,22.06.2019,"Children, Fam"
Nottinghamshire County Council ,Provisions,Debit,6.68,farmfoods- carlton,21.06.2019,"Children, Fam"
Nottinghamshire County Council ,Provisions,Debit,8.3,wilko retail limit,24.06.2019,"Children, Fam"
Nottinghamshire County Council ,Provisions,Debit,49.98,farmfoods- carlton,24.06.2019,"Children, Fam"
Nottinghamshire County Council ,Provisions,Debit,54.33,lidl gb nottingham,28.06.2019,"Children, Fam"
Nottinghamshire County Council ,Provisions,Debit,12.8,wilko retail limit,29.06.2019,"Children, Fam"
Nottinghamshire County Council ,Provisions,Debit,24.69,asda superstore,28.06.2019,"Children, Fam"
Nottinghamshire County Council ,Provisions,Debit,8.69,farmfoods- carlton,02.04.2019,"Children, Fam"
Nottinghamshire County Council ,Provisions,Debit,8.89,asda superstore,02.04.2019,"Children, Fam"
,Training Fees,Debit,70,amazon.co.uk m64zs9gp4 a,20.06.2019,Place
,Training Fees,Debit,45,amazon.co.uk m63i17g84 a,20.06.2019,Place
,Training Fees,Debit,24,east midlands chamber,21.06.2019,Place
,Activities & Support,Debit,199.8,eventhalo/applyandpay,03.05.2019,Place
,Activities & Support,Debit,172.8,mcconnells electrical,08.05.2019,Place
,Activities & Support,Debit,32.24,eb  nottinghamshire vi,13.05.2019,Place
Nottinghamshire County Council ,home to school transport,Debit,241.37,braunability uk ltd,17.06.2019,"Children, Fam"
Nottinghamshire County Council ,Bus Fares,Debit,29,national express limited,28.06.2019,"Children, Fam"
Nottinghamshire County Council ,Rail / Tube Fares,Debit,126,st john ambulance,20.05.2019,Place
Nottinghamshire County Council ,Housing/Accommodation Financial Support,Debit,10.8,east midlands trai,29.06.2019,"Children, Fam"
Nottinghamshire County Council ,Provisions,Debit,68.46,amznmktplace amazon.co.u,02.05.2019,"Children, Fam"
Nottinghamshire County Council ,Provisions,Debit,4.9,co-op group food,01.05.2019,"Children, Fam"
Nottinghamshire County Council ,Provisions,Debit,13.74,amznmktplace,01.05.2019,"Children, Fam"
Nottinghamshire County Council ,Provisions,Debit,1,microsoft xbox live gold,01.05.2019,"Children, Fam"
Nottinghamshire County Council ,Provisions,Debit,16.7,co-op group food,01.05.2019,"Children, Fam"
Nottinghamshire County Council ,Provisions,Debit,9.7,amznmktplace,01.05.2019,"Children, Fam"
Nottinghamshire County Council ,Provisions,Debit,136.76,asda superstore 04030,30.04.2019,"Children, Fam"
Nottinghamshire County Council ,Provisions,Debit,28.9,keyworth fish bar,05.04.2019,"Children, Fam"
Nottinghamshire County Council ,Provisions,Debit,5.75,co-op group food,03.05.2019,"Children, Fam"
Nottinghamshire County Council ,Provisions,Debit,18.59,amzn mktp uk mn5oa7zf4,03.05.2019,"Children, Fam"
Nottinghamshire County Council ,Provisions,Debit,40.49,amazon.co.uk mn3uz8jg4 a,06.05.2019,"Children, Fam"
Nottinghamshire County Council ,Provisions,Debit,11.28,co-op group food,07.05.2019,"Children, Fam"
Nottinghamshire County Council ,Provisions,Debit,28.3,storeys hardware,07.05.2019,"Children, Fam"
Nottinghamshire County Council ,Provisions,Debit,100.19,asda superstore 04030,08.05.2019,"Children, Fam"
Nottinghamshire County Council ,Provisions,Debit,4.85,co-op group food,08.05.2019,"Children, Fam"
Nottinghamshire County Council ,Provisions,Debit,19.7,co-op group food,16.05.2019,"Children, Fam"
Nottinghamshire County Council ,Provisions,Debit,20.63,co-op group food,21.05.2019,"Children, Fam"
Nottinghamshire County Council ,Provisions,Debit,67.13,dw sports fitness,21.05.2019,"Children, Fam"
Nottinghamshire County Council ,Provisions,Debit,7.45,co-op group food,23.05.2019,"Children, Fam"
Nottinghamshire County Council ,Provisions,Debit,14,co-op group food,24.05.2019,"Children, Fam"
Nottinghamshire County Council ,Provisions,Debit,5.99,microsoft xbox live gold,01.06.2019,"Children, Fam"
Nottinghamshire County Council ,Provisions,Debit,136.77,asda superstore 04030,04.06.2019,"Children, Fam"
Nottinghamshire County Council ,Provisions,Debit,18.4,co-op group 070328,11.06.2019,"Children, Fam"
Nottinghamshire County Council ,Provisions,Debit,4.45,co-op group food,11.06.2019,"Children, Fam"
Nottinghamshire County Council ,Provisions,Debit,5.5,asda superstore 04030,11.06.2019,"Children, Fam"
Nottinghamshire County Council ,Provisions,Debit,24.48,amznmktplace,16.06.2019,"Children, Fam"
Nottinghamshire County Council ,Provisions,Debit,89.75,asda superstore 04030,18.06.2019,"Children, Fam"
Nottinghamshire County Council ,Provisions,Debit,20,tesco stores 5329,19.06.2019,"Children, Fam"
Nottinghamshire County Council ,Provisions,Debit,13.82,co-op group food,20.06.2019,"Children, Fam"
Nottinghamshire County Council ,Provisions,Debit,72.7,amazon.co.uk m67vl9vs4,23.06.2019,"Children, Fam"
Nottinghamshire County Council ,Provisions,Debit,2,co-op group food,25.06.2019,"Children, Fam"
Nottinghamshire County Council ,Provisions,Debit,1.5,co-op group food,26.06.2019,"Children, Fam"
Nottinghamshire County Council ,Provisions,Debit,103.66,asda superstore 04030,26.06.2019,"Children, Fam"
Nottinghamshire County Council ,Provisions,Debit,13.25,sainsburys s/mkt,02.04.2019,"Children, Fam"
Nottinghamshire County Council ,Family Financial Assistance,Debit,199,travelodge gb0000,11.04.2019,"Children, Fam"
Nottinghamshire County Council ,Family Financial Assistance,Debit,350,deans carpets,10.04.2019,"Children, Fam"
Nottinghamshire County Council ,Family Financial Assistance,Debit,316,deans carpets,10.04.2019,"Children, Fam"
Nottinghamshire County Council ,Family Financial Assistance,Debit,12.49,argos mansfield,09.05.2019,"Children, Fam"
Nottinghamshire County Council ,Family Financial Assistance,Debit,11,notts county council,17.05.2019,"Children, Fam"
Nottinghamshire County Council ,Activities & Support,Debit,20,property investors netwo,05.05.2019,Place
Nottinghamshire County Council ,Activities & Support,Debit,57.85,7 core electrical w/sis,07.05.2019,Place
Nottinghamshire County Council ,Activities & Support,Debit,3.98,aldi 1 779,08.05.2019,Place
Nottinghamshire County Council ,Activities & Support,Debit,16.99,screwfixdirect ltd,10.05.2019,Place
Nottinghamshire County Council ,Activities & Support,Debit,18.55,wilko retail limit,26.05.2019,Place
Nottinghamshire County Council ,Activities & Support,Debit,16.68,makro self service sheff,16.04.2019,Place
Nottinghamshire County Council ,Activities & Support,Debit,4.84,aldi 1 779,15.04.2019,Place
Nottinghamshire County Council ,Activities & Support,Debit,20,property investors netwo,07.04.2019,Place
Nottinghamshire County Council ,Activities & Support,Debit,15.07,tesco store 3439,04.04.2019,Place
Nottinghamshire County Council ,Activities & Support,Debit,11.05,aldi 1 779,04.06.2019,Place
Nottinghamshire County Council ,Activities & Support,Debit,95.89,darfoulds nursery,09.06.2019,Place
Nottinghamshire County Council ,Activities & Support,Debit,16.91,aldi 1 779,09.06.2019,Place
Nottinghamshire County Council ,Activities & Support,Debit,20,property investors netwo,10.06.2019,Place
Nottinghamshire County Council ,Activities & Support,Debit,30,b  q 1098,09.06.2019,Place
Nottinghamshire County Council ,Activities & Support,Debit,7.62,aldi 1 779,23.06.2019,Place
Nottinghamshire County Council ,Activities & Support,Debit,265.2,7 core electrical w/sis,25.06.2019,Place
Nottinghamshire County Council ,Activities & Support,Debit,13.19,worksop cps,02.04.2019,Place
Nottinghamshire County Council ,Activities & Support,Debit,1.19,worksop cps,02.04.2019,Place
Nottinghamshire County Council ,Provisions,Debit,21.8,tesco stores 2995,17.06.2019,"Children, Fam"
Nottinghamshire County Council ,Office / General Equipment,Debit,28.1,tesco stores 2995,21.06.2019,"Children, Fam"
Nottinghamshire County Council ,Personal Needs,Debit,21.51,w boyes  co ltd,21.06.2019,"Children, Fam"
Nottinghamshire County Council ,Provisions,Debit,8.05,tesco stores 2995,26.06.2019,"Children, Fam"
Nottinghamshire County Council ,Provisions,Debit,14.89,tesco stores 2995,26.06.2019,"Children, Fam"
Nottinghamshire County Council ,Personal Needs,Debit,15,primark,29.06.2019,"Children, Fam"
Nottinghamshire County Council ,Provisions,Debit,10.4,co-op group 017091,30.06.2019,"Children, Fam"
Nottinghamshire County Council ,Provisions,Debit,6.65,tesco stores 2995,01.05.2019,"Children, Fam"
Nottinghamshire County Council ,Provisions,Debit,58.28,aldi 39 779,29.04.2019,"Children, Fam"
Nottinghamshire County Council ,Provisions,Debit,18.28,b  m retail,29.04.2019,"Children, Fam"
Nottinghamshire County Council ,Provisions,Debit,20.5,tesco stores 2995,24.04.2019,"Children, Fam"
Nottinghamshire County Council ,Provisions,Debit,2.29,mcdonalds,19.04.2019,"Children, Fam"
Nottinghamshire County Council ,Personal Needs,Credi,-10,j d sports 584,19.04.2019,"Children, Fam"
Nottinghamshire County Council ,Personal Needs,Debit,280.05,j d sports 584,19.04.2019,"Children, Fam"
Nottinghamshire County Council ,Office / General Equipment,Debit,8.5,tesco stores 2995,20.04.2019,"Children, Fam"
Nottinghamshire County Council ,Office / General Equipment,Credi,-7,tesco stores 2995,18.04.2019,"Children, Fam"
Nottinghamshire County Council ,Provisions,Debit,23.7,tesco stores 2995,18.04.2019,"Children, Fam"
Nottinghamshire County Council ,Office / General Equipment,Debit,4,quality shoes and key cu,08.04.2019,"Children, Fam"
Nottinghamshire County Council ,Personal Needs,Debit,10,co-op group 017091,05.05.2019,"Children, Fam"
Nottinghamshire County Council ,Provisions,Debit,47.59,aldi,06.05.2019,"Children, Fam"
Nottinghamshire County Council ,Provisions,Debit,43.01,aldi,17.05.2019,"Children, Fam"
Nottinghamshire County Council ,Personal Needs,Debit,10,co-op group 017091,21.05.2019,"Children, Fam"
Nottinghamshire County Council ,Office / General Equipment,Debit,8,tesco stores 2995,23.05.2019,"Children, Fam"
Nottinghamshire County Council ,Provisions,Debit,4.71,mcdonalds 935,23.05.2019,"Children, Fam"
Nottinghamshire County Council ,Personal Needs,Debit,16.1,tesco stores 2995,23.05.2019,"Children, Fam"
Nottinghamshire County Council ,Provisions,Debit,5.89,mcdonalds 935,24.05.2019,"Children, Fam"
Nottinghamshire County Council ,Provisions,Debit,43.06,asda superstore,13.05.2019,ASCHPP
Nottinghamshire County Council ,Provisions,Debit,7.4,tesco stores 2512,15.05.2019,ASCHPP
Nottinghamshire County Council ,Provisions,Debit,33.03,asda superstore,16.05.2019,ASCHPP
Nottinghamshire County Council ,Provisions,Debit,32.8,asda superstore,16.05.2019,ASCHPP
Nottinghamshire County Council ,Provisions,Debit,2.6,tesco stores 2512,17.05.2019,ASCHPP
Nottinghamshire County Council ,Provisions,Debit,46.42,asda superstore,20.05.2019,ASCHPP
Nottinghamshire County Council ,Provisions,Debit,3.3,co-op group 010461,23.05.2019,ASCHPP
Nottinghamshire County Council ,Provisions,Debit,50.46,asda superstore,24.05.2019,ASCHPP
Nottinghamshire County Council ,Activities & Support,Debit,8.54,amzn mktp uk mn5pq75t4,17.05.2019,Resources
Nottinghamshire County Council ,Activities & Support,Debit,8.54,amzn mktp uk mn1ik45n4 a,17.05.2019,Resources
Nottinghamshire County Council ,Aids & Appliances,Debit,131.12,amznmktplace,30.05.2019,ASCHPP
Nottinghamshire County Council ,Aids & Appliances,Debit,25.11,amzn mktp uk mn4kl2ug4,30.05.2019,ASCHPP
Nottinghamshire County Council ,Aids & Appliances,Debit,123.73,amznmktplace,30.05.2019,ASCHPP
Nottinghamshire County Council ,Office / General Equipment,Debit,10.48,amazon.co.uk mn5lw3984,31.05.2019,"Children, Fam"
Nottinghamshire County Council ,Stationery,Debit,28,mailchimp    monthly,28.04.2019,Place
Nottinghamshire County Council ,Stationery,Debit,2.99,amazon.co.uk mz0bi9uk4,24.04.2019,Place
Nottinghamshire County Council ,Stationery,Debit,2.99,amazon.co.uk mz4fi7u94,24.04.2019,Place
Nottinghamshire County Council ,Building Maintenance,Debit,22.93,www.plasticsheets.com,14.06.2019,ASCHPP
Nottinghamshire County Council ,Unplanned Needs and Financial Support,Debit,110,currys online,09.05.2019,"Children, Fam"
Nottinghamshire County Council ,Unplanned Needs and Financial Support,Debit,12.35,slug and lettuce n,13.05.2019,"Children, Fam"
Nottinghamshire County Council ,Unplanned Needs and Financial Support,Debit,1.6,charnwood borough counci,03.06.2019,"Children, Fam"
Nottinghamshire County Council ,Unplanned Needs and Financial Support,Debit,70,wilko retail limit,05.04.2019,"Children, Fam"
Nottinghamshire County Council ,Unplanned Needs and Financial Support,Debit,2.9,asda superstore,02.04.2019,"Children, Fam"
Nottinghamshire County Council ,Unplanned Needs and Financial Support,Debit,5.6,asda superstore,25.06.2019,"Children, Fam"
Nottinghamshire County Council ,Activities & Support,Debit,10.23,amazon.co.uk mz6cx5ua4 a,24.04.2019,"Children, Fam"
Nottinghamshire County Council ,Activities & Support,Debit,16.98,argos ltd,25.06.2019,"Children, Fam"
Nottinghamshire County Council ,Other Fees & Services,Debit,10,www.gov.uk,13.06.2019,Resources
Nottinghamshire County Council ,Other Fees & Services,Debit,10,www.gov.uk,20.06.2019,Resources
Nottinghamshire County Council ,Publicity,Debit,358.8,gv media group ltd,18.04.2019,Resources
Nottinghamshire County Council ,Other Fees & Services,Debit,10,www.gov.uk,08.04.2019,Resources
Nottinghamshire County Council ,Other Fees & Services,Debit,10,www.gov.uk,08.04.2019,Resources
Nottinghamshire County Council ,Other Fees & Services,Debit,10,www.gov.uk,03.05.2019,Resources
Nottinghamshire County Council ,Publicity,Debit,30.43,stationery office book,07.05.2019,Resources
Nottinghamshire County Council ,Specialist Equipment,Debit,51.49,amznmktplace,15.05.2019,Resources
Nottinghamshire County Council ,Minor Works,Debit,44.8,b  q 1261,05.06.2019,"Children, Fam"
Nottinghamshire County Council ,Minor Works,Debit,3.2,wolseley uk,05.06.2019,"Children, Fam"
Nottinghamshire County Council ,Minor Works,Debit,2.24,wolseley uk,05.06.2019,"Children, Fam"
Nottinghamshire County Council ,Minor Works,Debit,2.47,wolseley uk,15.05.2019,"Children, Fam"
Nottinghamshire County Council ,Minor Works,Debit,3.07,wolseley uk,15.05.2019,"Children, Fam"
Nottinghamshire County Council ,Minor Works,Debit,2.4,wolseley uk,16.05.2019,"Children, Fam"
Nottinghamshire County Council ,Minor Works,Debit,5.64,wolseley uk,16.05.2019,"Children, Fam"
Nottinghamshire County Council ,Minor Works,Debit,2.21,wolseley uk,16.05.2019,"Children, Fam"
Nottinghamshire County Council ,Minor Works,Debit,2.97,wolseley uk,16.05.2019,"Children, Fam"
Nottinghamshire County Council ,Minor Works,Debit,5.7,screwfix mansfield,15.05.2019,"Children, Fam"
Nottinghamshire County Council ,Minor Works,Debit,26.35,screwfix mansfield,22.05.2019,"Children, Fam"
Nottinghamshire County Council ,Minor Works,Debit,36.16,screwfix mansfield,02.05.2019,"Children, Fam"
Nottinghamshire County Council ,Minor Works,Debit,12.99,screwfix mansfield,02.05.2019,"Children, Fam"
Nottinghamshire County Council ,Rail / Tube Fares,Debit,199.5,amznmktplace,13.06.2019,Place
Nottinghamshire County Council ,Rail / Tube Fares,Debit,42,halfords 0575,07.06.2019,Place
Nottinghamshire County Council ,Rail / Tube Fares,Debit,39.9,amznmktplace amazon.co.u,06.06.2019,Place
Nottinghamshire County Council ,Provisions,Debit,20.4,middletons dairy limit,05.06.2019,"Children, Fam"
Nottinghamshire County Council ,Legal Fees,Debit,77,www.moneyclaim.gov,07.05.2019,Resources
Nottinghamshire County Council ,Legal Fees,Debit,35,www.moneyclaim.gov,07.05.2019,Resources
Nottinghamshire County Council ,Legal Fees,Debit,"1,565.10",www.moneyclaim.gov,07.05.2019,Resources
Nottinghamshire County Council ,Legal Fees,Debit,10,www.gov.uk,07.05.2019,Resources
Nottinghamshire County Council ,Legal Fees,Debit,3,land registry,07.05.2019,Resources
Nottinghamshire County Council ,Legal Fees,Debit,70,www.moneyclaim.gov,14.05.2019,Resources
Nottinghamshire County Council ,Legal Fees,Debit,77,www.moneyclaim.gov,17.05.2019,Resources
Nottinghamshire County Council ,Legal Fees,Debit,77,www.moneyclaim.gov,21.05.2019,Resources
Nottinghamshire County Council ,Legal Fees,Debit,10,www.gov.uk,23.05.2019,Resources
Nottinghamshire County Council ,Legal Fees,Debit,77,www.moneyclaim.gov,23.05.2019,Resources
Nottinghamshire County Council ,Legal Fees,Debit,25,www.moneyclaim.gov,24.05.2019,Resources
Nottinghamshire County Council ,Legal Fees,Debit,30.43,stationery office book,24.05.2019,Resources
Nottinghamshire County Council ,Legal Fees,Debit,3,land registry,29.05.2019,Resources
Nottinghamshire County Council ,Legal Fees,Debit,10,www.gov.uk,29.05.2019,Resources
Nottinghamshire County Council ,Legal Fees,Debit,3,land registry,31.05.2019,Resources
Nottinghamshire County Council ,Legal Fees,Debit,3,land registry,01.05.2019,Resources
Nottinghamshire County Council ,Legal Fees,Debit,35,www.moneyclaim.gov,26.04.2019,Resources
Nottinghamshire County Council ,Legal Fees,Debit,25,www.moneyclaim.gov,26.04.2019,Resources
Nottinghamshire County Council ,Legal Fees,Debit,3,land registry,24.04.2019,Resources
Nottinghamshire County Council ,Legal Fees,Debit,3,land registry,24.04.2019,Resources
Nottinghamshire County Council ,Legal Fees,Debit,185,www.moneyclaim.gov,23.04.2019,Resources
Nottinghamshire County Council ,Legal Fees,Debit,410,www.moneyclaim.gov,18.04.2019,Resources
Nottinghamshire County Council ,Legal Fees,Debit,3,land registry,18.04.2019,Resources
Nottinghamshire County Council ,Legal Fees,Debit,25,www.moneyclaim.gov,17.04.2019,Resources
Nottinghamshire County Council ,Legal Fees,Debit,105,www.moneyclaim.gov,16.04.2019,Resources
Nottinghamshire County Council ,Legal Fees,Debit,10,www.gov.uk,16.04.2019,Resources
Nottinghamshire County Council ,Legal Fees,Debit,3,land registry,16.04.2019,Resources
Nottinghamshire County Council ,Legal Fees,Debit,35,www.moneyclaim.gov,15.04.2019,Resources
Nottinghamshire County Council ,Legal Fees,Debit,10,www.gov.uk,08.04.2019,Resources
Nottinghamshire County Council ,Legal Fees,Debit,3,land registry,04.06.2019,Resources
Nottinghamshire County Council ,Legal Fees,Debit,3,land registry,04.06.2019,Resources
Nottinghamshire County Council ,Legal Fees,Debit,3,land registry,06.06.2019,Resources
Nottinghamshire County Council ,Legal Fees,Debit,77,www.moneyclaim.gov,06.06.2019,Resources
Nottinghamshire County Council ,Legal Fees,Debit,77,www.moneyclaim.gov,07.06.2019,Resources
Nottinghamshire County Council ,Legal Fees,Debit,77,www.moneyclaim.gov,10.06.2019,Resources
Nottinghamshire County Council ,Legal Fees,Debit,688.98,www.moneyclaim.gov,11.06.2019,Resources
Nottinghamshire County Council ,Legal Fees,Debit,25,www.moneyclaim.gov,11.06.2019,Resources
Nottinghamshire County Council ,Legal Fees,Debit,60,www.moneyclaim.gov,11.06.2019,Resources
Nottinghamshire County Council ,Legal Fees,Debit,25,www.moneyclaim.gov,11.06.2019,Resources
Nottinghamshire County Council ,Legal Fees,Debit,60,www.moneyclaim.gov,12.06.2019,Resources
Nottinghamshire County Council ,Legal Fees,Debit,105,www.moneyclaim.gov,12.06.2019,Resources
Nottinghamshire County Council ,Legal Fees,Debit,3,land registry,14.06.2019,Resources
Nottinghamshire County Council ,Legal Fees,Debit,25,www.moneyclaim.gov,02.04.2019,Resources
Nottinghamshire County Council ,Legal Fees,Debit,3,land registry,01.04.2019,Resources
Nottinghamshire County Council ,Provisions,Debit,6.2,sainsburys s/mkt,04.06.2019,"Children, Fam"
Nottinghamshire County Council ,Provisions,Debit,29.97,co-op group 010811,06.06.2019,"Children, Fam"
Nottinghamshire County Council ,Provisions,Debit,3.9,co-op group 010811,07.06.2019,"Children, Fam"
Nottinghamshire County Council ,Provisions,Debit,124.78,bm retail,11.06.2019,"Children, Fam"
Nottinghamshire County Council ,Provisions,Debit,2.6,sainsburys s/mkt,11.06.2019,"Children, Fam"
Nottinghamshire County Council ,Provisions,Debit,30.62,lidl gb nottingham,13.06.2019,"Children, Fam"
Nottinghamshire County Council ,Provisions,Debit,59.06,canvas wholesale,14.06.2019,"Children, Fam"
Nottinghamshire County Council ,Provisions,Debit,41.85,amazon.co.uk m686p4e24,16.06.2019,"Children, Fam"
Nottinghamshire County Council ,Provisions,Debit,33,iceland,17.06.2019,"Children, Fam"
Nottinghamshire County Council ,Provisions,Debit,9.35,co-op group 010811,18.06.2019,"Children, Fam"
Nottinghamshire County Council ,Provisions,Debit,89.42,amznmktplace amazon.co.u,23.06.2019,"Children, Fam"
Nottinghamshire County Council ,Provisions,Debit,28.18,lidl gb nottingham,25.06.2019,"Children, Fam"
Nottinghamshire County Council ,Provisions,Debit,32.95,b  m retail,06.05.2019,"Children, Fam"
Nottinghamshire County Council ,Provisions,Debit,13.75,sainsburys s/mkt,09.05.2019,"Children, Fam"
Nottinghamshire County Council ,Provisions,Debit,42.46,lidl gb nottingham,15.05.2019,"Children, Fam"
Nottinghamshire County Council ,Provisions,Debit,31.93,amznmktplace,16.05.2019,"Children, Fam"
Nottinghamshire County Council ,Provisions,Debit,38.8,amznmktplace,20.05.2019,"Children, Fam"
Nottinghamshire County Council ,Provisions,Debit,9.1,t.m.s. hardware and pe,20.05.2019,"Children, Fam"
Nottinghamshire County Council ,Provisions,Debit,69.43,amznmktplace,21.05.2019,"Children, Fam"
Nottinghamshire County Council ,Provisions,Debit,33.99,amznmktplace,21.05.2019,"Children, Fam"
Nottinghamshire County Council ,Provisions,Debit,78,alfreshco,21.05.2019,"Children, Fam"
Nottinghamshire County Council ,Provisions,Debit,24.6,sainsburys s/mkt,21.05.2019,"Children, Fam"
Nottinghamshire County Council ,Provisions,Debit,15.8,sainsburys s/mkt,23.05.2019,"Children, Fam"
Nottinghamshire County Council ,Provisions,Debit,29.12,co-op group 010811,02.05.2019,"Children, Fam"
Nottinghamshire County Council ,Provisions,Debit,25.89,aldi 70 779,01.05.2019,"Children, Fam"
Nottinghamshire County Council ,Provisions,Debit,92.1,bm retail,30.04.2019,"Children, Fam"
Nottinghamshire County Council ,Provisions,Debit,19.6,sainsburys s/mkt,30.04.2019,"Children, Fam"
Nottinghamshire County Council ,Provisions,Debit,97.78,bm retail,30.04.2019,"Children, Fam"
Nottinghamshire County Council ,Provisions,Debit,41.4,sainsburys s/mkt,29.04.2019,"Children, Fam"
Nottinghamshire County Council ,Provisions,Debit,10.95,wm morrisons store,03.06.2019,"Children, Fam"
Nottinghamshire County Council ,Provisions,Debit,32.25,wm morrisons store,04.06.2019,"Children, Fam"
Nottinghamshire County Council ,Provisions,Debit,9.9,nisa supermarket,04.06.2019,"Children, Fam"
Nottinghamshire County Council ,Provisions,Debit,8.7,co-op group 108566,06.06.2019,"Children, Fam"
Nottinghamshire County Council ,Provisions,Debit,13.5,co-op group 108566,12.06.2019,"Children, Fam"
Nottinghamshire County Council ,Provisions,Debit,39.4,co-op group 108566,12.06.2019,"Children, Fam"
Nottinghamshire County Council ,Family Financial Assistance,Debit,5,mansfield district cou,19.06.2019,"Children, Fam"
Nottinghamshire County Council ,Family Financial Assistance,Debit,310,jrw flooring,09.05.2019,"Children, Fam"
Nottinghamshire County Council ,Family Financial Assistance,Debit,10,utilita energy limited,26.04.2019,"Children, Fam"
Nottinghamshire County Council ,Family Financial Assistance,Debit,20,utilita energy limited,25.04.2019,"Children, Fam"
Nottinghamshire County Council ,Family Financial Assistance,Debit,20,utilita energy limited,25.04.2019,"Children, Fam"
Nottinghamshire County Council ,Family Financial Assistance,Debit,215,www.justice.gov.uk,23.04.2019,"Children, Fam"
Nottinghamshire County Council ,Family Financial Assistance,Debit,250.98,very,09.04.2019,"Children, Fam"
Nottinghamshire County Council ,Housing/Accommodation Financial Support,Debit,6.59,tesco stores 5379,19.04.2019,"Children, Fam"
Nottinghamshire County Council ,Leaving Care - Home Establishment Grant,Debit,8.98,home bargains newark,05.06.2019,"Children, Fam"
Nottinghamshire County Council ,Leaving Care - Home Establishment Grant,Debit,169,currys,05.06.2019,"Children, Fam"
Nottinghamshire County Council ,Leaving Care - Home Establishment Grant,Debit,148.95,www.argos.co.uk,06.06.2019,"Children, Fam"
Nottinghamshire County Council ,Leaving Care - Home Establishment Grant,Debit,33.99,argos retail group,07.06.2019,"Children, Fam"
Nottinghamshire County Council ,Unplanned Needs and Financial Support,Debit,25,gen register office,10.06.2019,"Children, Fam"
Nottinghamshire County Council ,Leaving Care - Home Establishment Grant,Credi,-13.49,argos retail group,09.06.2019,"Children, Fam"
Nottinghamshire County Council ,Leaving Care - Home Establishment Grant,Debit,33.12,b  m retail,10.06.2019,"Children, Fam"
Nottinghamshire County Council ,Leaving Care - Home Establishment Grant,Debit,4.99,b  m retail,10.06.2019,"Children, Fam"
Nottinghamshire County Council ,Leaving Care - Home Establishment Grant,Debit,502.92,www.argos.co.uk,10.06.2019,"Children, Fam"
Nottinghamshire County Council ,Leaving Care - Home Establishment Grant,Debit,49.97,argos mansfield,10.06.2019,"Children, Fam"
Nottinghamshire County Council ,Unplanned Needs and Financial Support,Debit,7.78,mcdonalds,11.06.2019,"Children, Fam"
Nottinghamshire County Council ,Leaving Care - Home Establishment Grant,Debit,50,the furniture project,12.06.2019,"Children, Fam"
Nottinghamshire County Council ,Unplanned Needs and Financial Support,Debit,2.98,mcdonalds,12.06.2019,"Children, Fam"
Nottinghamshire County Council ,Unplanned Needs and Financial Support,Debit,0.95,greggs plc,14.06.2019,"Children, Fam"
Nottinghamshire County Council ,Other Fees & Services,Debit,43.05,sportsdirect 437,14.06.2019,"Children, Fam"
Nottinghamshire County Council ,Other Fees & Services,Debit,139.99,cash monkey,14.06.2019,"Children, Fam"
Nottinghamshire County Council ,Leaving Care - Home Establishment Grant,Credi,-65,argos mansfield,14.06.2019,"Children, Fam"
Nottinghamshire County Council ,Other Fees & Services,Debit,9.99,argos mansfield,14.06.2019,"Children, Fam"
Nottinghamshire County Council ,Leaving Care - Home Establishment Grant,Debit,26.97,b  m retail,17.06.2019,"Children, Fam"
Nottinghamshire County Council ,Leaving Care - Home Establishment Grant,Debit,41.94,b  m retail,17.06.2019,"Children, Fam"
Nottinghamshire County Council ,Leaving Care - Home Establishment Grant,Debit,489.97,www.argos.co.uk,18.06.2019,"Children, Fam"
Nottinghamshire County Council ,Housing/Accommodation Financial Support,Debit,134.74,ashfield district,18.06.2019,"Children, Fam"
Nottinghamshire County Council ,Leaving Care - Home Establishment Grant,Debit,1.19,home bargains worksop,21.06.2019,"Children, Fam"
Nottinghamshire County Council ,Leaving Care - Home Establishment Grant,Debit,17.5,matalan,21.06.2019,"Children, Fam"
Nottinghamshire County Council ,Leaving Care - Home Establishment Grant,Debit,54.97,argos retail group,24.06.2019,"Children, Fam"
Nottinghamshire County Council ,Unplanned Needs and Financial Support,Debit,15,martin mccoll,24.06.2019,"Children, Fam"
Nottinghamshire County Council ,Unplanned Needs and Financial Support,Debit,13.73,aldi 17 779,24.06.2019,"Children, Fam"
Nottinghamshire County Council ,Leaving Care - Home Establishment Grant,Debit,53,the furniture project,25.06.2019,"Children, Fam"
Nottinghamshire County Council ,Unplanned Needs and Financial Support,Debit,3.9,intu victoria centre,25.06.2019,"Children, Fam"
Nottinghamshire County Council ,Leaving Care - Home Establishment Grant,Debit,170,wilko retail limit,27.06.2019,"Children, Fam"
Nottinghamshire County Council ,"Leaving Care Educaton,Employment & Training",Debit,109,martin  co,26.06.2019,"Children, Fam"
Nottinghamshire County Council ,Leaving Care - Home Establishment Grant,Debit,5,wilko retail limit,27.06.2019,"Children, Fam"
Nottinghamshire County Council ,Leaving Care - Home Establishment Grant,Debit,110,tesco stores 5379,27.06.2019,"Children, Fam"
Nottinghamshire County Council ,Other Fees & Services,Debit,279.5,mansfield leisure,02.04.2019,"Children, Fam"
Nottinghamshire County Council ,Other Fees & Services,Debit,76,mole country stores,01.04.2019,"Children, Fam"
Nottinghamshire County Council ,Leaving Care - Home Establishment Grant,Debit,51.98,argos retail group,01.04.2019,"Children, Fam"
Nottinghamshire County Council ,Unplanned Needs and Financial Support,Debit,4.8,subway,15.05.2019,"Children, Fam"
Nottinghamshire County Council ,Housing/Accommodation Financial Support,Debit,365,b.com 123497-lxbzr the s,17.05.2019,"Children, Fam"
Nottinghamshire County Council ,Leaving Care - Home Establishment Grant,Debit,112.95,www.argos.co.uk,20.05.2019,"Children, Fam"
Nottinghamshire County Council ,Unplanned Needs and Financial Support,Debit,4.31,mcdonalds,21.05.2019,"Children, Fam"
Nottinghamshire County Council ,Unplanned Needs and Financial Support,Debit,7.73,asda stores 4474,21.05.2019,"Children, Fam"
Nottinghamshire County Council ,Leaving Care - Home Establishment Grant,Debit,24.47,b  m retail,22.05.2019,"Children, Fam"
Nottinghamshire County Council ,Unplanned Needs and Financial Support,Debit,57.94,asda store ston in as,23.05.2019,"Children, Fam"
Nottinghamshire County Council ,Unplanned Needs and Financial Support,Debit,7.88,mcdonalds,23.05.2019,"Children, Fam"
Nottinghamshire County Council ,Unplanned Needs and Financial Support,Debit,8.35,starbucks,24.05.2019,"Children, Fam"
Nottinghamshire County Council ,Leaving Care - Home Establishment Grant,Debit,88.95,www.argos.co.uk,28.05.2019,"Children, Fam"
Nottinghamshire County Council ,Leaving Care - Home Establishment Grant,Debit,26.98,argos retail group,28.05.2019,"Children, Fam"
Nottinghamshire County Council ,Leaving Care - Home Establishment Grant,Debit,369.98,www.argos.co.uk,28.05.2019,"Children, Fam"
Nottinghamshire County Council ,Leaving Care - Home Establishment Grant,Debit,88.09,b  m retail,28.05.2019,"Children, Fam"
Nottinghamshire County Council ,Leaving Care - Home Establishment Grant,Debit,42.99,argos retail group,30.05.2019,"Children, Fam"
Nottinghamshire County Council ,Other Fees & Services,Debit,29.99,puregym limited,31.05.2019,"Children, Fam"
Nottinghamshire County Council ,Leaving Care - Home Establishment Grant,Debit,149.99,argos retail group,31.05.2019,"Children, Fam"
Nottinghamshire County Council ,Unplanned Needs and Financial Support,Debit,3.18,mcdonalds,03.06.2019,"Children, Fam"
Nottinghamshire County Council ,Unplanned Needs and Financial Support,Debit,5.8,mcdonalds,30.04.2019,"Children, Fam"
Nottinghamshire County Council ,Leaving Care - Home Establishment Grant,Debit,5.99,tk maxx,30.04.2019,"Children, Fam"
Nottinghamshire County Council ,Housing/Accommodation Financial Support,Debit,402,travelodge gb0000,05.04.2019,"Children, Fam"
Nottinghamshire County Council ,Furniture,Debit,482.95,www.argos.co.uk,30.04.2019,ASCHPP
Nottinghamshire County Council ,Activities & Support,Debit,4.99,amznmktplace,18.04.2019,ASCHPP
Nottinghamshire County Council ,Activities & Support,Debit,12.75,amzn mktp uk mz5wd1d34,18.04.2019,ASCHPP
Nottinghamshire County Council ,Activities & Support,Debit,11.99,amznmktplace,15.04.2019,ASCHPP
Nottinghamshire County Council ,Cleaning Materials,Debit,28.56,amznmktplace,11.04.2019,ASCHPP
Nottinghamshire County Council ,Furniture,Debit,18.47,amzn mktp uk mz90w4xi4,09.04.2019,ASCHPP
Nottinghamshire County Council ,Activities & Support,Debit,22.95,amzn mktp uk mn8mm8ax4,08.05.2019,ASCHPP
Nottinghamshire County Council ,Landscape Maintenance,Debit,259.84,www.primrose.co.uk,14.05.2019,ASCHPP
Nottinghamshire County Council ,Landscape Maintenance,Debit,109.93,www.primrose.co.uk,22.05.2019,ASCHPP
Nottinghamshire County Council ,Furniture,Debit,379.98,precisionst,28.05.2019,ASCHPP
Nottinghamshire County Council ,Activities & Support,Debit,4.1,amznmktplace,20.06.2019,ASCHPP
Nottinghamshire County Council ,Activities & Support,Debit,4.5,amznmktplace,20.06.2019,ASCHPP
Nottinghamshire County Council ,Clothing/Shoes/Uniforms,Debit,14,amznmktplace amazon.co.u,20.06.2019,ASCHPP
Nottinghamshire County Council ,Clothing/Shoes/Uniforms,Debit,20.66,amznmktplace amazon.co.u,20.06.2019,ASCHPP
Nottinghamshire County Council ,Activities & Support,Debit,16.53,amznmktplace,23.06.2019,ASCHPP
Nottinghamshire County Council ,Activities & Support,Debit,5.98,amznmktplace,25.06.2019,ASCHPP
Nottinghamshire County Council ,Office / General Equipment,Debit,69.97,amznmktplace,28.06.2019,"Children, Fam"
Nottinghamshire County Council ,Provisions,Debit,6.5,tesco store 3439,04.06.2019,"Children, Fam"
Nottinghamshire County Council ,Provisions,Debit,5.1,asda stores 4517,04.06.2019,"Children, Fam"
Nottinghamshire County Council ,Provisions,Debit,28.8,tesco store 3439,06.06.2019,"Children, Fam"
Nottinghamshire County Council ,Provisions,Debit,7.98,home bargains worksop,07.06.2019,"Children, Fam"
Nottinghamshire County Council ,Provisions,Debit,14.65,tesco store 3439,07.06.2019,"Children, Fam"
Nottinghamshire County Council ,Provisions,Debit,5.59,tesco store 3439,10.06.2019,"Children, Fam"
Nottinghamshire County Council ,Provisions,Debit,8,tesco store 3439,10.06.2019,"Children, Fam"
Nottinghamshire County Council ,Provisions,Debit,6.36,tesco store 3439,13.06.2019,"Children, Fam"
Nottinghamshire County Council ,Provisions,Debit,47.99,farmfoods- worksop,13.06.2019,"Children, Fam"
Nottinghamshire County Council ,Provisions,Debit,4.73,tesco store 3439,14.06.2019,"Children, Fam"
Nottinghamshire County Council ,Provisions,Debit,11.4,tesco stores 5437,14.06.2019,"Children, Fam"
Nottinghamshire County Council ,Provisions,Debit,13.33,tesco store 3439,17.06.2019,"Children, Fam"
Nottinghamshire County Council ,Provisions,Debit,4.76,asda stores 4517,17.06.2019,"Children, Fam"
Nottinghamshire County Council ,Provisions,Debit,4.95,tesco store 3439,18.06.2019,"Children, Fam"
Nottinghamshire County Council ,Provisions,Debit,16,tesco store 3439,20.06.2019,"Children, Fam"
Nottinghamshire County Council ,Provisions,Debit,8.76,asda stores 4517,20.06.2019,"Children, Fam"
Nottinghamshire County Council ,Provisions,Debit,3.14,asda stores 4517,21.06.2019,"Children, Fam"
Nottinghamshire County Council ,Provisions,Debit,18,farmfoods- worksop,24.06.2019,"Children, Fam"
Nottinghamshire County Council ,Provisions,Debit,7.4,tesco store 3439,24.06.2019,"Children, Fam"
Nottinghamshire County Council ,Provisions,Debit,5.31,tesco store 3439,27.06.2019,"Children, Fam"
Nottinghamshire County Council ,Provisions,Debit,20.86,tesco store 3439,28.06.2019,"Children, Fam"
Nottinghamshire County Council ,Provisions,Debit,28.57,tesco store 3439,03.05.2019,"Children, Fam"
Nottinghamshire County Council ,Provisions,Debit,9,tesco store 3439,07.05.2019,"Children, Fam"
Nottinghamshire County Council ,Provisions,Debit,15.41,tesco store 3439,07.05.2019,"Children, Fam"
Nottinghamshire County Council ,Provisions,Debit,10,tesco store 3439,10.05.2019,"Children, Fam"
Nottinghamshire County Council ,Provisions,Debit,22.57,tesco store 3439,10.05.2019,"Children, Fam"
Nottinghamshire County Council ,Provisions,Debit,24,farmfoods- worksop,13.05.2019,"Children, Fam"
Nottinghamshire County Council ,Provisions,Debit,8.91,tesco store 3439,13.05.2019,"Children, Fam"
Nottinghamshire County Council ,Provisions,Debit,13.37,farmfoods- worksop,13.05.2019,"Children, Fam"
Nottinghamshire County Council ,Provisions,Debit,9.42,asda stores 4517,14.05.2019,"Children, Fam"
Nottinghamshire County Council ,Provisions,Debit,5.54,tesco store 3439,16.05.2019,"Children, Fam"
Nottinghamshire County Council ,Provisions,Debit,21.3,tesco store 3439,17.05.2019,"Children, Fam"
Nottinghamshire County Council ,Provisions,Debit,5.05,asda stores 4517,17.05.2019,"Children, Fam"
Nottinghamshire County Council ,Provisions,Debit,9,asda stores 4476,17.05.2019,"Children, Fam"
Nottinghamshire County Council ,Provisions,Debit,10.71,poundstretcher 32,20.05.2019,"Children, Fam"
Nottinghamshire County Council ,Provisions,Debit,12.36,tesco store 3439,20.05.2019,"Children, Fam"
Nottinghamshire County Council ,Provisions,Debit,9.08,tesco store 3439,21.05.2019,"Children, Fam"
Nottinghamshire County Council ,Provisions,Debit,2.2,asda stores 4517,21.05.2019,"Children, Fam"
Nottinghamshire County Council ,Provisions,Debit,9,asda stores 4517,21.05.2019,"Children, Fam"
Nottinghamshire County Council ,Provisions,Debit,6.46,tesco store 3439,23.05.2019,"Children, Fam"
Nottinghamshire County Council ,Provisions,Debit,21.84,tesco store 3439,24.05.2019,"Children, Fam"
Nottinghamshire County Council ,Provisions,Debit,38.27,tesco store 3439,03.06.2019,"Children, Fam"
Nottinghamshire County Council ,Provisions,Debit,16.63,poundstretcher 32,02.05.2019,"Children, Fam"
Nottinghamshire County Council ,Provisions,Debit,15.21,tesco store 3439,02.05.2019,"Children, Fam"
Nottinghamshire County Council ,Provisions,Debit,10.58,tesco store 3439,02.05.2019,"Children, Fam"
Nottinghamshire County Council ,Provisions,Debit,24.59,tesco store 3439,29.04.2019,"Children, Fam"
Nottinghamshire County Council ,Provisions,Debit,6.85,poundstretcher 32,29.04.2019,"Children, Fam"
Nottinghamshire County Council ,Provisions,Debit,13.33,asda stores 4517,05.04.2019,"Children, Fam"
Nottinghamshire County Council ,Provisions,Debit,9,asda stores 4517,05.04.2019,"Children, Fam"
Nottinghamshire County Council ,Provisions,Debit,10.35,tesco store 3439,04.04.2019,"Children, Fam"
Nottinghamshire County Council ,Leaving Care - Home Establishment Grant,Debit,5.58,b  q 1261,15.04.2019,"Children, Fam"
Nottinghamshire County Council ,Leaving Care - Home Establishment Grant,Debit,7,b  q 1261,15.04.2019,"Children, Fam"
Nottinghamshire County Council ,Leaving Care - Home Establishment Grant,Debit,7,b  q 1261,15.04.2019,"Children, Fam"
Nottinghamshire County Council ,Leaving Care - Home Establishment Grant,Debit,15,b  q 1261,15.04.2019,"Children, Fam"
Nottinghamshire County Council ,Leaving Care - Home Establishment Grant,Debit,16,b  q 1261,15.04.2019,"Children, Fam"
Nottinghamshire County Council ,Leaving Care - Home Establishment Grant,Debit,16,b  q 1261,15.04.2019,"Children, Fam"
Nottinghamshire County Council ,Leaving Care - Home Establishment Grant,Debit,34.05,wm morrisons store,30.04.2019,"Children, Fam"
Nottinghamshire County Council ,Leaving Care - Home Establishment Grant,Debit,154.5,tvlicensing.co.uk,17.04.2019,"Children, Fam"
Nottinghamshire County Council ,Unplanned Needs and Financial Support,Debit,13.11,aldi stores,15.04.2019,"Children, Fam"
Nottinghamshire County Council ,Unplanned Needs and Financial Support,Debit,26.68,asda superstore 04261,11.04.2019,"Children, Fam"
Nottinghamshire County Council ,Leaving Care - Home Establishment Grant,Debit,59.99,argos mansfield,08.04.2019,"Children, Fam"
Nottinghamshire County Council ,Leaving Care - Home Establishment Grant,Debit,14.99,argos mansfield,08.04.2019,"Children, Fam"
Nottinghamshire County Council ,Unplanned Needs and Financial Support,Debit,8.97,mcdonalds,03.05.2019,"Children, Fam"
Nottinghamshire County Council ,Unplanned Needs and Financial Support,Debit,9.53,home bargains doncaste,03.05.2019,"Children, Fam"
Nottinghamshire County Council ,Unplanned Needs and Financial Support,Debit,15.7,w m morrison store,09.05.2019,"Children, Fam"
Nottinghamshire County Council ,Unplanned Needs and Financial Support,Debit,7.7,starbucks ashby,10.05.2019,"Children, Fam"
Nottinghamshire County Council ,Unplanned Needs and Financial Support,Debit,6.5,sainsburys s/mkts,13.05.2019,"Children, Fam"
Nottinghamshire County Council ,Unplanned Needs and Financial Support,Debit,25,argos mansfield,14.05.2019,"Children, Fam"
Nottinghamshire County Council ,Unplanned Needs and Financial Support,Debit,134.56,asda groceries online,14.05.2019,"Children, Fam"
Nottinghamshire County Council ,Unplanned Needs and Financial Support,Debit,100.44,www.argos.co.uk,14.05.2019,"Children, Fam"
Nottinghamshire County Council ,Unplanned Needs and Financial Support,Debit,122.95,www.argos.co.uk,14.05.2019,"Children, Fam"
Nottinghamshire County Council ,Unplanned Needs and Financial Support,Debit,211.98,argos mansfield,14.05.2019,"Children, Fam"
Nottinghamshire County Council ,Unplanned Needs and Financial Support,Debit,29.2,sainsburys s/mkts,14.05.2019,"Children, Fam"
Nottinghamshire County Council ,Unplanned Needs and Financial Support,Debit,26.28,wm morrisons store,17.05.2019,"Children, Fam"
Nottinghamshire County Council ,Unplanned Needs and Financial Support,Debit,3.28,mcdonalds,17.05.2019,"Children, Fam"
Nottinghamshire County Council ,Unplanned Needs and Financial Support,Debit,84.46,asda superstore 04261,20.05.2019,"Children, Fam"
Nottinghamshire County Council ,Unplanned Needs and Financial Support,Debit,21,argos workshop,23.05.2019,"Children, Fam"
Nottinghamshire County Council ,Unplanned Needs and Financial Support,Debit,11.4,sainsburys s/mkts,24.05.2019,"Children, Fam"
Nottinghamshire County Council ,Unplanned Needs and Financial Support,Debit,5.99,aldi 39 779,24.05.2019,"Children, Fam"
Nottinghamshire County Council ,Unplanned Needs and Financial Support,Debit,20,argos workshop,28.05.2019,"Children, Fam"
Nottinghamshire County Council ,Unplanned Needs and Financial Support,Debit,4.9,sainsburys s/mkt,28.05.2019,"Children, Fam"
Nottinghamshire County Council ,Unplanned Needs and Financial Support,Debit,15.83,w m morrison store,30.05.2019,"Children, Fam"
Nottinghamshire County Council ,Unplanned Needs and Financial Support,Debit,27.99,bm retail ltd,31.05.2019,"Children, Fam"
Nottinghamshire County Council ,Unplanned Needs and Financial Support,Debit,20,wm morrisons store,03.06.2019,"Children, Fam"
Nottinghamshire County Council ,Unplanned Needs and Financial Support,Debit,9.64,asda superstore 04261,03.06.2019,"Children, Fam"
Nottinghamshire County Council ,Unplanned Needs and Financial Support,Debit,32.6,sainsburys s/mkts,03.04.2019,"Children, Fam"
Nottinghamshire County Council ,Leaving Care - Home Establishment Grant,Debit,13.75,home bargains doncaste,05.06.2019,"Children, Fam"
Nottinghamshire County Council ,Unplanned Needs and Financial Support,Debit,20.95,sainsburys s/mkts,06.06.2019,"Children, Fam"
Nottinghamshire County Council ,"Leaving Care Educaton,Employment & Training",Debit,87.98,sportsdirect 437,13.06.2019,"Children, Fam"
Nottinghamshire County Council ,Leaving Care - Home Establishment Grant,Debit,23.16,b  m retail,13.06.2019,"Children, Fam"
Nottinghamshire County Council ,Leaving Care - Home Establishment Grant,Debit,24.99,b  m retail,13.06.2019,"Children, Fam"
Nottinghamshire County Council ,Leaving Care - Home Establishment Grant,Debit,24.83,asda superstore 04261,13.06.2019,"Children, Fam"
Nottinghamshire County Council ,Leaving Care - Home Establishment Grant,Debit,19.99,argos workshop,14.06.2019,"Children, Fam"
Nottinghamshire County Council ,Leaving Care - Home Establishment Grant,Debit,17.85,sainsburys s/mkts,18.06.2019,"Children, Fam"
Nottinghamshire County Council ,Leaving Care - Home Establishment Grant,Debit,39.61,b  m retail,18.06.2019,"Children, Fam"
Nottinghamshire County Council ,Unplanned Needs and Financial Support,Debit,10.84,asda stores 4476,20.06.2019,"Children, Fam"
Nottinghamshire County Council ,Provisions,Debit,27.97,www.dominos.co.uk,15.05.2019,"Children, Fam"
Nottinghamshire County Council ,Provisions,Debit,48.47,www.dominos.co.uk,18.05.2019,"Children, Fam"
Nottinghamshire County Council ,Provisions,Debit,15.55,tesco stores 5437,03.04.2019,"Children, Fam"
Nottinghamshire County Council ,Provisions,Debit,17.23,mcdonalds 935,05.06.2019,"Children, Fam"
Nottinghamshire County Council ,Provisions,Debit,44.32,mcdonalds,15.06.2019,"Children, Fam"
Nottinghamshire County Council ,Provisions,Debit,15.3,tesco stores 5437,19.06.2019,"Children, Fam"
Nottinghamshire County Council ,Provisions,Debit,19.38,upper crust,22.06.2019,"Children, Fam"
Nottinghamshire County Council ,Office / General Equipment,Debit,8.99,wh smith,21.05.2019,Place
Nottinghamshire County Council ,Office / General Equipment,Debit,2,wilko retail limit,21.05.2019,Place
Nottinghamshire County Council ,Stationery,Debit,98.65,trainline.com,01.04.2019,ASCHPP
Nottinghamshire County Council ,Stationery,Debit,66,jurys inn nottingham fro,02.05.2019,ASCHPP
Nottinghamshire County Council ,Stationery,Debit,66,jurys inn nottingham fro,02.05.2019,ASCHPP
Nottinghamshire County Council ,Stationery,Debit,66,jurys inn nottingham fro,30.04.2019,ASCHPP
Nottinghamshire County Council ,Stationery,Debit,66,jurys inn nottingham fro,29.04.2019,ASCHPP
Nottinghamshire County Council ,Stationery,Debit,66,jurys inn nottingham fro,26.04.2019,ASCHPP
Nottinghamshire County Council ,Stationery,Credi,-69.9,jurys inn nottingham,25.04.2019,ASCHPP
Nottinghamshire County Council ,Stationery,Credi,-69.9,jurys inn nottingham,25.04.2019,ASCHPP
Nottinghamshire County Council ,Stationery,Debit,66,jurys inn nottingham fro,24.04.2019,ASCHPP
Nottinghamshire County Council ,Stationery,Debit,66,jurys inn nottingham fro,22.04.2019,ASCHPP
Nottinghamshire County Council ,Stationery,Debit,135.9,jurys inn nottingham,17.04.2019,ASCHPP
Nottinghamshire County Council ,Stationery,Debit,135.9,jurys inn nottingham,16.04.2019,ASCHPP
Nottinghamshire County Council ,Stationery,Debit,66,jurys inn nottingham fro,16.04.2019,ASCHPP
Nottinghamshire County Council ,Stationery,Debit,66,jurys inn nottingham fro,15.04.2019,ASCHPP
Nottinghamshire County Council ,Stationery,Debit,66,jurys inn nottingham fro,14.04.2019,ASCHPP
Nottinghamshire County Council ,Stationery,Debit,100.67,bestwood lodge,10.04.2019,ASCHPP
Nottinghamshire County Council ,Stationery,Debit,132.52,trainline.com,08.04.2019,ASCHPP
Nottinghamshire County Council ,Stationery,Debit,66,jurys inn nottingham fro,04.04.2019,ASCHPP
Nottinghamshire County Council ,Stationery,Debit,66,jurys inn nottingham fro,03.05.2019,ASCHPP
Nottinghamshire County Council ,Stationery,Debit,17.94,www.192.com,07.05.2019,ASCHPP
Nottinghamshire County Council ,Stationery,Debit,66,jurys inn nottingham fro,07.05.2019,ASCHPP
Nottinghamshire County Council ,Stationery,Debit,66,jurys inn nottingham fro,15.05.2019,ASCHPP
Nottinghamshire County Council ,Stationery,Debit,5.19,amznmktplace,22.05.2019,ASCHPP
Nottinghamshire County Council ,Stationery,Debit,53.82,amznmktplace,22.05.2019,ASCHPP
Nottinghamshire County Council ,Stationery,Debit,18.56,amznmktplace,24.05.2019,ASCHPP
Nottinghamshire County Council ,Stationery,Debit,79.95,amzn mktp uk mn9lz9964 a,28.05.2019,ASCHPP
Nottinghamshire County Council ,Stationery,Credi,-79.95,amzn mktp uk amazon.co.u,31.05.2019,ASCHPP
,Provisions,Debit,15.82,lidl gb nottingham,04.05.2019,ASCHPP
,Provisions,Debit,6.95,tesco stores 6213,06.05.2019,ASCHPP
,Provisions,Debit,4.4,sainsburys s/mkts,07.05.2019,ASCHPP
,Provisions,Debit,15.75,wilko retail limit,08.05.2019,ASCHPP
,Provisions,Debit,7.11,aldi 70 779,09.05.2019,ASCHPP
,Provisions,Debit,211.62,wm morrison food.com,09.05.2019,ASCHPP
,Provisions,Debit,132.24,wm morrison food.com,13.05.2019,ASCHPP
,Provisions,Debit,1.4,tesco stores 6213,14.05.2019,ASCHPP
,Provisions,Debit,118.27,wm morrison food.com,16.05.2019,ASCHPP
,Provisions,Debit,7.75,sainsburys s/mkts,19.05.2019,ASCHPP
,Provisions,Debit,2.4,wilko retail limit,21.05.2019,ASCHPP
,Provisions,Debit,8.94,lidl gb nottingham,28.05.2019,ASCHPP
,Provisions,Debit,5.96,aldi 70 779,28.05.2019,ASCHPP
,Provisions,Debit,69.68,wm morrison food.com,03.06.2019,ASCHPP
,Provisions,Debit,48.74,wm morrison food.com,29.04.2019,ASCHPP
,Provisions,Debit,11.04,tesco store 2960,26.04.2019,ASCHPP
,Provisions,Debit,86.7,wm morrison food.com,25.04.2019,ASCHPP
,Provisions,Debit,8.6,tesco stores 6213,23.04.2019,ASCHPP
,Provisions,Debit,3.55,sainsburys s/mkts,22.04.2019,ASCHPP
,Provisions,Debit,58.39,wm morrison food.com,22.04.2019,ASCHPP
,Provisions,Debit,93.67,wm morrison food.com,18.04.2019,ASCHPP
,Provisions,Debit,108.06,wm morrison food.com,18.04.2019,ASCHPP
,Provisions,Debit,15.97,tesco store 2960,16.04.2019,ASCHPP
,Provisions,Debit,12.2,wilko retail limit,16.04.2019,ASCHPP
,Provisions,Debit,21.47,tesco store 2960,10.04.2019,ASCHPP
,Provisions,Debit,5,iceland,09.04.2019,ASCHPP
,Provisions,Debit,59.93,wm morrison food.com,08.04.2019,ASCHPP
,Provisions,Debit,3.4,wilko retail limit,08.04.2019,ASCHPP
,Provisions,Debit,17.61,aldi 70 779,05.04.2019,ASCHPP
,Provisions,Debit,3.5,tesco stores 6213,05.04.2019,ASCHPP
,Provisions,Debit,118.51,wm morrison food.com,04.04.2019,ASCHPP
,Provisions,Debit,256.32,wm morrison food.com,07.06.2019,ASCHPP
,Provisions,Debit,127.67,wm morrison food.com,13.06.2019,ASCHPP
,Provisions,Debit,116.4,wm morrison food.com,17.06.2019,ASCHPP
,Provisions,Debit,169.72,wm morrison food.com,27.06.2019,ASCHPP
Nottinghamshire County Council ,Provisions,Debit,20.6,iceland,07.06.2019,"Children, Fam"
Nottinghamshire County Council ,Provisions,Debit,73.96,farmfoods- worksop,10.06.2019,"Children, Fam"
Nottinghamshire County Council ,Provisions,Debit,5.59,aldi 28 779,10.06.2019,"Children, Fam"
Nottinghamshire County Council ,Provisions,Debit,3.75,iceland,14.06.2019,"Children, Fam"
Nottinghamshire County Council ,Provisions,Debit,16.75,iceland,14.06.2019,"Children, Fam"
Nottinghamshire County Council ,Provisions,Debit,13.02,aldi 28 779,17.06.2019,"Children, Fam"
Nottinghamshire County Council ,Provisions,Debit,10.67,iceland,21.06.2019,"Children, Fam"
Nottinghamshire County Council ,Provisions,Debit,8.25,w m morrison store,21.06.2019,"Children, Fam"
Nottinghamshire County Council ,Provisions,Debit,7.5,wm morrisons store,22.06.2019,"Children, Fam"
Nottinghamshire County Council ,Provisions,Debit,11.12,aldi 28 779,24.06.2019,"Children, Fam"
Nottinghamshire County Council ,Provisions,Debit,7.6,the knitters shop,24.06.2019,"Children, Fam"
Nottinghamshire County Council ,Provisions,Debit,3.5,iceland,24.06.2019,"Children, Fam"
Nottinghamshire County Council ,Provisions,Debit,4.48,amznmktplace,26.06.2019,"Children, Fam"
Nottinghamshire County Council ,Provisions,Debit,20.6,iceland,28.06.2019,"Children, Fam"
Nottinghamshire County Council ,Provisions,Debit,5.1,asda superstore,03.04.2019,"Children, Fam"
Nottinghamshire County Council ,Provisions,Debit,14.25,iceland,01.04.2019,"Children, Fam"
Nottinghamshire County Council ,Provisions,Debit,8,iceland,07.05.2019,"Children, Fam"
Nottinghamshire County Council ,Provisions,Debit,31.96,amznmktplace,09.05.2019,"Children, Fam"
Nottinghamshire County Council ,Provisions,Debit,22.61,wm morrisons store,10.05.2019,"Children, Fam"
Nottinghamshire County Council ,Provisions,Debit,15.84,aldi 28 779,13.05.2019,"Children, Fam"
Nottinghamshire County Council ,Provisions,Debit,7,iceland,13.05.2019,"Children, Fam"
Nottinghamshire County Council ,Provisions,Debit,9.59,iceland,20.05.2019,"Children, Fam"
Nottinghamshire County Council ,Provisions,Debit,18.68,aldi 28 779,03.06.2019,"Children, Fam"
Nottinghamshire County Council ,Provisions,Debit,55.96,farmfoods- worksop,29.04.2019,"Children, Fam"
Nottinghamshire County Council ,Provisions,Debit,19.99,www.libertygames.co.uk,29.04.2019,"Children, Fam"
Nottinghamshire County Council ,Provisions,Debit,31.1,aldi 28 779,29.04.2019,"Children, Fam"
Nottinghamshire County Council ,Provisions,Debit,5.25,iceland,05.04.2019,"Children, Fam"
Nottinghamshire County Council ,Provisions,Debit,9.92,aldi 72 779,04.04.2019,"Children, Fam"
Nottinghamshire County Council ,Hospitality,Debit,38.42,tesco stores 5437,22.05.2019,ASCHPP
Nottinghamshire County Council ,Cleaning & Domestic Equipment,Debit,24.99,argos mansfield,17.06.2019,ASCHPP
Nottinghamshire County Council ,Office / General Equipment,Debit,5.99,home bargains doncaste,17.06.2019,ASCHPP
Nottinghamshire County Council ,Printing / Photocopying Materials,Debit,2.39,dunelm ltd,17.06.2019,ASCHPP
Nottinghamshire County Council ,Office / General Equipment,Debit,2.5,tesco stores 5437,21.06.2019,ASCHPP
Nottinghamshire County Council ,Stationery,Debit,31.95,amznmktplace amazon.co.u,25.06.2019,ASCHPP
Nottinghamshire County Council ,Stationery,Debit,38.7,amazon.co.uk m65o92bm4 a,27.06.2019,ASCHPP
Nottinghamshire County Council ,Family Financial Assistance,Debit,30,the furniture project,01.05.2019,"Children, Fam"
Nottinghamshire County Council ,Family Financial Assistance,Debit,5,mansfield district cou,29.04.2019,"Children, Fam"
Nottinghamshire County Council ,Family Financial Assistance,Debit,200,affordable carpets,24.04.2019,"Children, Fam"
Nottinghamshire County Council ,Family Financial Assistance,Debit,15,mansfield district cou,12.04.2019,"Children, Fam"
Nottinghamshire County Council ,Family Financial Assistance,Debit,9,the furniture project,13.05.2019,"Children, Fam"
Nottinghamshire County Council ,Family Financial Assistance,Debit,5,mansfield district cou,20.05.2019,"Children, Fam"
Nottinghamshire County Council ,Family Financial Assistance,Debit,15,wly completesave.co.uk,30.05.2019,"Children, Fam"
Nottinghamshire County Council ,Family Financial Assistance,Debit,20,mansfield district cou,02.04.2019,"Children, Fam"
Nottinghamshire County Council ,Family Financial Assistance,Debit,35,the furniture project,02.04.2019,"Children, Fam"
Nottinghamshire County Council ,Family Financial Assistance,Debit,15,mansfield district cou,04.06.2019,"Children, Fam"
Nottinghamshire County Council ,Family Financial Assistance,Debit,309,united carpets,14.06.2019,"Children, Fam"
Nottinghamshire County Council ,Family Financial Assistance,Debit,5,mansfield district cou,24.06.2019,"Children, Fam"
Nottinghamshire County Council ,Family Financial Assistance,Debit,15,wly completesave.co.uk,30.06.2019,"Children, Fam"
Nottinghamshire County Council ,Provisions,Debit,17.48,amazon.co.uk m60za3jq4,13.06.2019,ASCHPP
Nottinghamshire County Council ,Office / General Equipment,Debit,27,asda superstore 04030,07.06.2019,ASCHPP
Nottinghamshire County Council ,Office / General Equipment,Debit,21.99,amznmktplace,11.06.2019,ASCHPP
Nottinghamshire County Council ,Office / General Equipment,Debit,21.99,amznmktplace,11.06.2019,ASCHPP
Nottinghamshire County Council ,Office / General Equipment,Debit,21.99,amznmktplace,11.06.2019,ASCHPP
Nottinghamshire County Council ,Office / General Equipment,Debit,21.56,amznmktplace,20.06.2019,ASCHPP
Nottinghamshire County Council ,Office / General Equipment,Debit,21,amznmktplace,20.06.2019,ASCHPP
Nottinghamshire County Council ,Office / General Equipment,Debit,351,amznmktplace,25.06.2019,ASCHPP
Nottinghamshire County Council ,Office / General Equipment,Debit,351,amznmktplace,16.05.2019,ASCHPP
Nottinghamshire County Council ,Office / General Equipment,Debit,18.47,amzn mktp uk mn6uj85d4,17.05.2019,ASCHPP
Nottinghamshire County Council ,Office / General Equipment,Debit,7,amznmktplace,31.05.2019,ASCHPP
Nottinghamshire County Council ,Office / General Equipment,Debit,6.02,amznmktplace,31.05.2019,ASCHPP
Nottinghamshire County Council ,Office / General Equipment,Debit,5.09,amznmktplace,03.06.2019,ASCHPP
Nottinghamshire County Council ,Office / General Equipment,Debit,38,amazon.co.uk mn4078wz4,03.06.2019,ASCHPP
Nottinghamshire County Council ,Office / General Equipment,Debit,293,amazon.co.uk mn48z04e4 a,02.05.2019,ASCHPP
Nottinghamshire County Council ,Office / General Equipment,Debit,149.61,amazon.co.uk mz58c0y14 a,28.04.2019,ASCHPP
Nottinghamshire County Council ,Office / General Equipment,Debit,26.85,amznmktplace amazon.co.u,28.04.2019,ASCHPP
Nottinghamshire County Council ,Office / General Equipment,Debit,7,amznmktplace amazon.co.u,29.04.2019,ASCHPP
Nottinghamshire County Council ,Office / General Equipment,Debit,24.68,amznmktplace amazon.co.u,26.04.2019,ASCHPP
Nottinghamshire County Council ,Activities & Support,Debit,350,h and h flooring,11.06.2019,Resources
Nottinghamshire County Council ,Activities & Support,Debit,85,highstreetvouchers,01.05.2019,"Children, Fam"
Nottinghamshire County Council ,Hardware Maintenance,Debit,13.35,amzn mktp uk mn79w9sy4,23.05.2019,Place
Nottinghamshire County Council ,Hardware Maintenance,Debit,95.88,dropbox,17.06.2019,Place
Nottinghamshire County Council ,Provisions,Debit,43.73,trainline,30.04.2019,"Children, Fam"
Nottinghamshire County Council ,Provisions,Debit,33.72,tesco stores 5437,29.04.2019,"Children, Fam"
Nottinghamshire County Council ,Provisions,Debit,29,tesco stores 5437,29.04.2019,"Children, Fam"
Nottinghamshire County Council ,Provisions,Debit,27.57,asda store ston in as,08.04.2019,"Children, Fam"
Nottinghamshire County Council ,Provisions,Debit,7.35,asda store ston in as,06.04.2019,"Children, Fam"
Nottinghamshire County Council ,Provisions,Debit,9.46,asda store ston in as,10.05.2019,"Children, Fam"
Nottinghamshire County Council ,Provisions,Debit,39.59,tesco stores 5437,13.05.2019,"Children, Fam"
Nottinghamshire County Council ,Provisions,Debit,13.17,aldi stores,14.05.2019,"Children, Fam"
Nottinghamshire County Council ,Provisions,Debit,31.47,www.dominos.co.uk,21.05.2019,"Children, Fam"
Nottinghamshire County Council ,Provisions,Debit,5.39,tesco stores 5437,21.05.2019,"Children, Fam"
Nottinghamshire County Council ,Provisions,Debit,6,b  q 1261,05.06.2019,"Children, Fam"
Nottinghamshire County Council ,Provisions,Debit,55.47,dominos pizza uk  irela,05.06.2019,"Children, Fam"
Nottinghamshire County Council ,Provisions,Debit,8.79,aldi stores,05.06.2019,"Children, Fam"
Nottinghamshire County Council ,Provisions,Debit,8.32,asda store ston in as,07.06.2019,"Children, Fam"
Nottinghamshire County Council ,Provisions,Debit,7.38,aldi stores,21.06.2019,"Children, Fam"
Nottinghamshire County Council ,Provisions,Debit,5.5,asda store ston in as,22.06.2019,"Children, Fam"
Nottinghamshire County Council ,Provisions,Debit,9.75,tesco stores 5437,24.06.2019,"Children, Fam"
Nottinghamshire County Council ,Provisions,Debit,5.19,heron foods ltd,24.06.2019,"Children, Fam"
Nottinghamshire County Council ,Provisions,Debit,6.2,trainline,25.06.2019,"Children, Fam"
Nottinghamshire County Council ,Office / General Equipment,Debit,49.99,amazon.co.uk mn7uj0jj4,06.05.2019,Resources
Nottinghamshire County Council ,Aids & Appliances,Debit,69.42,amz medisupplies,14.05.2019,Resources
Nottinghamshire County Council ,Aids & Appliances,Debit,40,www.dentocare.co.uk,14.05.2019,Resources
Nottinghamshire County Council ,Fixtures & Fittings,Debit,27.29,amznmktplace,16.05.2019,ASCHPP
Nottinghamshire County Council ,Security,Debit,7.26,fast key services limi,24.05.2019,Resources
Nottinghamshire County Council ,Activities & Support,Debit,10.25,fast key services limi,30.05.2019,Resources
Nottinghamshire County Council ,Cleaning & Domestic Equipment,Debit,130.74,www.aosonline.co.uk,09.04.2019,Resources
Nottinghamshire County Council ,Protective Clothing,Debit,25.95,amznmktplace,12.06.2019,ASCHPP
Nottinghamshire County Council ,Vehicles Repairs & Maintenance,Debit,258.5,aa b2b,17.06.2019,ASCHPP
Nottinghamshire County Council ,Provisions,Debit,22.14,tesco stores 5437,02.04.2019,"Children, Fam"
Nottinghamshire County Council ,Provisions,Debit,37.82,tesco stores 5437,02.04.2019,"Children, Fam"
Nottinghamshire County Council ,Provisions,Debit,24.45,asda superstore 04261,04.06.2019,"Children, Fam"
Nottinghamshire County Council ,Provisions,Debit,22.19,asda superstore 04261,04.06.2019,"Children, Fam"
Nottinghamshire County Council ,Provisions,Debit,10.18,tesco stores 5437,07.06.2019,"Children, Fam"
Nottinghamshire County Council ,Provisions,Debit,2.18,heron foods ltd,11.06.2019,"Children, Fam"
Nottinghamshire County Council ,Provisions,Debit,6,poundland,14.06.2019,"Children, Fam"
Nottinghamshire County Council ,Provisions,Debit,10,the works,14.06.2019,"Children, Fam"
Nottinghamshire County Council ,Provisions,Debit,29.28,tesco stores 5437,18.06.2019,"Children, Fam"
Nottinghamshire County Council ,Provisions,Debit,11.31,tesco stores 5437,18.06.2019,"Children, Fam"
Nottinghamshire County Council ,Provisions,Debit,114.37,booker limited mansfield,19.06.2019,"Children, Fam"
Nottinghamshire County Council ,Provisions,Debit,5.79,tesco stores 5437,25.06.2019,"Children, Fam"
Nottinghamshire County Council ,Provisions,Debit,29.4,tesco stores 5437,25.06.2019,"Children, Fam"
Nottinghamshire County Council ,Provisions,Debit,30.6,tesco stores 5437,28.06.2019,"Children, Fam"
Nottinghamshire County Council ,Provisions,Debit,20,primark,27.06.2019,"Children, Fam"
Nottinghamshire County Council ,Provisions,Debit,20.01,asda superstore 04261,07.05.2019,"Children, Fam"
Nottinghamshire County Council ,Provisions,Debit,32.84,asda superstore 04261,07.05.2019,"Children, Fam"
Nottinghamshire County Council ,Provisions,Debit,12.9,tesco stores 5437,10.05.2019,"Children, Fam"
Nottinghamshire County Council ,Provisions,Debit,42.53,tesco stores 5437,14.05.2019,"Children, Fam"
Nottinghamshire County Council ,Provisions,Debit,11.25,tesco stores 5437,14.05.2019,"Children, Fam"
Nottinghamshire County Council ,Provisions,Debit,9.56,bm retail ltd,17.05.2019,"Children, Fam"
Nottinghamshire County Council ,Provisions,Debit,9.38,heron foods ltd,17.05.2019,"Children, Fam"
Nottinghamshire County Council ,Provisions,Debit,26.11,tesco stores 5437,21.05.2019,"Children, Fam"
Nottinghamshire County Council ,Provisions,Debit,39,tesco stores 5437,21.05.2019,"Children, Fam"
Nottinghamshire County Council ,Provisions,Debit,138.56,baker ross,22.05.2019,"Children, Fam"
Nottinghamshire County Council ,Provisions,Debit,198.78,baker ross,22.05.2019,"Children, Fam"
Nottinghamshire County Council ,Provisions,Debit,11.13,tesco stores 5437,24.05.2019,"Children, Fam"
Nottinghamshire County Council ,Provisions,Debit,26.67,tesco stores 5437,30.04.2019,"Children, Fam"
Nottinghamshire County Council ,Provisions,Debit,14.6,tesco stores 5437,05.04.2019,"Children, Fam"
Nottinghamshire County Council ,Provisions,Debit,3.45,heron foods ltd,04.04.2019,"Children, Fam"
Nottinghamshire County Council ,Provisions,Debit,46.91,aldi stores,26.04.2019,"Children, Fam"
Nottinghamshire County Council ,Grounds Maintenance,Debit,19.92,new harrisons nursery lt,21.04.2019,"Children, Fam"
Nottinghamshire County Council ,Grounds Maintenance,Debit,38.38,b  m retail,16.04.2019,"Children, Fam"
Nottinghamshire County Council ,Provisions,Debit,134.68,aldi stores,15.04.2019,"Children, Fam"
Nottinghamshire County Council ,Personal Needs,Debit,29.98,tesco stores 5437,12.04.2019,"Children, Fam"
Nottinghamshire County Council ,Provisions,Debit,33.93,tesco stores 5437,12.04.2019,"Children, Fam"
Nottinghamshire County Council ,Holidays,Debit,14.15,alton towers,11.04.2019,"Children, Fam"
Nottinghamshire County Council ,Office / General Equipment,Debit,118,atp admissions,11.04.2019,"Children, Fam"
Nottinghamshire County Council ,Personal Needs,Debit,22.14,iceland,09.04.2019,"Children, Fam"
Nottinghamshire County Council ,Personal Needs,Debit,27.1,tesco stores 5437,04.04.2019,"Children, Fam"
Nottinghamshire County Council ,Office / General Equipment,Debit,125.44,aldi stores,05.05.2019,"Children, Fam"
Nottinghamshire County Council ,Office / General Equipment,Debit,9.99,bm retail ltd,11.05.2019,"Children, Fam"
Nottinghamshire County Council ,Office / General Equipment,Debit,45.61,asda store ston in as,13.05.2019,"Children, Fam"
Nottinghamshire County Council ,Office / General Equipment,Debit,55.05,j d sports fashion plc,17.05.2019,"Children, Fam"
Nottinghamshire County Council ,Office / General Equipment,Debit,19.99,bm retail ltd,30.05.2019,"Children, Fam"
Nottinghamshire County Council ,Office / General Equipment,Debit,22.56,bm retail ltd,30.05.2019,"Children, Fam"
Nottinghamshire County Council ,Clothing/Shoes/Uniforms,Debit,147.29,aldi stores,10.06.2019,"Children, Fam"
Nottinghamshire County Council ,Office / General Equipment,Debit,5.29,aldi stores,12.06.2019,"Children, Fam"
Nottinghamshire County Council ,Office / General Equipment,Debit,10,iceland,13.06.2019,"Children, Fam"
Nottinghamshire County Council ,Office / General Equipment,Debit,11.61,home bargains,17.06.2019,"Children, Fam"
Nottinghamshire County Council ,Office / General Equipment,Debit,7.49,poundstretcher 136,17.06.2019,"Children, Fam"
Nottinghamshire County Council ,Office / General Equipment,Debit,106.14,aldi 68 779,17.06.2019,"Children, Fam"
Nottinghamshire County Council ,Office / General Equipment,Debit,50,tesco stores 5437,20.06.2019,"Children, Fam"
Nottinghamshire County Council ,Office / General Equipment,Debit,40,tesco stores 5437,20.06.2019,"Children, Fam"
Nottinghamshire County Council ,Office / General Equipment,Debit,30.05,brandsmax.com,26.06.2019,"Children, Fam"
Nottinghamshire County Council ,Office / General Equipment,Debit,15,brandsmax.com,26.06.2019,"Children, Fam"
Nottinghamshire County Council ,Activities & Support,Debit,4.92,lidl gb nottingham,07.05.2019,"Children, Fam"
Nottinghamshire County Council ,Office / General Equipment,Debit,25,marksspencer plc,14.06.2019,"Children, Fam"
Nottinghamshire County Council ,Family Financial Assistance,Debit,116.4,wilko retail limit,04.06.2019,"Children, Fam"
Nottinghamshire County Council ,Family Financial Assistance,Debit,10,the carphone wareh,25.06.2019,"Children, Fam"
Nottinghamshire County Council ,Leaving Care - Home Establishment Grant,Debit,60,rhino uk,04.06.2019,"Children, Fam"
Nottinghamshire County Council ,Leaving Care - Home Establishment Grant,Debit,65.5,wilko.com,06.06.2019,"Children, Fam"
Nottinghamshire County Council ,Unplanned Needs and Financial Support,Debit,38.94,www.argos.co.uk,07.06.2019,"Children, Fam"
Nottinghamshire County Council ,Leaving Care - Home Establishment Grant,Debit,173.94,www.argos.co.uk,10.06.2019,"Children, Fam"
Nottinghamshire County Council ,Leaving Care - Home Establishment Grant,Debit,48,tesco stores 2995,14.06.2019,"Children, Fam"
Nottinghamshire County Council ,Leaving Care - Home Establishment Grant,Debit,154.5,tvlicensing.co.uk,17.06.2019,"Children, Fam"
Nottinghamshire County Council ,Leaving Care - Home Establishment Grant,Debit,375.95,www.argos.co.uk,24.06.2019,"Children, Fam"
Nottinghamshire County Council ,Leaving Care - Home Establishment Grant,Debit,154.5,tvlicensing.co.uk,28.06.2019,"Children, Fam"
Nottinghamshire County Council ,Teaching Equipment,Debit,33.33,the handicentre,14.05.2019,"Children, Fam"
Nottinghamshire County Council ,Teaching Equipment,Debit,50.87,findel education,12.04.2019,"Children, Fam"
Nottinghamshire County Council ,Teaching Equipment,Debit,99.95,aldi stores,25.06.2019,"Children, Fam"
Nottinghamshire County Council ,Teaching Equipment,Debit,139.93,aldi 31 779,27.06.2019,"Children, Fam"
Nottinghamshire County Council ,Activities & Support,Debit,90.54,aldi 39 779,23.05.2019,ASCHPP
Nottinghamshire County Council ,Activities & Support,Debit,23.3,mansfield s.stn,23.05.2019,ASCHPP
Nottinghamshire County Council ,Activities & Support,Debit,13,sainsburys s/mkts,23.05.2019,ASCHPP
Nottinghamshire County Council ,Activities & Support,Debit,260,travelodge gb0000,24.05.2019,ASCHPP
Nottinghamshire County Council ,Activities & Support,Debit,497,travelodge gb0000,29.05.2019,ASCHPP
Nottinghamshire County Council ,Activities & Support,Debit,236,travelodge gb0000,05.06.2019,ASCHPP
Nottinghamshire County Council ,Activities & Support,Debit,355,travelodge gb0000,07.06.2019,ASCHPP
Nottinghamshire County Council ,Provisions,Debit,32.17,fast key services limi,02.05.2019,Resources
Nottinghamshire County Council ,Provisions,Debit,26.35,amazon.co.uk mz9o02i64,25.04.2019,Resources
Nottinghamshire County Council ,Provisions,Debit,36.08,fast key services limi,18.04.2019,Resources
Nottinghamshire County Council ,Provisions,Debit,26.19,fast key services limi,17.04.2019,Resources
Nottinghamshire County Council ,Provisions,Debit,32.17,fast key services limi,11.04.2019,Resources
Nottinghamshire County Council ,Provisions,Debit,26.35,amazon.co.uk mz08j3xi4,10.04.2019,Resources
Nottinghamshire County Council ,Provisions,Debit,5.96,w boyes  co ltd,04.06.2019,ASCHPP
Nottinghamshire County Council ,Provisions,Debit,15,tesco stores 2995,06.06.2019,ASCHPP
Nottinghamshire County Council ,Provisions,Debit,7,w boyes  co ltd,11.06.2019,ASCHPP
Nottinghamshire County Council ,Provisions,Debit,42.56,tesco stores 2995,11.06.2019,ASCHPP
Nottinghamshire County Council ,Provisions,Debit,78,paypal  felicitywar,14.06.2019,ASCHPP
Nottinghamshire County Council ,Provisions,Debit,8.1,tesco stores 2995,18.06.2019,ASCHPP
Nottinghamshire County Council ,Provisions,Debit,34.95,amznmktplace amazon.co.u,19.06.2019,ASCHPP
Nottinghamshire County Council ,Provisions,Debit,4.3,key diy,24.06.2019,ASCHPP
Nottinghamshire County Council ,Provisions,Debit,17.48,amznmktplace amazon.co.u,26.06.2019,ASCHPP
Nottinghamshire County Council ,Provisions,Debit,199.8,well pharmacy 200717,28.06.2019,ASCHPP
Nottinghamshire County Council ,Provisions,Debit,10.24,asda stores 4474,07.05.2019,ASCHPP
Nottinghamshire County Council ,Provisions,Debit,60.84,tesco stores 2995,08.05.2019,ASCHPP
Nottinghamshire County Council ,Provisions,Debit,12.08,amznmktplace amazon.co.u,08.05.2019,ASCHPP
Nottinghamshire County Council ,Provisions,Debit,20.36,amznmktplace,12.05.2019,ASCHPP
Nottinghamshire County Council ,Provisions,Debit,14,tesco stores 2995,14.05.2019,ASCHPP
Nottinghamshire County Council ,Provisions,Debit,21,tesco stores 2995,29.05.2019,ASCHPP
Nottinghamshire County Council ,Provisions,Debit,90,daily sparkle,31.05.2019,ASCHPP
Nottinghamshire County Council ,Provisions,Debit,18,tesco stores 2995,03.06.2019,ASCHPP
Nottinghamshire County Council ,Provisions,Debit,200,university of nottingham,01.05.2019,ASCHPP
Nottinghamshire County Council ,Provisions,Debit,31.28,amazon.co.uk mn8jh54i4 a,01.05.2019,ASCHPP
Nottinghamshire County Council ,Provisions,Debit,200,university of nottingham,01.05.2019,ASCHPP
Nottinghamshire County Council ,Provisions,Debit,32.39,amzn mktp uk mn1rz2c84 a,29.04.2019,ASCHPP
Nottinghamshire County Council ,Provisions,Debit,24.16,amzn mktp uk mn3n46c44,29.04.2019,ASCHPP
Nottinghamshire County Council ,Provisions,Debit,32.45,tesco stores 2995,16.04.2019,ASCHPP
Nottinghamshire County Council ,Family Financial Assistance,Debit,2.92,www.argos.co.uk,05.06.2019,"Children, Fam"
Nottinghamshire County Council ,Other Fees & Services,Debit,12,ncc card payment inter,10.06.2019,"Children, Fam"
Nottinghamshire County Council ,Other Fees & Services,Debit,12,ncc card payment inter,13.06.2019,"Children, Fam"
Nottinghamshire County Council ,Postages,Debit,1,the post office,29.04.2019,ASCHPP
Nottinghamshire County Council ,Cleaning Materials,Debit,5.05,home bargains worksop,24.04.2019,ASCHPP
Nottinghamshire County Council ,Hospitality,Debit,10.59,asda stores 4475,09.04.2019,ASCHPP
Nottinghamshire County Council ,Postages,Debit,2.98,amznmktplace,10.05.2019,ASCHPP
Nottinghamshire County Council ,Postages,Debit,2.85,amznmktplace,15.05.2019,ASCHPP
Nottinghamshire County Council ,Postages,Debit,20,amazon.co.uk mn5fa05a4,17.05.2019,ASCHPP
Nottinghamshire County Council ,Postages,Debit,4.28,amazon.co.uk mn43k4s74,24.05.2019,ASCHPP
Nottinghamshire County Council ,Postages,Debit,21.98,amazon.co.uk mn9bv52k4,24.05.2019,ASCHPP
Nottinghamshire County Council ,Postages,Debit,4.28,amazon.co.uk mn1nh97y4,27.05.2019,ASCHPP
Nottinghamshire County Council ,Postages,Debit,21.98,amazon.co.uk mn13837i4,27.05.2019,ASCHPP
Nottinghamshire County Council ,Other Fees & Services,Debit,11,http://www.derbyshire.,21.05.2019,"Children, Fam"
Nottinghamshire County Council ,Other Fees & Services,Debit,12,ncc card payment inter,21.05.2019,"Children, Fam"
Nottinghamshire County Council ,Other Fees & Services,Debit,23,ncc card payment inter,21.05.2019,"Children, Fam"
Nottinghamshire County Council ,Other Fees & Services,Debit,13.5,bcc register offic,21.05.2019,"Children, Fam"
Nottinghamshire County Council ,Stationery,Debit,88.2,amznmktplace,22.05.2019,"Children, Fam"
Nottinghamshire County Council ,Other Fees & Services,Debit,11,gen register office,03.06.2019,"Children, Fam"
Nottinghamshire County Council ,Other Fees & Services,Debit,11,doncaster mbc,03.06.2019,"Children, Fam"
Nottinghamshire County Council ,Specialist Equipment,Debit,21.95,www.coram.org.uk,15.04.2019,"Children, Fam"
Nottinghamshire County Council ,Other Fees & Services,Debit,22,lincolnshire cc card p,16.04.2019,"Children, Fam"
Nottinghamshire County Council ,Stationery,Debit,88.2,amznmktplace,15.04.2019,"Children, Fam"
Nottinghamshire County Council ,Specialist Equipment,Debit,12.46,amazon.co.uk mz2rc3mz4,11.04.2019,"Children, Fam"
Nottinghamshire County Council ,Specialist Equipment,Debit,9.99,amznmktplace,09.04.2019,"Children, Fam"
Nottinghamshire County Council ,Other Fees & Services,Credi,-12,ncc card payment,04.06.2019,"Children, Fam"
Nottinghamshire County Council ,Other Fees & Services,Debit,12,ncc card payment inter,04.06.2019,"Children, Fam"
Nottinghamshire County Council ,Other Fees & Services,Debit,11,http://www.derbyshire.,07.06.2019,"Children, Fam"
Nottinghamshire County Council ,Other Fees & Services,Debit,23,ncc card payment inter,07.06.2019,"Children, Fam"
Nottinghamshire County Council ,Other Fees & Services,Debit,35,gen register office,11.06.2019,"Children, Fam"
Nottinghamshire County Council ,Other Fees & Services,Debit,12,ncc card payment inter,11.06.2019,"Children, Fam"
Nottinghamshire County Council ,Other Fees & Services,Debit,12,leic city council,13.06.2019,"Children, Fam"
Nottinghamshire County Council ,Other Fees & Services,Debit,11,doncaster mbc,18.06.2019,"Children, Fam"
Nottinghamshire County Council ,Other Fees & Services,Credi,-11,leic city council,18.06.2019,"Children, Fam"
Nottinghamshire County Council ,Other Fees & Services,Debit,112.55,hm passport office,21.06.2019,"Children, Fam"
Nottinghamshire County Council ,Provisions,Debit,7.99,amazon prime m697m7ls4,09.06.2019,"Children, Fam"
Nottinghamshire County Council ,Provisions,Debit,5.85,facebk  vrfcelawc2,30.06.2019,"Children, Fam"
Nottinghamshire County Council ,Provisions,Debit,109.55,kennys,02.05.2019,"Children, Fam"
Nottinghamshire County Council ,Provisions,Debit,183.6,award scheme ltd,02.05.2019,"Children, Fam"
Nottinghamshire County Council ,Provisions,Debit,68.25,amzn mktp uk mz7er4iw4 a,25.04.2019,"Children, Fam"
Nottinghamshire County Council ,Minor Works,Debit,22.75,amzn mktp uk mz07d2in4 a,25.04.2019,"Children, Fam"
Nottinghamshire County Council ,Minor Works,Debit,7.99,amazon prime mz1yj3xy4,09.04.2019,"Children, Fam"
Nottinghamshire County Council ,Refuse Collection / Disposal,Debit,"1,554.20",ashfield district,09.04.2019,"Children, Fam"
Nottinghamshire County Council ,Subscriptions and Licences,Debit,168,award scheme ltd,08.04.2019,"Children, Fam"
Nottinghamshire County Council ,Provisions,Debit,7.99,amazon prime mn1rd9ef4,09.05.2019,"Children, Fam"
Nottinghamshire County Council ,Provisions,Debit,110,caravan park,29.05.2019,"Children, Fam"
Nottinghamshire County Council ,Office / General Equipment,Debit,42.82,dunelm online order,27.06.2019,ASCHPP
Nottinghamshire County Council ,Office / General Equipment,Debit,36.84,dunelm online order,27.06.2019,ASCHPP
Nottinghamshire County Council ,Office / General Equipment,Debit,38,timpson ltd,27.06.2019,ASCHPP
Nottinghamshire County Council ,Office / General Equipment,Debit,20,timpson ltd,02.04.2019,ASCHPP
Nottinghamshire County Council ,Office / General Equipment,Debit,32,co-op group 065071,02.04.2019,ASCHPP
Nottinghamshire County Council ,Office / General Equipment,Debit,80.97,amznmktplace,11.04.2019,ASCHPP
Nottinghamshire County Council ,Office / General Equipment,Debit,29.92,co-op group 065071,07.05.2019,ASCHPP
Nottinghamshire County Council ,Office / General Equipment,Debit,121.69,amazon.co.uk mn69m0en4 a,10.05.2019,ASCHPP
Nottinghamshire County Council ,Office / General Equipment,Debit,23.04,post office counter,15.05.2019,ASCHPP
Nottinghamshire County Council ,Office / General Equipment,Debit,21.18,www.ironmongerydirect.,23.05.2019,ASCHPP
Nottinghamshire County Council ,Office / General Equipment,Debit,9.14,co-op group 065071,01.06.2019,ASCHPP
Nottinghamshire County Council ,Leaving Care - Home Establishment Grant,Debit,4.26,waitrose 227,01.05.2019,"Children, Fam"
Nottinghamshire County Council ,Leaving Care - Home Establishment Grant,Debit,45,formula one health and f,24.04.2019,"Children, Fam"
Nottinghamshire County Council ,Leaving Care - Home Establishment Grant,Debit,4.2,lace market car park u,24.04.2019,"Children, Fam"
Nottinghamshire County Council ,Leaving Care - Home Establishment Grant,Debit,55,domestic supplies ltd,17.04.2019,"Children, Fam"
Nottinghamshire County Council ,Other Fees & Services,Debit,300,west park leisure cent,10.05.2019,"Children, Fam"
Nottinghamshire County Council ,Other Fees & Services,Debit,105,sportsdirect 236,17.05.2019,"Children, Fam"
Nottinghamshire County Council ,Unplanned Needs and Financial Support,Debit,20,dvla driver online,17.05.2019,"Children, Fam"
Nottinghamshire County Council ,Leaving Care - Home Establishment Grant,Debit,139.99,www.argos.co.uk,24.05.2019,"Children, Fam"
Nottinghamshire County Council ,Leaving Care - Home Establishment Grant,Debit,154.5,tvlicensing.co.uk,24.05.2019,"Children, Fam"
Nottinghamshire County Council ,Leaving Care - Home Establishment Grant,Debit,110,currys online,07.06.2019,"Children, Fam"
Nottinghamshire County Council ,Leaving Care - Home Establishment Grant,Debit,10,argos arnold,20.06.2019,"Children, Fam"
Nottinghamshire County Council ,Activities & Support,Debit,465,ncc cpu residents,05.06.2019,ASCHPP
Nottinghamshire County Council ,Activities & Support,Debit,27.3,tesco stores 2995,21.06.2019,ASCHPP
Nottinghamshire County Council ,Unplanned Needs and Financial Support,Debit,100,bellvue ltd,18.04.2019,"Children, Fam"
Nottinghamshire County Council ,Unplanned Needs and Financial Support,Debit,4.9,intu victoria centre,11.04.2019,"Children, Fam"
Nottinghamshire County Council ,Unplanned Needs and Financial Support,Debit,445.94,argos direct,09.05.2019,"Children, Fam"
Nottinghamshire County Council ,Unplanned Needs and Financial Support,Debit,6.9,intu victoria centre,19.06.2019,"Children, Fam"
Nottinghamshire County Council ,Unplanned Needs and Financial Support,Debit,36,tesco stores 5379,20.06.2019,"Children, Fam"
Nottinghamshire County Council ,Unplanned Needs and Financial Support,Debit,103.94,argos direct,21.06.2019,"Children, Fam"
Nottinghamshire County Council ,Unplanned Needs and Financial Support,Debit,8.37,mcdonalds,26.06.2019,"Children, Fam"
Nottinghamshire County Council ,Office / General Equipment,Debit,39.13,amznmktplace,03.05.2019,Resources
Nottinghamshire County Council ,Office / General Equipment,Debit,35.95,amznmktplace,05.05.2019,Resources
Nottinghamshire County Council ,Office / General Equipment,Debit,6.59,amznmktplace,04.05.2019,Resources
Nottinghamshire County Council ,Office / General Equipment,Debit,2.48,amznmktplace,07.05.2019,Resources
Nottinghamshire County Council ,Office / General Equipment,Debit,2.48,amznmktplace,07.05.2019,Resources
Nottinghamshire County Council ,Office / General Equipment,Debit,2.48,amznmktplace,07.05.2019,Resources
Nottinghamshire County Council ,Office / General Equipment,Debit,23.55,amznmktplace,07.05.2019,Resources
Nottinghamshire County Council ,Office / General Equipment,Credi,-45,notts county council,08.05.2019,Resources
Nottinghamshire County Council ,Office / General Equipment,Debit,45,notts county council,08.05.2019,Resources
Nottinghamshire County Council ,Office / General Equipment,Credi,-45,notts county council,08.05.2019,Resources
Nottinghamshire County Council ,Office / General Equipment,Credi,-45,notts county council,08.05.2019,Resources
Nottinghamshire County Council ,Office / General Equipment,Debit,45,notts county council,08.05.2019,Resources
Nottinghamshire County Council ,Office / General Equipment,Credi,-45,notts county council,08.05.2019,Resources
Nottinghamshire County Council ,Office / General Equipment,Debit,45,notts county council,08.05.2019,Resources
Nottinghamshire County Council ,Office / General Equipment,Debit,45,notts county council,08.05.2019,Resources
Nottinghamshire County Council ,Office / General Equipment,Credi,-45,notts county council,08.05.2019,Resources
Nottinghamshire County Council ,Office / General Equipment,Debit,45,notts county council,08.05.2019,Resources
Nottinghamshire County Council ,Office / General Equipment,Debit,53.98,amznmktplace amazon.co.u,14.05.2019,Resources
Nottinghamshire County Council ,Office / General Equipment,Debit,463,marksspencer plc,15.05.2019,Resources
Nottinghamshire County Council ,Office / General Equipment,Debit,39.13,amznmktplace amazon.co.u,15.05.2019,Resources
Nottinghamshire County Council ,Office / General Equipment,Debit,69.5,marksspencer plc,15.05.2019,Resources
Nottinghamshire County Council ,Office / General Equipment,Debit,10,notts county council,21.05.2019,Resources
Nottinghamshire County Council ,Office / General Equipment,Debit,38.4,media  communications l,21.05.2019,Resources
Nottinghamshire County Council ,Office / General Equipment,Debit,10,notts county council,21.05.2019,Resources
Nottinghamshire County Council ,Office / General Equipment,Credi,-10,notts county council,21.05.2019,Resources
Nottinghamshire County Council ,Office / General Equipment,Credi,-10,notts county council,21.05.2019,Resources
Nottinghamshire County Council ,Office / General Equipment,Debit,10.96,amazon.co.uk mn09t0s94,23.05.2019,Resources
Nottinghamshire County Council ,Office / General Equipment,Debit,10.96,amazon.co.uk mn9mx6sx4,23.05.2019,Resources
Nottinghamshire County Council ,Office / General Equipment,Debit,10.96,amazon.co.uk mn9m41s44,23.05.2019,Resources
Nottinghamshire County Council ,Office / General Equipment,Debit,26.94,amazon.co.uk mn3mv5sz4 a,23.05.2019,Resources
Nottinghamshire County Council ,Office / General Equipment,Debit,26.97,amznmktplace amazon.co.u,24.05.2019,Resources
Nottinghamshire County Council ,Office / General Equipment,Credi,-10,notts county council,29.05.2019,Resources
Nottinghamshire County Council ,Office / General Equipment,Debit,10,notts county council,29.05.2019,Resources
Nottinghamshire County Council ,Office / General Equipment,Credi,-25,marksspencer plc,30.05.2019,Resources
Nottinghamshire County Council ,Office / General Equipment,Credi,-103,marksspencer plc,30.05.2019,Resources
Nottinghamshire County Council ,Office / General Equipment,Credi,-25,marksspencer plc,30.05.2019,Resources
Nottinghamshire County Council ,Office / General Equipment,Debit,154.5,tvlicensing.co.uk,30.04.2019,Resources
Nottinghamshire County Council ,Office / General Equipment,Debit,6,wm morrisons store,30.04.2019,Resources
Nottinghamshire County Council ,Office / General Equipment,Credi,-94.93,amz amoretu,30.04.2019,Resources
Nottinghamshire County Council ,Office / General Equipment,Credi,-12.99,amz amoretu,30.04.2019,Resources
Nottinghamshire County Council ,Office / General Equipment,Credi,-99.84,adobe  id creative cld,24.04.2019,Resources
Nottinghamshire County Council ,Office / General Equipment,Debit,9.9,amznmktplace,24.04.2019,Resources
Nottinghamshire County Council ,Office / General Equipment,Debit,17.55,amznmktplace,23.04.2019,Resources
Nottinghamshire County Council ,Office / General Equipment,Debit,17.97,amzn mktp uk mz4pz09v4,23.04.2019,Resources
Nottinghamshire County Council ,Office / General Equipment,Debit,179.58,amznmktplace amazon.co.u,22.04.2019,Resources
Nottinghamshire County Council ,Office / General Equipment,Debit,94.99,amznmktplace,17.04.2019,Resources
Nottinghamshire County Council ,Office / General Equipment,Debit,94.99,amznmktplace,17.04.2019,Resources
Nottinghamshire County Council ,Office / General Equipment,Debit,3.99,amznmktplace,16.04.2019,Resources
Nottinghamshire County Council ,Office / General Equipment,Debit,15.28,wm morrisons store,16.04.2019,Resources
Nottinghamshire County Council ,Office / General Equipment,Debit,3.99,amznmktplace,16.04.2019,Resources
Nottinghamshire County Council ,Office / General Equipment,Debit,41,wm morrisons store,16.04.2019,Resources
Nottinghamshire County Council ,Office / General Equipment,Debit,3.99,amznmktplace,16.04.2019,Resources
Nottinghamshire County Council ,Office / General Equipment,Debit,10.99,amznmktplace,16.04.2019,Resources
Nottinghamshire County Council ,Office / General Equipment,Debit,61.52,amzn mktp uk mz9vy0b74,15.04.2019,Resources
Nottinghamshire County Council ,Office / General Equipment,Debit,7.99,amznmktplace,15.04.2019,Resources
Nottinghamshire County Council ,Office / General Equipment,Debit,8.99,amznmktplace,15.04.2019,Resources
Nottinghamshire County Council ,Office / General Equipment,Debit,94.93,amzn mktp uk mz88e5hl4,14.04.2019,Resources
Nottinghamshire County Council ,Office / General Equipment,Debit,12.99,amzn mktp uk mz8au0bh4,14.04.2019,Resources
Nottinghamshire County Council ,Office / General Equipment,Debit,44,notts county council,10.04.2019,Resources
Nottinghamshire County Council ,Office / General Equipment,Credi,-44,notts county council,10.04.2019,Resources
Nottinghamshire County Council ,Office / General Equipment,Debit,18.9,wm morrisons store,04.06.2019,Resources
Nottinghamshire County Council ,Office / General Equipment,Debit,15.45,tesco stores 2702,04.06.2019,Resources
Nottinghamshire County Council ,Office / General Equipment,Debit,214,marksspencer plc,05.06.2019,Resources
Nottinghamshire County Council ,Office / General Equipment,Debit,12.14,amazon.co.uk m60ml23e4,11.06.2019,Resources
Nottinghamshire County Council ,Office / General Equipment,Debit,70,notts county council,11.06.2019,Resources
Nottinghamshire County Council ,Office / General Equipment,Credi,-70,notts county council,11.06.2019,Resources
Nottinghamshire County Council ,Office / General Equipment,Debit,27.98,amazon.co.uk m69n86354,11.06.2019,Resources
Nottinghamshire County Council ,Office / General Equipment,Debit,55.96,amazon.co.uk m637863m4,11.06.2019,Resources
Nottinghamshire County Council ,Office / General Equipment,Debit,4.5,amznmktplace amazon.co.u,11.06.2019,Resources
Nottinghamshire County Council ,Office / General Equipment,Debit,111.92,amazon.co.uk m65ny7334,12.06.2019,Resources
Nottinghamshire County Council ,Office / General Equipment,Debit,309,marksspencer plc,12.06.2019,Resources
Nottinghamshire County Council ,Office / General Equipment,Debit,31.6,amznmktplace amazon.co.u,13.06.2019,Resources
Nottinghamshire County Council ,Office / General Equipment,Debit,8.99,amznmktplace,14.06.2019,Resources
Nottinghamshire County Council ,Office / General Equipment,Debit,23.99,showstoppers ltd,14.06.2019,Resources
Nottinghamshire County Council ,Provisions,Debit,20.1,forest town chippy,05.06.2019,"Children, Fam"
Nottinghamshire County Council ,Provisions,Debit,205,mansfield leisure,06.06.2019,"Children, Fam"
Nottinghamshire County Council ,Provisions,Debit,205,mansfield leisure,06.06.2019,"Children, Fam"
Nottinghamshire County Council ,Provisions,Debit,7.79,farmfoods limited,07.06.2019,"Children, Fam"
Nottinghamshire County Council ,Provisions,Debit,6.2,the black pearl,07.06.2019,"Children, Fam"
Nottinghamshire County Council ,Provisions,Debit,13.69,farmfoods limited,13.06.2019,"Children, Fam"
Nottinghamshire County Council ,Provisions,Debit,17.3,meden vale plaice,18.06.2019,"Children, Fam"
Nottinghamshire County Council ,Provisions,Debit,13.1,forest town chippy,19.06.2019,"Children, Fam"
Nottinghamshire County Council ,Provisions,Debit,13.67,farmfoods limited,21.06.2019,"Children, Fam"
Nottinghamshire County Council ,Provisions,Debit,5.45,tesco stores 5379,24.06.2019,"Children, Fam"
Nottinghamshire County Council ,Provisions,Debit,20.7,forest town chippy,03.04.2019,"Children, Fam"
Nottinghamshire County Council ,Provisions,Debit,24.2,daves place,10.05.2019,"Children, Fam"
Nottinghamshire County Council ,Provisions,Debit,15.8,meden vale plaice,14.05.2019,"Children, Fam"
Nottinghamshire County Council ,Provisions,Debit,25.88,tesco stores 5437,17.05.2019,"Children, Fam"
Nottinghamshire County Council ,Provisions,Debit,59.99,argos ltd,19.05.2019,"Children, Fam"
Nottinghamshire County Council ,Provisions,Debit,6.5,meden vale plaice,21.05.2019,"Children, Fam"
Nottinghamshire County Council ,Provisions,Debit,200,mansfield,22.05.2019,"Children, Fam"
Nottinghamshire County Council ,Provisions,Debit,14.77,farmfoods limited,23.05.2019,"Children, Fam"
Nottinghamshire County Council ,Provisions,Debit,2.33,tesco stores 5379,23.05.2019,"Children, Fam"
Nottinghamshire County Council ,Provisions,Debit,32.9,magnum vehicle solutions,23.05.2019,"Children, Fam"
Nottinghamshire County Council ,Provisions,Debit,13.98,halfords 0900,23.05.2019,"Children, Fam"
Nottinghamshire County Council ,Provisions,Debit,19.26,tesco stores 5379,04.04.2019,"Children, Fam"
Nottinghamshire County Council ,Provisions,Debit,21,b  q 1241,26.06.2019,"Children, Fam"
Nottinghamshire County Council ,Provisions,Debit,283.1,currys,04.06.2019,"Children, Fam"
Nottinghamshire County Council ,Provisions,Debit,15.39,amazon.co.uk m66646c84,04.06.2019,"Children, Fam"
Nottinghamshire County Council ,Provisions,Debit,210,currys,04.06.2019,"Children, Fam"
Nottinghamshire County Council ,Provisions,Debit,31.99,amzn mktp uk m61v94ox4 a,05.06.2019,"Children, Fam"
Nottinghamshire County Council ,Provisions,Debit,19.77,mansfield1307,05.06.2019,"Children, Fam"
Nottinghamshire County Council ,Provisions,Credi,-0.49,mansfield1307,06.06.2019,"Children, Fam"
Nottinghamshire County Council ,Provisions,Debit,84.99,amznmktplace,11.06.2019,"Children, Fam"
Nottinghamshire County Council ,Provisions,Debit,5.29,toolstation ltd,21.06.2019,"Children, Fam"
Nottinghamshire County Council ,Provisions,Debit,3.99,paypal  onlinesells,24.06.2019,"Children, Fam"
Nottinghamshire County Council ,Provisions,Debit,14,wickes nottingham centra,26.06.2019,"Children, Fam"
Nottinghamshire County Council ,Provisions,Debit,15,argos ltd,28.06.2019,"Children, Fam"
Nottinghamshire County Council ,Provisions,Debit,21.9,co-op group 070325,03.04.2019,"Children, Fam"
Nottinghamshire County Council ,Provisions,Debit,855.32,bookerecomm,30.04.2019,"Children, Fam"
Nottinghamshire County Council ,Provisions,Debit,31.2,amazon.co.uk mn2s07ov4 a,29.04.2019,"Children, Fam"
Nottinghamshire County Council ,Provisions,Debit,180,amznmktplace,29.04.2019,"Children, Fam"
Nottinghamshire County Council ,Provisions,Debit,23.82,amznmktplace,28.04.2019,"Children, Fam"
Nottinghamshire County Council ,Provisions,Debit,191.98,www.nisbets.com,27.04.2019,"Children, Fam"
Nottinghamshire County Council ,Provisions,Debit,177.98,amznmktplace,15.04.2019,"Children, Fam"
Nottinghamshire County Council ,Provisions,Debit,450,ikea ltd 263 nottingham,04.04.2019,"Children, Fam"
,Provisions,Debit,17.9,newey  eyre,02.05.2019,"Children, Fam"
,Provisions,Debit,30,newey  eyre,02.05.2019,"Children, Fam"
,Provisions,Debit,14.35,amznmktplace,04.05.2019,"Children, Fam"
,Provisions,Debit,15.84,amznmktplace,06.05.2019,"Children, Fam"
,Provisions,Debit,149.99,amzn mktp uk mn2jf0j64,07.05.2019,"Children, Fam"
,Provisions,Debit,19.98,amzn mktp uk mn7yi61p4,10.05.2019,"Children, Fam"
,Provisions,Debit,3.25,amznmktplace,10.05.2019,"Children, Fam"
,Provisions,Debit,5.08,tesco stores 2702,15.05.2019,"Children, Fam"
,Provisions,Debit,7,the works,20.05.2019,"Children, Fam"
,Provisions,Debit,12.95,amznmktplace amazon.co.u,23.05.2019,"Children, Fam"
,Provisions,Debit,1.95,amznmktplace,03.06.2019,"Children, Fam"
,Provisions,Debit,55,collections,03.06.2019,"Children, Fam"
Nottinghamshire County Council ,Teaching Equipment,Debit,6.99,amznmktplace,08.05.2019,"Children, Fam"
Nottinghamshire County Council ,Office / General Equipment,Debit,5.99,amznmktplace,08.05.2019,"Children, Fam"
Nottinghamshire County Council ,Minor Works,Debit,5.99,amznmktplace,08.05.2019,"Children, Fam"
Nottinghamshire County Council ,Catering Equipment,Debit,11.9,amzn mktp uk mn4wn5e54,08.05.2019,"Children, Fam"
Nottinghamshire County Council ,Minor Works,Debit,7.94,amzn mktp uk mn4e03es4,09.05.2019,"Children, Fam"
Nottinghamshire County Council ,Minor Works,Debit,9.99,amznmktplace,09.05.2019,"Children, Fam"
Nottinghamshire County Council ,Stationery,Debit,2.99,amznmktplace,10.05.2019,"Children, Fam"
Nottinghamshire County Council ,Stationery,Debit,2.99,amznmktplace,10.05.2019,"Children, Fam"
Nottinghamshire County Council ,Stationery,Debit,2.99,amznmktplace,10.05.2019,"Children, Fam"
Nottinghamshire County Council ,Minor Works,Debit,14.99,amzn mktp uk mn91z1094 a,09.05.2019,"Children, Fam"
Nottinghamshire County Council ,Postages,Debit,7.4,the post office,13.05.2019,"Children, Fam"
Nottinghamshire County Council ,Minor Works,Debit,1.98,amznmktplace,15.05.2019,"Children, Fam"
Nottinghamshire County Council ,First Aid Equipment Purchases,Debit,6.5,amazon.co.uk mn1r08vl4,15.05.2019,"Children, Fam"
Nottinghamshire County Council ,Office / General Equipment,Debit,18.95,paypal  hopedigital,17.05.2019,"Children, Fam"
Nottinghamshire County Council ,Provisions,Debit,57.7,middletons dairy limit,17.05.2019,"Children, Fam"
Nottinghamshire County Council ,Office / General Equipment,Debit,199.87,aa ve assessments,17.05.2019,"Children, Fam"
Nottinghamshire County Council ,Provisions,Debit,25.05,barrons of hathersage,21.05.2019,"Children, Fam"
Nottinghamshire County Council ,Postages,Debit,6.5,the post office,22.05.2019,"Children, Fam"
Nottinghamshire County Council ,Teaching Equipment,Debit,23.98,amznmktplace amazon.co.u,27.05.2019,"Children, Fam"
Nottinghamshire County Council ,Teaching Equipment,Debit,26.47,amznmktplace amazon.co.u,05.06.2019,"Children, Fam"
Nottinghamshire County Council ,Provisions,Debit,46.1,js online grocery,17.06.2019,"Children, Fam"
Nottinghamshire County Council ,Office / General Equipment,Debit,6.95,the riverside herb centr,18.06.2019,"Children, Fam"
Nottinghamshire County Council ,Provisions,Debit,49.95,js online grocery,19.06.2019,"Children, Fam"
Nottinghamshire County Council ,Teaching Equipment,Debit,26.97,sportsdirect.com,18.06.2019,"Children, Fam"
Nottinghamshire County Council ,Provisions,Debit,93.5,js online grocery,22.06.2019,"Children, Fam"
Nottinghamshire County Council ,Cleaning Materials,Debit,37.99,amznmktplace,25.06.2019,"Children, Fam"
Nottinghamshire County Council ,Provisions,Debit,68.75,js online grocery,25.06.2019,"Children, Fam"
Nottinghamshire County Council ,Cleaning Materials,Debit,18.99,amznmktplace amazon.co.u,26.06.2019,"Children, Fam"
Nottinghamshire County Council ,DBS Checks,Debit,15,wm morrisons store,07.05.2019,"Children, Fam"
Nottinghamshire County Council ,DBS Checks,Debit,33.5,ken ward sports speciali,10.05.2019,"Children, Fam"
Nottinghamshire County Council ,DBS Checks,Debit,15,asda store ston in as,13.05.2019,"Children, Fam"
Nottinghamshire County Council ,DBS Checks,Debit,21.15,sharif and sons supersto,14.05.2019,"Children, Fam"
Nottinghamshire County Council ,DBS Checks,Debit,25.05,sharif and sons supersto,14.05.2019,"Children, Fam"
Nottinghamshire County Council ,DBS Checks,Debit,182.95,www.argos.co.uk,16.05.2019,"Children, Fam"
Nottinghamshire County Council ,DBS Checks,Debit,10,tesco store 2964,20.05.2019,"Children, Fam"
Nottinghamshire County Council ,DBS Checks,Debit,10,wm morrisons store,28.05.2019,"Children, Fam"
Nottinghamshire County Council ,DBS Checks,Debit,6.71,the bridge grocery,23.04.2019,"Children, Fam"
Nottinghamshire County Council ,DBS Checks,Debit,10,wm morrisons store,23.04.2019,"Children, Fam"
Nottinghamshire County Council ,DBS Checks,Debit,9.54,aldi 31 779,23.04.2019,"Children, Fam"
Nottinghamshire County Council ,DBS Checks,Debit,80,argos ltd,16.04.2019,"Children, Fam"
Nottinghamshire County Council ,DBS Checks,Debit,15,wm morrisons store,12.04.2019,"Children, Fam"
Nottinghamshire County Council ,DBS Checks,Debit,50,www.trentbarton.co.uk,11.06.2019,"Children, Fam"
Nottinghamshire County Council ,DBS Checks,Debit,113.44,asda groceries online,10.06.2019,"Children, Fam"
Nottinghamshire County Council ,DBS Checks,Debit,100,furniture wise,17.06.2019,"Children, Fam"
Nottinghamshire County Council ,DBS Checks,Debit,99.99,argos ltd,17.06.2019,"Children, Fam"
Nottinghamshire County Council ,DBS Checks,Debit,10,wm morrisons store,20.06.2019,"Children, Fam"
Nottinghamshire County Council ,DBS Checks,Debit,60.75,tesco stores 5379,24.06.2019,"Children, Fam"
Nottinghamshire County Council ,DBS Checks,Debit,15,tesco stores 5281,25.06.2019,"Children, Fam"
Nottinghamshire County Council ,Stationery,Debit,26.46,amznmktplace amazon.co.u,02.04.2019,Place
Nottinghamshire County Council ,Provisions,Debit,3,wm morrisons store,02.05.2019,"Children, Fam"
Nottinghamshire County Council ,Provisions,Debit,154.5,tvlicensing.co.uk,22.05.2019,"Children, Fam"
Nottinghamshire County Council ,Provisions,Debit,30.1,wm morrisons store,30.04.2019,"Children, Fam"
Nottinghamshire County Council ,Provisions,Debit,30.98,aldi 113 772,29.04.2019,"Children, Fam"
Nottinghamshire County Council ,Provisions,Debit,13.14,home bargains,26.04.2019,"Children, Fam"
Nottinghamshire County Council ,Provisions,Debit,3.98,bm retail ltd,26.04.2019,"Children, Fam"
Nottinghamshire County Council ,Provisions,Debit,9.67,aldi 113 772,05.04.2019,"Children, Fam"
Nottinghamshire County Council ,Provisions,Debit,5,wilko retail limit,02.04.2019,"Children, Fam"
Nottinghamshire County Council ,Provisions,Debit,34.55,hobbycraft,02.04.2019,"Children, Fam"
Nottinghamshire County Council ,Provisions,Debit,20,poundland ltd,02.04.2019,"Children, Fam"
Nottinghamshire County Council ,Provisions,Debit,2.1,sainsburys s/mkts,02.04.2019,"Children, Fam"
Nottinghamshire County Council ,Provisions,Debit,114.94,screwfix nottingham gilt,02.04.2019,"Children, Fam"
Nottinghamshire County Council ,Provisions,Debit,36.41,wm morrisons store,04.06.2019,"Children, Fam"
Nottinghamshire County Council ,Provisions,Debit,5,wm morrisons store,06.06.2019,"Children, Fam"
Nottinghamshire County Council ,Provisions,Debit,2,sainsburys s/mkts,06.06.2019,"Children, Fam"
Nottinghamshire County Council ,Provisions,Debit,51,tesco stores 5329,07.06.2019,"Children, Fam"
Nottinghamshire County Council ,Provisions,Debit,48.75,wm morrisons store,11.06.2019,"Children, Fam"
Nottinghamshire County Council ,Provisions,Debit,30.32,tesco stores 2328,12.06.2019,"Children, Fam"
Nottinghamshire County Council ,Provisions,Debit,0.36,wm morrisons store,12.06.2019,"Children, Fam"
Nottinghamshire County Council ,Provisions,Credi,-20,tesco stores 2328,12.06.2019,"Children, Fam"
Nottinghamshire County Council ,Provisions,Debit,11.05,poundland ltd,17.06.2019,"Children, Fam"
Nottinghamshire County Council ,Provisions,Debit,3.64,aldi 113 772,17.06.2019,"Children, Fam"
Nottinghamshire County Council ,Provisions,Debit,16.55,wm morrisons store,18.06.2019,"Children, Fam"
Nottinghamshire County Council ,Provisions,Debit,5.07,w boyes  co ltd eastw,18.06.2019,"Children, Fam"
Nottinghamshire County Council ,Provisions,Debit,0.55,sainsburys s/mkts,20.06.2019,"Children, Fam"
Nottinghamshire County Council ,Provisions,Debit,20.2,poundland ltd,24.06.2019,"Children, Fam"
Nottinghamshire County Council ,Provisions,Debit,27.31,wm morrisons store,25.06.2019,"Children, Fam"
Nottinghamshire County Council ,Provisions,Debit,9.27,aldi 113 772,26.06.2019,"Children, Fam"
Nottinghamshire County Council ,Provisions,Debit,13.65,sainsburys s/mkt,28.06.2019,"Children, Fam"
Nottinghamshire County Council ,Staff Training,Debit,97.1,wm morrisons store,14.05.2019,"Children, Fam"
Nottinghamshire County Council ,Postages,Debit,3.59,myfonts,02.04.2019,Resources
Nottinghamshire County Council ,Postages,Debit,655,post office counter,31.05.2019,Resources
Nottinghamshire County Council ,Postages,Debit,35.44,amznmktplace amazon.co.u,03.06.2019,Resources
Nottinghamshire County Council ,Postages,Debit,9.91,amznmktplace amazon.co.u,09.04.2019,Resources
Nottinghamshire County Council ,Postages,Debit,10.39,amznmktplace amazon.co.u,09.04.2019,Resources
Nottinghamshire County Council ,Provisions,Debit,19,tesco stores 2702,04.06.2019,ASCHPP
Nottinghamshire County Council ,Provisions,Debit,4.27,amznmktplace amazon.co.u,10.06.2019,ASCHPP
Nottinghamshire County Council ,Provisions,Debit,3.79,amznmktplace amazon.co.u,11.06.2019,ASCHPP
Nottinghamshire County Council ,Provisions,Debit,3.99,amznmktplace amazon.co.u,11.06.2019,ASCHPP
Nottinghamshire County Council ,Provisions,Debit,25.7,tesco stores 2702,11.06.2019,ASCHPP
Nottinghamshire County Council ,Provisions,Debit,51.46,amznmktplace amazon.co.u,11.06.2019,ASCHPP
Nottinghamshire County Council ,Provisions,Debit,39.99,amznmktplace,12.06.2019,ASCHPP
Nottinghamshire County Council ,Provisions,Debit,106.68,paul white limited,12.06.2019,ASCHPP
Nottinghamshire County Council ,Provisions,Debit,74.62,jtf wholesale ltd,20.06.2019,ASCHPP
Nottinghamshire County Council ,Provisions,Debit,51.82,the range,05.05.2019,ASCHPP
Nottinghamshire County Council ,Provisions,Debit,9,w boyes  co ltd cleet,11.05.2019,ASCHPP
Nottinghamshire County Council ,Provisions,Debit,64.6,dunelm ltd,26.05.2019,ASCHPP
Nottinghamshire County Council ,Provisions,Debit,4.4,tesco stores 5877,29.05.2019,ASCHPP
Nottinghamshire County Council ,Provisions,Debit,29.07,amznmktplace,02.05.2019,ASCHPP
Nottinghamshire County Council ,Provisions,Debit,14.98,amznmktplace,02.05.2019,ASCHPP
Nottinghamshire County Council ,Provisions,Debit,59.49,amznmktplace,30.04.2019,ASCHPP
Nottinghamshire County Council ,Provisions,Debit,9,w boyes  co ltd chest,27.04.2019,ASCHPP
Nottinghamshire County Council ,Provisions,Debit,113.5,dunelm ltd,27.04.2019,ASCHPP
Nottinghamshire County Council ,Unplanned Needs and Financial Support,Debit,8.78,kings mill farm (sutto,02.04.2019,"Children, Fam"
Nottinghamshire County Council ,Unplanned Needs and Financial Support,Credi,-249.5,psd fraud temp. credit,29.05.2019,"Children, Fam"
Nottinghamshire County Council ,Unplanned Needs and Financial Support,Credi,-249.19,psd fraud temp. credit,29.05.2019,"Children, Fam"
Nottinghamshire County Council ,Unplanned Needs and Financial Support,Debit,14.5,asda stores 4475,13.06.2019,"Children, Fam"
Nottinghamshire County Council ,Unplanned Needs and Financial Support,Debit,249.5,sainsburys s/mkts,29.05.2019,"Children, Fam"
Nottinghamshire County Council ,Unplanned Needs and Financial Support,Debit,249.4,sainsburys s/mkts,29.05.2019,"Children, Fam"
Nottinghamshire County Council ,Unplanned Needs and Financial Support,Debit,249.19,js online grocery,29.05.2019,"Children, Fam"
Nottinghamshire County Council ,Unplanned Needs and Financial Support,Credi,-249.4,sainsburys s/mkts,29.05.2019,"Children, Fam"
Nottinghamshire County Council ,Unplanned Needs and Financial Support,Debit,25.98,bm retail ltd,29.05.2019,"Children, Fam"
Nottinghamshire County Council ,Unplanned Needs and Financial Support,Debit,8.1,mcdonalds,04.04.2019,"Children, Fam"
Nottinghamshire County Council ,Fuel - Petrol,Debit,23.22,southwell green sf conne,04.04.2019,"Children, Fam"
Nottinghamshire County Council ,Unplanned Needs and Financial Support,Debit,5.7,mcdonalds,14.05.2019,"Children, Fam"
Nottinghamshire County Council ,Unplanned Needs and Financial Support,Debit,13.26,market harborough sf con,14.05.2019,"Children, Fam"
Nottinghamshire County Council ,Unplanned Needs and Financial Support,Debit,4,tramlink nottingham limi,21.05.2019,"Children, Fam"
Nottinghamshire County Council ,Unplanned Needs and Financial Support,Debit,12.24,mcdonalds,28.05.2019,"Children, Fam"
Nottinghamshire County Council ,Unplanned Needs and Financial Support,Debit,50.21,aldi 27 778,28.05.2019,"Children, Fam"
Nottinghamshire County Council ,Unplanned Needs and Financial Support,Debit,0.95,greggs,03.06.2019,"Children, Fam"
Nottinghamshire County Council ,Unplanned Needs and Financial Support,Debit,46.6,primark,23.04.2019,"Children, Fam"
Nottinghamshire County Council ,Unplanned Needs and Financial Support,Debit,3.9,intu victoria centre,23.04.2019,"Children, Fam"
Nottinghamshire County Council ,Unplanned Needs and Financial Support,Debit,9.74,mcdonalds,23.04.2019,"Children, Fam"
Nottinghamshire County Council ,Unplanned Needs and Financial Support,Debit,2.75,sainsburys s/mkts,17.04.2019,"Children, Fam"
Nottinghamshire County Council ,Unplanned Needs and Financial Support,Debit,7.68,mcdonalds,16.04.2019,"Children, Fam"
Nottinghamshire County Council ,Unplanned Needs and Financial Support,Debit,154.5,tvlicensing.co.uk,08.04.2019,"Children, Fam"
Nottinghamshire County Council ,Unplanned Needs and Financial Support,Debit,3.9,intu victoria centre,09.04.2019,"Children, Fam"
Nottinghamshire County Council ,Unplanned Needs and Financial Support,Debit,498.03,carpetright plc,11.06.2019,"Children, Fam"
Nottinghamshire County Council ,Unplanned Needs and Financial Support,Debit,4.55,costa arnold,17.06.2019,"Children, Fam"
Nottinghamshire County Council ,Unplanned Needs and Financial Support,Debit,1.5,harborough district co,17.06.2019,"Children, Fam"
Nottinghamshire County Council ,Unplanned Needs and Financial Support,Debit,5.9,costa coffee,17.06.2019,"Children, Fam"
Nottinghamshire County Council ,Unplanned Needs and Financial Support,Debit,9.18,tesco stores (5378),17.06.2019,"Children, Fam"
Nottinghamshire County Council ,Unplanned Needs and Financial Support,Credi,-12.46,tesco store 3041,25.06.2019,"Children, Fam"
Nottinghamshire County Council ,Unplanned Needs and Financial Support,Debit,12.46,tesco store 3041,25.06.2019,"Children, Fam"
Nottinghamshire County Council ,Unplanned Needs and Financial Support,Debit,280.36,very,26.06.2019,"Children, Fam"
Nottinghamshire County Council ,Unplanned Needs and Financial Support,Debit,51,tesco stores 5851,03.04.2019,"Children, Fam"
Nottinghamshire County Council ,Unplanned Needs and Financial Support,Debit,10.95,tesco stores 5851,03.04.2019,"Children, Fam"
Nottinghamshire County Council ,Unplanned Needs and Financial Support,Debit,9.29,mcdonalds,02.04.2019,"Children, Fam"
Nottinghamshire County Council ,Unplanned Needs and Financial Support,Debit,3.9,intu victoria centre,01.04.2019,"Children, Fam"
Nottinghamshire County Council ,Unplanned Needs and Financial Support,Debit,6.08,mcdonalds,01.04.2019,"Children, Fam"
Nottinghamshire County Council ,Unplanned Needs and Financial Support,Debit,3,subway-lexo blue ltd,01.04.2019,"Children, Fam"
Nottinghamshire County Council ,Office / General Equipment,Debit,19.99,hpi check,17.06.2019,ASCHPP
Nottinghamshire County Council ,Office / General Equipment,Debit,249.19,dispute refund reversal,27.06.2019,ASCHPP
Nottinghamshire County Council ,Office / General Equipment,Credi,-249.19,psd - fraud perm. credit,29.05.2019,ASCHPP
Nottinghamshire County Council ,Office / General Equipment,Debit,249.5,dispute refund reversal,27.06.2019,ASCHPP
Nottinghamshire County Council ,Office / General Equipment,Credi,-249.5,psd - fraud perm. credit,29.05.2019,ASCHPP
Nottinghamshire County Council ,Provisions,Debit,88,love vegan ltd,30.04.2019,Place
Nottinghamshire County Council ,Provisions,Debit,257.35,bookerecomm,11.04.2019,Place
Nottinghamshire County Council ,Provisions,Debit,8.75,bookerecomm,11.04.2019,Place
Nottinghamshire County Council ,Provisions,Debit,482,www.planningportal.co.,08.04.2019,Place
Nottinghamshire County Council ,Activities & Support,Debit,3.22,amznmktplace,03.05.2019,Place
Nottinghamshire County Council ,Activities & Support,Debit,3.22,amznmktplace,03.05.2019,Place
Nottinghamshire County Council ,Activities & Support,Debit,3.22,amznmktplace,03.05.2019,Place
Nottinghamshire County Council ,Activities & Support,Debit,21.54,www.archersigns.co.uk,09.05.2019,Place
Nottinghamshire County Council ,Activities & Support,Debit,24.43,amznmktplace amazon.co.u,14.05.2019,Place
Nottinghamshire County Council ,Activities & Support,Debit,279.53,www.nisbets.com,16.05.2019,Place
Nottinghamshire County Council ,Council Tax,Debit,55,gedling bc int,17.05.2019,Place
Nottinghamshire County Council ,Activities & Support,Credi,-462,www.planningportal.co.,20.05.2019,Place
Nottinghamshire County Council ,Activities & Support,Debit,45.98,amazon.co.uk mn3nd26r4 a,21.05.2019,Place
Nottinghamshire County Council ,Activities & Support,Debit,21.94,amazon.co.uk mn9v35um4,29.05.2019,Place
Nottinghamshire County Council ,Activities & Support,Debit,155.13,www.nisbets.com,30.05.2019,Place
Nottinghamshire County Council ,Activities & Support,Debit,73.86,www.nisbets.com,31.05.2019,Place
Nottinghamshire County Council ,TV / Radio Licences,Debit,154.5,tvlicensing.co.uk,06.06.2019,Place
Nottinghamshire County Council ,Cleaning Materials,Debit,494.04,mill sales direct ltd,10.06.2019,Place
Nottinghamshire County Council ,Activities & Support,Debit,15.92,asda superstore 04030,10.06.2019,Place
Nottinghamshire County Council ,Activities & Support,Debit,27.74,zazzle gbp,10.06.2019,Place
Nottinghamshire County Council ,Activities & Support,Debit,45.94,amznmktplace amazon.co.u,11.06.2019,Place
Nottinghamshire County Council ,Activities & Support,Debit,14.39,www.nisbets.com,11.06.2019,ASCHPP
Nottinghamshire County Council ,Activities & Support,Debit,144,love vegan ltd,26.06.2019,Place
Nottinghamshire County Council ,Activities & Support,Debit,7.4,hobbycraft,27.06.2019,Place
Nottinghamshire County Council ,Provisions,Debit,9.64,asda superstore 04030,02.04.2019,Place
Nottinghamshire County Council ,Minor Works,Debit,246.75,alston youth hostel,10.05.2019,"Children, Fam"
Nottinghamshire County Council ,Minor Works,Debit,118.5,kennys,22.05.2019,"Children, Fam"
Nottinghamshire County Council ,Provisions,Debit,6.22,toolstation ltd,20.04.2019,ASCHPP
Nottinghamshire County Council ,Provisions,Debit,73.61,whittingtons (nottingh,05.06.2019,ASCHPP
Nottinghamshire County Council ,Provisions,Debit,71.94,oldrids and co ltd,11.06.2019,ASCHPP
Nottinghamshire County Council ,Provisions,Debit,2.75,amznmktplace,01.04.2019,ASCHPP
Nottinghamshire County Council ,Office / General Equipment,Debit,132,mrc community action l,04.06.2019,"Children, Fam"
Nottinghamshire County Council ,Computer Equipment,Debit,97.9,amazon.co.uk mn9gk2094,09.05.2019,"Children, Fam"
Nottinghamshire County Council ,Activities & Support,Debit,78.1,specsavers,28.05.2019,"Children, Fam"
Nottinghamshire County Council ,Office / General Equipment,Debit,60,southwell service,02.04.2019,ASCHPP
Nottinghamshire County Council ,Office / General Equipment,Debit,2.2,tesco stores 5437,07.06.2019,ASCHPP
Nottinghamshire County Council ,Office / General Equipment,Debit,5.68,aldi,26.06.2019,ASCHPP
Nottinghamshire County Council ,Office / General Equipment,Debit,13.54,tesco store 3439,29.04.2019,ASCHPP
Nottinghamshire County Council ,Office / General Equipment,Debit,69.13,southwell service,08.05.2019,ASCHPP
Nottinghamshire County Council ,Office / General Equipment,Debit,24,farmfoods limited,16.05.2019,ASCHPP
Nottinghamshire County Council ,Office / General Equipment,Debit,48.27,southwell service,16.05.2019,ASCHPP
Nottinghamshire County Council ,Office / General Equipment,Debit,9.51,tesco stores 5379,16.05.2019,ASCHPP
Nottinghamshire County Council ,Office / General Equipment,Debit,18.18,tesco stores 5379,03.06.2019,ASCHPP
Nottinghamshire County Council ,Provisions,Debit,8.59,farmfoods- woodhou,02.04.2019,"Children, Fam"
Nottinghamshire County Council ,Provisions,Debit,9,farmfoods- woodhou,03.06.2019,"Children, Fam"
Nottinghamshire County Council ,Provisions,Debit,3.05,farmfoods- woodhou,04.06.2019,"Children, Fam"
Nottinghamshire County Council ,Provisions,Debit,9.4,asda superstore 04261,06.06.2019,"Children, Fam"
Nottinghamshire County Council ,Provisions,Debit,7.7,farmfoods- woodhou,11.06.2019,"Children, Fam"
Nottinghamshire County Council ,Provisions,Debit,1.77,tesco stores 5437,13.06.2019,"Children, Fam"
Nottinghamshire County Council ,Provisions,Debit,4.07,tesco stores 5437,17.06.2019,"Children, Fam"
Nottinghamshire County Council ,Provisions,Debit,10.82,iceland,17.06.2019,"Children, Fam"
Nottinghamshire County Council ,Provisions,Debit,6,poundland,17.06.2019,"Children, Fam"
Nottinghamshire County Council ,Provisions,Debit,14,sainsburys s/mkts,18.06.2019,"Children, Fam"
Nottinghamshire County Council ,Provisions,Debit,10.27,iceland,18.06.2019,"Children, Fam"
Nottinghamshire County Council ,Provisions,Debit,47.98,amznmktplace amazon.co.u,19.06.2019,"Children, Fam"
Nottinghamshire County Council ,Provisions,Debit,14.88,amznmktplace amazon.co.u,19.06.2019,"Children, Fam"
Nottinghamshire County Council ,Provisions,Debit,9.99,amznmktplace amazon.co.u,19.06.2019,"Children, Fam"
Nottinghamshire County Council ,Provisions,Debit,1.77,tesco stores 5437,20.06.2019,"Children, Fam"
Nottinghamshire County Council ,Provisions,Debit,41.83,amznmktplace amazon.co.u,21.06.2019,"Children, Fam"
Nottinghamshire County Council ,Provisions,Debit,41.51,booker limited mansfield,24.06.2019,"Children, Fam"
Nottinghamshire County Council ,Provisions,Debit,10.65,asda superstore 04261,24.06.2019,"Children, Fam"
Nottinghamshire County Council ,Provisions,Debit,1,wm morrisons store,24.06.2019,"Children, Fam"
Nottinghamshire County Council ,Provisions,Debit,6,farmfoods- woodhou,25.06.2019,"Children, Fam"
Nottinghamshire County Council ,Provisions,Debit,4.47,tesco stores 5437,27.06.2019,"Children, Fam"
Nottinghamshire County Council ,Provisions,Debit,29.71,booker limited mansfield,03.05.2019,"Children, Fam"
Nottinghamshire County Council ,Provisions,Debit,1.18,tesco stores 5437,10.05.2019,"Children, Fam"
Nottinghamshire County Council ,Provisions,Debit,2.68,tesco stores 5437,16.05.2019,"Children, Fam"
Nottinghamshire County Council ,Provisions,Debit,1,poundland,21.05.2019,"Children, Fam"
Nottinghamshire County Council ,Provisions,Debit,3,the works,21.05.2019,"Children, Fam"
Nottinghamshire County Council ,Provisions,Debit,1.18,tesco stores 5437,23.05.2019,"Children, Fam"
Nottinghamshire County Council ,Provisions,Debit,6.05,farmfoods- woodhou,30.04.2019,"Children, Fam"
Nottinghamshire County Council ,Provisions,Debit,8.05,farmfoods- woodhou,29.04.2019,"Children, Fam"
Nottinghamshire County Council ,Provisions,Debit,3.05,poundland,29.04.2019,"Children, Fam"
Nottinghamshire County Council ,Provisions,Debit,4.87,tesco stores 5437,05.04.2019,"Children, Fam"
Nottinghamshire County Council ,Family Financial Assistance,Debit,39.33,asda  stores 4201,11.06.2019,"Children, Fam"
Nottinghamshire County Council ,Family Financial Assistance,Debit,56.35,www.argos.co.uk,27.06.2019,"Children, Fam"
Nottinghamshire County Council ,Family Financial Assistance,Debit,299.99,www.argos.co.uk,29.04.2019,"Children, Fam"
Nottinghamshire County Council ,Housing/Accommodation Financial Support,Debit,59,travelodge gb0000,16.04.2019,"Children, Fam"
Nottinghamshire County Council ,Family Financial Assistance,Debit,118.9,asda  stores 4201,21.05.2019,"Children, Fam"
Nottinghamshire County Council ,Office / General Equipment,Debit,385,carpet cuts (coalville),30.05.2019,"Children, Fam"
,Family Financial Assistance,Debit,240,hylands hotel,28.06.2019,"Children, Fam"
Nottinghamshire County Council ,Catering Equipment,Debit,33.98,amznmktplace amazon.co.u,02.04.2019,ASCHPP
Nottinghamshire County Council ,Cleaning Materials,Debit,24.99,amznmktplace,01.04.2019,ASCHPP
Nottinghamshire County Council ,Subscriptions and Licences,Debit,79,amazon prime m65p32af4 a,15.06.2019,ASCHPP
Nottinghamshire County Council ,Catering Equipment,Debit,31.99,amazon.co.uk m610721e4,18.06.2019,ASCHPP
Nottinghamshire County Council ,Activities & Support,Debit,12.99,amznmktplace,19.06.2019,ASCHPP
Nottinghamshire County Council ,Furniture,Debit,149.99,argos arnold,20.06.2019,ASCHPP
Nottinghamshire County Council ,Cleaning Materials,Debit,13.49,amazon.co.uk m61rg0mn4,25.06.2019,ASCHPP
Nottinghamshire County Council ,Activities & Support,Debit,28.56,amznmktplace,05.05.2019,ASCHPP
Nottinghamshire County Council ,Cleaning & Domestic Equipment,Debit,29.99,amznmktplace amazon.co.u,10.05.2019,ASCHPP
Nottinghamshire County Council ,Staff Training,Debit,200,university of nottingham,13.05.2019,ASCHPP
Nottinghamshire County Council ,Provisions,Debit,31.99,wickes nottingham north,20.05.2019,ASCHPP
Nottinghamshire County Council ,Office / General Equipment,Debit,3.99,amzn mktp uk mn4pb6di4,23.05.2019,ASCHPP
Nottinghamshire County Council ,Cleaning Materials,Debit,12.47,amzn mktp uk mn4la8s94,23.05.2019,ASCHPP
Nottinghamshire County Council ,Cleaning Materials,Debit,4.16,amzn mktp uk mn6t09sp4,24.05.2019,ASCHPP
Nottinghamshire County Council ,Cleaning & Domestic Equipment,Debit,25.99,amzn mktp uk mn4p297a4 a,27.05.2019,ASCHPP
Nottinghamshire County Council ,Provisions,Debit,12.14,lidl gb nottingham,03.06.2019,ASCHPP
Nottinghamshire County Council ,Cleaning Materials,Debit,24.56,amznmktplace,17.04.2019,ASCHPP
Nottinghamshire County Council ,Activities & Support,Debit,21.99,amznmktplace,17.04.2019,ASCHPP
Nottinghamshire County Council ,Furniture,Debit,284.4,healthcare/precision,16.04.2019,ASCHPP
Nottinghamshire County Council ,Activities & Support,Debit,8.64,amznmktplace amazon.co.u,12.04.2019,ASCHPP
Nottinghamshire County Council ,Stationery,Debit,29.99,amznmktplace,11.04.2019,ASCHPP
Nottinghamshire County Council ,Office / General Equipment,Debit,25.98,amznmktplace amazon.co.u,13.06.2019,resources
Nottinghamshire County Council ,Office / General Equipment,Debit,15.39,amazon.co.uk m68kd4jb4 a,12.06.2019,resources
Nottinghamshire County Council ,Office / General Equipment,Debit,17.92,amazon.co.uk m65ly9as4,16.06.2019,resources
Nottinghamshire County Council ,Office / General Equipment,Debit,47.38,amznmktplace,25.06.2019,resources
Nottinghamshire County Council ,Office / General Equipment,Debit,69.98,amznmktplace,25.06.2019,resources
Nottinghamshire County Council ,Staff Training,Debit,83.4,tickets08712200260,26.06.2019,Place
Nottinghamshire County Council ,Office / General Equipment,Debit,39.23,amznmktplace,26.06.2019,resources
Nottinghamshire County Council ,Office / General Equipment,Debit,71.24,john a stephens,01.05.2019,resources
Nottinghamshire County Council ,Office / General Equipment,Debit,5.69,amznmktplace,17.04.2019,Place
Nottinghamshire County Council ,Office / General Equipment,Debit,9.48,amznmktplace,15.04.2019,Place
Nottinghamshire County Council ,Office / General Equipment,Debit,9.48,amznmktplace,09.04.2019,resources
Nottinghamshire County Council ,Office / General Equipment,Debit,14.99,paypal  wuyongqin,04.05.2019,resources
Nottinghamshire County Council ,Office / General Equipment,Debit,11.48,amzn mktp uk mn33q9t24 a,07.05.2019,Place
Nottinghamshire County Council ,Office / General Equipment,Debit,19.88,safetysuppl,08.05.2019,resources
Nottinghamshire County Council ,Staff Training,Debit,32.24,eb  nottinghamshire vi,14.05.2019,Place
Nottinghamshire County Council ,Office / General Equipment,Debit,59.98,amznmktplace,15.05.2019,resources
Nottinghamshire County Council ,Office / General Equipment,Debit,139.8,amzn mktp uk mn3b02va4,15.05.2019,resources
Nottinghamshire County Council ,Office / General Equipment,Debit,60,village hotel nottingham,20.05.2019,resources
Nottinghamshire County Council ,Aids & Appliances,Debit,30.28,amznmktplace,10.04.2019,ASCHPP
Nottinghamshire County Council ,Aids & Appliances,Debit,181.25,amzn mktp uk mz5r32u64,24.04.2019,ASCHPP
Nottinghamshire County Council ,Aids & Appliances,Debit,24.99,amznmktplace amazon.co.u,25.04.2019,ASCHPP
Nottinghamshire County Council ,Aids & Appliances,Debit,219.95,amznmktplace,03.06.2019,ASCHPP
Nottinghamshire County Council ,Aids & Appliances,Debit,8.23,amznmktplace,06.05.2019,ASCHPP
Nottinghamshire County Council ,Aids & Appliances,Debit,7.74,amazon.co.uk m66u09zc4,09.06.2019,ASCHPP
Nottinghamshire County Council ,Aids & Appliances,Debit,7.99,amznmktplace,04.06.2019,ASCHPP
Nottinghamshire County Council ,Aids & Appliances,Debit,69.98,amznmktplace,03.04.2019,ASCHPP
Nottinghamshire County Council ,Car Parking Charges,Debit,4,northampton borough coun,07.06.2019,ASCHPP
Nottinghamshire County Council ,Hospitality,Debit,17.5,wilko retail limit,03.04.2019,ASCHPP
Nottinghamshire County Council ,Rail / Tube Fares,Debit,50,nottingham city counci,29.04.2019,Place
Nottinghamshire County Council ,Rail / Tube Fares,Debit,3,nottingham city counci,29.04.2019,Place
Nottinghamshire County Council ,Rail / Tube Fares,Debit,50,nottingham city counci,05.04.2019,Place
Nottinghamshire County Council ,Rail / Tube Fares,Debit,50,nottingham city counci,05.04.2019,Place
Nottinghamshire County Council ,Rail / Tube Fares,Debit,20,nottingham city counci,05.04.2019,Place
Nottinghamshire County Council ,Rail / Tube Fares,Debit,50,nottingham city counci,05.04.2019,Place
Nottinghamshire County Council ,Rail / Tube Fares,Debit,50,nottingham city counci,17.05.2019,Place
Nottinghamshire County Council ,Rail / Tube Fares,Debit,3,broadmarsh travel offi,17.05.2019,Place
Nottinghamshire County Council ,Rail / Tube Fares,Debit,100,trent barton,17.05.2019,Place
Nottinghamshire County Council ,Rail / Tube Fares,Debit,3,nottingham city counci,30.05.2019,Place
Nottinghamshire County Council ,Rail / Tube Fares,Debit,50,nottingham city counci,30.05.2019,Place
Nottinghamshire County Council ,Rail / Tube Fares,Debit,50,nottingham city counci,30.05.2019,Place
Nottinghamshire County Council ,Rail / Tube Fares,Debit,3,nottingham city counci,30.05.2019,Place
Nottinghamshire County Council ,Rail / Tube Fares,Debit,612,broadmarsh travel offi,30.05.2019,Place
Nottinghamshire County Council ,Rail / Tube Fares,Debit,50,nottingham city counci,30.05.2019,Place
Nottinghamshire County Council ,Rail / Tube Fares,Debit,3,nottingham city counci,30.05.2019,Place
Nottinghamshire County Council ,Rail / Tube Fares,Debit,441,nct travel centre,05.06.2019,Place
Nottinghamshire County Council ,Rail / Tube Fares,Debit,294,nct travel centre,05.06.2019,Place
Nottinghamshire County Council ,Rail / Tube Fares,Debit,209,nct travel centre,05.06.2019,Place
Nottinghamshire County Council ,Rail / Tube Fares,Debit,50,nottingham city counci,12.06.2019,Place
Nottinghamshire County Council ,Rail / Tube Fares,Debit,50,nottingham city counci,12.06.2019,Place
Nottinghamshire County Council ,Rail / Tube Fares,Debit,50,nottingham city counci,12.06.2019,Place
Nottinghamshire County Council ,Rail / Tube Fares,Debit,50,nottingham city counci,12.06.2019,Place
Nottinghamshire County Council ,Rail / Tube Fares,Debit,50,nottingham city counci,12.06.2019,Place
Nottinghamshire County Council ,Rail / Tube Fares,Debit,50,nottingham city counci,12.06.2019,Place
Nottinghamshire County Council ,Rail / Tube Fares,Debit,6.2,ringgo,20.06.2019,Place
Nottinghamshire County Council ,Rail / Tube Fares,Debit,3.7,ringgo spare 28,20.06.2019,Place
Nottinghamshire County Council ,Rail / Tube Fares,Debit,612,broadmarsh travel offi,25.06.2019,Place
Nottinghamshire County Council ,Books - General,Debit,10.71,amazon.co.uk mz0qa16d4,17.04.2019,ASCHPP
Nottinghamshire County Council ,Books - General,Debit,34.98,amazon.co.uk mn5lr0ia4 a,30.05.2019,ASCHPP
Nottinghamshire County Council ,Family Financial Assistance,Debit,11,www.lincolnshire,21.05.2019,"Children, Fam"
Nottinghamshire County Council ,Family Financial Assistance,Debit,350,sq  carpet bargain centr,05.04.2019,"Children, Fam"
Nottinghamshire County Council ,Family Financial Assistance,Debit,11,lincolnshire cc card p,03.04.2019,"Children, Fam"
Nottinghamshire County Council ,Provisions,Debit,"1,093.12",www.totalmerchandise,28.06.2019,"Children, Fam"
Nottinghamshire County Council ,Provisions,Debit,"1,140.00",ltc healthcare,27.06.2019,"Children, Fam"
Nottinghamshire County Council ,Audit Fees,Debit,"2,385.00",national memorial,09.04.2019,ASCHPP
Nottinghamshire County Council ,Office / General Equipment,Debit,45,timpson ltd,20.05.2019,"Children, Fam"
Nottinghamshire County Council ,Office / General Equipment,Debit,7.99,homebase ltd 462,22.05.2019,"Children, Fam"
Nottinghamshire County Council ,Office / General Equipment,Debit,9.48,amzn mktp uk mn17s5dx4,23.05.2019,"Children, Fam"
Nottinghamshire County Council ,Office / General Equipment,Debit,78.87,b  m retail,25.06.2019,"Children, Fam"
Nottinghamshire County Council ,Office / General Equipment,Credi,-5.98,b  m retail,26.06.2019,"Children, Fam"
Nottinghamshire County Council ,Family Financial Assistance,Debit,19.99,argos ltd,19.06.2019,"Children, Fam"
Nottinghamshire County Council ,Family Financial Assistance,Debit,14.99,tesco stores 5379,28.06.2019,"Children, Fam"
Nottinghamshire County Council ,Family Financial Assistance,Debit,56.99,argos retail group,17.05.2019,"Children, Fam"
Nottinghamshire County Council ,Personal Needs,Debit,211.99,currys online,05.06.2019,"Children, Fam"
Nottinghamshire County Council ,Landscape Maintenance,Debit,163.2,key building supplies li,05.06.2019,"Children, Fam"
Nottinghamshire County Council ,Activities & Support,Debit,190,the ambassadors theatr,07.06.2019,"Children, Fam"
Nottinghamshire County Council ,Personal Needs,Debit,35.51,amazon.co.uk m65fh14k4 a,06.06.2019,"Children, Fam"
Nottinghamshire County Council ,Personal Needs,Debit,11.79,amznmktplace,07.06.2019,"Children, Fam"
Nottinghamshire County Council ,Personal Needs,Debit,35.51,amazon.co.uk m63tq3pt4,19.06.2019,"Children, Fam"
Nottinghamshire County Council ,Personal Needs,Debit,21.48,amznmktplace,21.06.2019,"Children, Fam"
Nottinghamshire County Council ,Protective Clothing,Debit,19.98,amznmktplace,03.04.2019,"Children, Fam"
Nottinghamshire County Council ,Stationery,Debit,63.48,wsale office supp,02.05.2019,"Children, Fam"
Nottinghamshire County Council ,Personal Needs,Debit,8.48,amazon.co.uk mz7g70rs4,27.04.2019,"Children, Fam"
Nottinghamshire County Council ,Cleaning & Domestic Equipment,Debit,119,currys online,24.04.2019,"Children, Fam"
Nottinghamshire County Council ,Personal Needs,Debit,23.88,amznmktplace,15.04.2019,"Children, Fam"
Nottinghamshire County Council ,Grounds Maintenance,Debit,339.48,amazon.co.uk mz50o25y4,14.04.2019,"Children, Fam"
Nottinghamshire County Council ,Stationery,Debit,29.93,labels direct ltd,11.04.2019,"Children, Fam"
Nottinghamshire County Council ,Clothing/Shoes/Uniforms,Debit,277.99,next directory,10.05.2019,"Children, Fam"
Nottinghamshire County Council ,Laundry & Dry Cleaning,Debit,39.58,www.maclingroup.co.uk,10.05.2019,"Children, Fam"
Nottinghamshire County Council ,Clothing/Shoes/Uniforms,Debit,43,next directory,16.05.2019,"Children, Fam"
Nottinghamshire County Council ,Clothing/Shoes/Uniforms,Credi,-11,next directory,10.05.2019,"Children, Fam"
Nottinghamshire County Council ,Clothing/Shoes/Uniforms,Credi,-11,next directory,10.05.2019,"Children, Fam"
Nottinghamshire County Council ,Clothing/Shoes/Uniforms,Credi,-21,next directory,10.05.2019,"Children, Fam"
Nottinghamshire County Council ,Personal Needs,Debit,99.9,amznmktplace,23.05.2019,"Children, Fam"
Nottinghamshire County Council ,Personal Needs,Debit,39.98,amznmktplace amazon.co.u,25.05.2019,"Children, Fam"
Nottinghamshire County Council ,Clothing/Shoes/Uniforms,Credi,-25.99,next directory,24.05.2019,"Children, Fam"
Nottinghamshire County Council ,Furniture,Debit,88.46,amzn mktp uk mn2f972w4 a,25.05.2019,"Children, Fam"
Nottinghamshire County Council ,Personal Needs,Debit,25.99,next directory,24.05.2019,"Children, Fam"
Nottinghamshire County Council ,Personal Needs,Debit,133.94,www.argos.co.uk,31.05.2019,"Children, Fam"
Nottinghamshire County Council ,Specialist Equipment,Debit,2.99,the handicentre,18.04.2019,"Children, Fam"
Nottinghamshire County Council ,Specialist Equipment,Debit,51.92,the range,06.04.2019,"Children, Fam"
Nottinghamshire County Council ,Specialist Equipment,Debit,4.99,bm retail ltd,06.04.2019,"Children, Fam"
Nottinghamshire County Council ,Specialist Equipment,Debit,25.5,tesco stores 5329,10.05.2019,"Children, Fam"
Nottinghamshire County Council ,Specialist Equipment,Debit,11.3,sainsburys s/mkts,15.05.2019,"Children, Fam"
Nottinghamshire County Council ,Specialist Equipment,Debit,24.6,actes,11.06.2019,"Children, Fam"
Nottinghamshire County Council ,Specialist Equipment,Debit,24.6,actes,17.06.2019,"Children, Fam"
Nottinghamshire County Council ,Specialist Equipment,Debit,9.9,home bargains doncaste,26.06.2019,"Children, Fam"
Nottinghamshire County Council ,Unplanned Needs and Financial Support,Debit,8.08,mcdonalds,22.05.2019,"Children, Fam"
Nottinghamshire County Council ,Unplanned Needs and Financial Support,Debit,10.74,costa coffee,28.05.2019,"Children, Fam"
Nottinghamshire County Council ,Unplanned Needs and Financial Support,Debit,8.48,mcdonalds,30.05.2019,"Children, Fam"
Nottinghamshire County Council ,Unplanned Needs and Financial Support,Debit,11.5,subway,01.05.2019,"Children, Fam"
Nottinghamshire County Council ,Unplanned Needs and Financial Support,Debit,40.05,jd sports 382,01.05.2019,"Children, Fam"
Nottinghamshire County Council ,Leaving Care - Home Establishment Grant,Debit,67,asda superstore,11.04.2019,"Children, Fam"
Nottinghamshire County Council ,Unplanned Needs and Financial Support,Debit,13.15,costa coffee,11.04.2019,"Children, Fam"
Nottinghamshire County Council ,Unplanned Needs and Financial Support,Debit,51.27,asda superstore,08.04.2019,"Children, Fam"
Nottinghamshire County Council ,Leaving Care - Home Establishment Grant,Debit,65.99,argos ltd,08.04.2019,"Children, Fam"
Nottinghamshire County Council ,Leaving Care - Home Establishment Grant,Debit,221.95,argos ltd,08.04.2019,"Children, Fam"
Nottinghamshire County Council ,Unplanned Needs and Financial Support,Debit,12.89,mcdonalds,05.04.2019,"Children, Fam"
Nottinghamshire County Council ,Unplanned Needs and Financial Support,Debit,7.2,mcdonalds,04.04.2019,"Children, Fam"
Nottinghamshire County Council ,Unplanned Needs and Financial Support,Debit,5.95,greggs,24.06.2019,"Children, Fam"
Nottinghamshire County Council ,Unplanned Needs and Financial Support,Debit,15.76,asda superstore,27.06.2019,"Children, Fam"
Nottinghamshire County Council ,Leaving Care - Home Establishment Grant,Debit,65.1,asda superstore,27.06.2019,"Children, Fam"
Nottinghamshire County Council ,Unplanned Needs and Financial Support,Debit,8.6,mcdonalds 935,03.04.2019,"Children, Fam"
Nottinghamshire County Council ,Activities & Support,Debit,11.4,paypal  shanghaizhu,24.04.2019,ASCHPP
Nottinghamshire County Council ,Activities & Support,Debit,7.73,paypal  huangdongqi,24.04.2019,ASCHPP
Nottinghamshire County Council ,Activities & Support,Debit,12.99,paypal  emessavings,23.04.2019,ASCHPP
Nottinghamshire County Council ,Activities & Support,Debit,5.68,paypal  ribbon hut,23.04.2019,ASCHPP
Nottinghamshire County Council ,Activities & Support,Debit,4.49,paypal  pannufurnit,23.04.2019,ASCHPP
Nottinghamshire County Council ,Activities & Support,Debit,3.69,paypal  dongwanshiz,23.04.2019,ASCHPP
Nottinghamshire County Council ,Activities & Support,Debit,34,poundland,14.04.2019,ASCHPP
Nottinghamshire County Council ,Activities & Support,Debit,6,the range,14.04.2019,ASCHPP
Nottinghamshire County Council ,Office / General Equipment,Debit,24.86,lidl gb nottingham,16.05.2019,ASCHPP
Nottinghamshire County Council ,Office / General Equipment,Debit,3.59,paypal  wangbaoxing,18.05.2019,ASCHPP
Nottinghamshire County Council ,Office / General Equipment,Debit,2.98,lidl gb nottingham,19.05.2019,ASCHPP
Nottinghamshire County Council ,Office / General Equipment,Debit,3,sue ryder 6195,21.05.2019,ASCHPP
Nottinghamshire County Council ,Office / General Equipment,Debit,18.44,b and m retail,28.05.2019,ASCHPP
Nottinghamshire County Council ,Office / General Equipment,Debit,5.67,lidl gb nottingham,06.06.2019,ASCHPP
Nottinghamshire County Council ,Office / General Equipment,Debit,22.94,b and m retail,14.06.2019,ASCHPP
Nottinghamshire County Council ,Office / General Equipment,Debit,7.47,b and m retail,17.06.2019,ASCHPP
Nottinghamshire County Council ,Office / General Equipment,Debit,50,medina,26.06.2019,ASCHPP
,Personal Needs,Debit,65,the dukeries lodge,20.05.2019,"Children, Fam"
Nottinghamshire County Council ,Teaching Equipment,Debit,5.05,rs components,18.06.2019,"Children, Fam"
Nottinghamshire County Council ,Teaching Equipment,Debit,6.12,rs components,18.06.2019,"Children, Fam"
Nottinghamshire County Council ,Phone - Mobile,Debit,20,vesta vodafone,06.06.2019,"Children, Fam"
Nottinghamshire County Council ,Provisions,Debit,6.99,tesco delivery saver2,15.06.2019,"Children, Fam"
Nottinghamshire County Council ,Teaching Equipment,Debit,71,outside -peak district,27.06.2019,"Children, Fam"
Nottinghamshire County Council ,Staff Training,Debit,144,www.highpeakfirstaid.c,27.06.2019,"Children, Fam"
Nottinghamshire County Council ,Provisions,Debit,1,one stop 1550,27.06.2019,"Children, Fam"
Nottinghamshire County Council ,Provisions,Debit,6,barrons of hathersage,27.06.2019,"Children, Fam"
Nottinghamshire County Council ,Provisions,Debit,18.75,spar hope,03.04.2019,"Children, Fam"
Nottinghamshire County Council ,Teaching Equipment,Debit,4.77,amzn mktp uk mz22h4jb4,02.04.2019,"Children, Fam"
Nottinghamshire County Council ,Building Maintenance,Debit,3.18,sickleholme sstn,07.05.2019,"Children, Fam"
Nottinghamshire County Council ,Building Maintenance,Debit,1.3,co-op group 108499,16.05.2019,"Children, Fam"
Nottinghamshire County Council ,Building Maintenance,Debit,6.99,tesco delivery saver2,16.05.2019,"Children, Fam"
Nottinghamshire County Council ,Building Maintenance,Debit,200,outside -peak district,16.05.2019,"Children, Fam"
Nottinghamshire County Council ,Building Maintenance,Debit,11.98,amznmktplace,21.05.2019,"Children, Fam"
Nottinghamshire County Council ,Building Maintenance,Credi,-11.98,amz christmas boom,28.05.2019,"Children, Fam"
Nottinghamshire County Council ,Building Maintenance,Debit,11.38,amznmktplace,29.05.2019,"Children, Fam"
Nottinghamshire County Council ,Building Maintenance,Debit,3.18,sickleholme sstn,03.06.2019,"Children, Fam"
Nottinghamshire County Council ,Office / General Equipment,Debit,31.75,yha england and wales,25.04.2019,"Children, Fam"
Nottinghamshire County Council ,Phone - Mobile,Debit,40,www.carphonewareho,16.04.2019,"Children, Fam"
Nottinghamshire County Council ,Provisions,Debit,6.99,tesco delivery saver2,15.04.2019,"Children, Fam"
Nottinghamshire County Council ,Office / General Equipment,Debit,386,yha england and wales,09.04.2019,"Children, Fam"
Nottinghamshire County Council ,Office / General Equipment,Debit,89.5,yha england and wales,09.04.2019,"Children, Fam"
Nottinghamshire County Council ,Office / General Equipment,Debit,26,yha england and wales,09.04.2019,"Children, Fam"
Nottinghamshire County Council ,Other Fees & Services,Debit,100,peak district npa,08.04.2019,"Children, Fam"
Nottinghamshire County Council ,Teaching Equipment,Debit,40.59,amznmktplace,06.04.2019,"Children, Fam"
Nottinghamshire County Council ,Teaching Equipment,Debit,6.74,amznmktplace,04.04.2019,"Children, Fam"
Nottinghamshire County Council ,Teaching Equipment,Debit,6.74,amznmktplace,04.04.2019,"Children, Fam"
Nottinghamshire County Council ,Provisions,Debit,2,costcutter,09.05.2019,"Children, Fam"
Nottinghamshire County Council ,Provisions,Debit,252.87,bm retail,09.05.2019,"Children, Fam"
Nottinghamshire County Council ,Provisions,Debit,10,timpson ltd,13.05.2019,"Children, Fam"
Nottinghamshire County Council ,Provisions,Debit,1.54,spar newark,15.05.2019,"Children, Fam"
Nottinghamshire County Council ,Provisions,Debit,7.45,brookside garage,28.05.2019,"Children, Fam"
Nottinghamshire County Council ,Provisions,Debit,25,currys online,03.06.2019,"Children, Fam"
Nottinghamshire County Council ,Provisions,Debit,22.64,one stop 2353,01.05.2019,"Children, Fam"
Nottinghamshire County Council ,Provisions,Debit,1.09,heron foods ltd,29.04.2019,"Children, Fam"
Nottinghamshire County Council ,Provisions,Debit,66.27,heron foods ltd,29.04.2019,"Children, Fam"
Nottinghamshire County Council ,Provisions,Debit,179.79,heron foods ltd,25.04.2019,"Children, Fam"
Nottinghamshire County Council ,Provisions,Debit,1.09,heron foods ltd,25.04.2019,"Children, Fam"
Nottinghamshire County Council ,Provisions,Debit,79.98,b  m retail,16.04.2019,"Children, Fam"
Nottinghamshire County Council ,Provisions,Debit,90,argos mansfield,16.04.2019,"Children, Fam"
Nottinghamshire County Council ,Provisions,Credi,-85,argos retail group,03.04.2019,"Children, Fam"
Nottinghamshire County Council ,Provisions,Debit,17.22,amazon.co.uk mn88r6yp4 a,03.06.2019,"Children, Fam"
Nottinghamshire County Council ,Provisions,Debit,164.16,rapid electronics,10.06.2019,"Children, Fam"
Nottinghamshire County Council ,Provisions,Debit,7.72,amznmktplace,15.06.2019,"Children, Fam"
Nottinghamshire County Council ,Provisions,Debit,95.97,amznmktplace,17.06.2019,"Children, Fam"
Nottinghamshire County Council ,Provisions,Debit,27.98,amznmktplace,17.06.2019,"Children, Fam"
Nottinghamshire County Council ,Provisions,Debit,6.73,heron foods ltd,18.06.2019,"Children, Fam"
Nottinghamshire County Council ,Provisions,Debit,32.14,amazon.co.uk m65ap5gj4 a,20.06.2019,"Children, Fam"
Nottinghamshire County Council ,Provisions,Debit,3,tesco stores 5379,27.06.2019,"Children, Fam"
Nottinghamshire County Council ,Provisions,Debit,7.95,amznmktplace,27.06.2019,"Children, Fam"
Nottinghamshire County Council ,Activities & Support,Debit,17.99,amzn mktp uk mz0471m74,11.04.2019,ASCHPP
Nottinghamshire County Council ,Office / General Equipment,Debit,33.12,amznmktplace,11.04.2019,ASCHPP
Nottinghamshire County Council ,Building Maintenance,Debit,34.38,stapletons lock  safe,11.04.2019,ASCHPP
Nottinghamshire County Council ,Activities & Support,Debit,79,amazon prime mz5mn5mw4,11.04.2019,ASCHPP
Nottinghamshire County Council ,Activities & Support,Debit,23.87,amazon.co.uk mz7ot2vi4,10.04.2019,ASCHPP
Nottinghamshire County Council ,Provisions,Debit,8,w m morrisons.com,09.04.2019,ASCHPP
Nottinghamshire County Council ,Provisions,Debit,87.6,w m morrisons.com,09.04.2019,ASCHPP
Nottinghamshire County Council ,Cleaning Materials,Debit,5,w m morrisons.com,09.04.2019,ASCHPP
Nottinghamshire County Council ,Activities & Support,Debit,159.95,amznmktplace,09.04.2019,ASCHPP
Nottinghamshire County Council ,Cleaning Materials,Debit,7.14,w m morrisons.com,05.04.2019,ASCHPP
Nottinghamshire County Council ,Provisions,Debit,169.12,w m morrisons.com,05.04.2019,ASCHPP
Nottinghamshire County Council ,Building Maintenance,Debit,62.42,seton,05.04.2019,ASCHPP
Nottinghamshire County Council ,Protective Clothing,Debit,26.92,amzn mktp uk mz72d20h4,05.04.2019,ASCHPP
Nottinghamshire County Council ,Clothing/Shoes/Uniforms,Debit,6.95,amznmktplace,04.05.2019,ASCHPP
Nottinghamshire County Council ,Provisions,Debit,106.87,w m morrisons.com,03.05.2019,ASCHPP
Nottinghamshire County Council ,Cleaning Materials,Debit,10.95,amznmktplace,03.05.2019,ASCHPP
Nottinghamshire County Council ,Clothing/Shoes/Uniforms,Debit,6.95,amznmktplace,03.05.2019,ASCHPP
Nottinghamshire County Council ,Cleaning Materials,Debit,27.99,amznmktplace,03.05.2019,ASCHPP
Nottinghamshire County Council ,Stationery,Debit,8.79,amznmktplace,06.05.2019,ASCHPP
Nottinghamshire County Council ,Personal Needs,Debit,11,amznmktplace,06.05.2019,ASCHPP
Nottinghamshire County Council ,Protective Clothing,Debit,4.06,amzn mktp uk mn4i38jx4,06.05.2019,ASCHPP
Nottinghamshire County Council ,Provisions,Debit,59.89,w m morrisons.com,06.05.2019,ASCHPP
Nottinghamshire County Council ,Clothing/Shoes/Uniforms,Debit,27.58,amzn mktp uk mn9ul7t54,07.05.2019,ASCHPP
Nottinghamshire County Council ,Provisions,Debit,80.75,w m morrisons.com,08.05.2019,ASCHPP
Nottinghamshire County Council ,Provisions,Debit,8,w m morrisons.com,09.05.2019,ASCHPP
Nottinghamshire County Council ,Provisions,Debit,136.3,w m morrisons.com,10.05.2019,ASCHPP
Nottinghamshire County Council ,Provisions,Debit,105.77,w m morrisons.com,13.05.2019,ASCHPP
Nottinghamshire County Council ,Building Maintenance,Debit,33.99,top deck trade centre lt,15.05.2019,ASCHPP
Nottinghamshire County Council ,Activities & Support,Debit,37.24,amznmktplace,15.05.2019,ASCHPP
Nottinghamshire County Council ,Cleaning Materials,Debit,8.08,w m morrisons.com,15.05.2019,ASCHPP
Nottinghamshire County Council ,Provisions,Debit,56.61,w m morrisons.com,15.05.2019,ASCHPP
Nottinghamshire County Council ,Provisions,Credi,-3.95,w m morrisons.com,16.05.2019,ASCHPP
Nottinghamshire County Council ,Provisions,Credi,-6.95,amz vivente vivo,18.05.2019,ASCHPP
Nottinghamshire County Council ,Activities & Support,Debit,29.99,amazon.co.uk mz0tv0m24,11.04.2019,ASCHPP
Nottinghamshire County Council ,TV Licences,Debit,19.97,amznmktplace,11.04.2019,ASCHPP
Nottinghamshire County Council ,Office / General Equipment,Debit,6.72,amazon.co.uk mz4dc3bc4,14.04.2019,ASCHPP
Nottinghamshire County Council ,Provisions,Debit,122.7,w m morrisons.com,12.04.2019,ASCHPP
Nottinghamshire County Council ,Staff Training,Debit,160,sensory spectacle,12.04.2019,ASCHPP
Nottinghamshire County Council ,Provisions,Debit,27.96,top deck trade centre lt,12.04.2019,ASCHPP
Nottinghamshire County Council ,Provisions,Debit,108.32,w m morrisons.com,15.04.2019,ASCHPP
Nottinghamshire County Council ,Activities & Support,Credi,-17.99,amz saymac,15.04.2019,ASCHPP
Nottinghamshire County Council ,Activities & Support,Credi,-10,amz amazon.co.uk,16.04.2019,ASCHPP
Nottinghamshire County Council ,Provisions,Debit,71.01,w m morrisons.com,17.04.2019,ASCHPP
Nottinghamshire County Council ,Activities & Support,Credi,-29.99,amz amazon.co.uk,18.04.2019,ASCHPP
Nottinghamshire County Council ,Provisions,Debit,107.19,w m morrisons.com,19.04.2019,ASCHPP
Nottinghamshire County Council ,Provisions,Debit,78.17,w m morrisons.com,22.04.2019,ASCHPP
Nottinghamshire County Council ,Office / General Equipment,Debit,2.74,amazon.co.uk mz41u7uu4 a,24.04.2019,ASCHPP
Nottinghamshire County Council ,Provisions,Debit,49.55,w m morrisons.com,24.04.2019,ASCHPP
Nottinghamshire County Council ,Provisions,Debit,108.05,w m morrisons.com,26.04.2019,ASCHPP
Nottinghamshire County Council ,Provisions,Debit,93.74,w m morrisons.com,29.04.2019,ASCHPP
Nottinghamshire County Council ,Office / General Equipment,Debit,99.34,amazon.co.uk mn1jf4fq4,01.05.2019,ASCHPP
Nottinghamshire County Council ,Provisions,Debit,47.81,w m morrisons.com,01.05.2019,ASCHPP
Nottinghamshire County Council ,Provisions,Credi,-6.95,amz vivente vivo,18.05.2019,ASCHPP
Nottinghamshire County Council ,Provisions,Debit,97.36,w m morrisons.com,17.05.2019,ASCHPP
Nottinghamshire County Council ,Provisions,Debit,91.17,w m morrisons.com,20.05.2019,ASCHPP
Nottinghamshire County Council ,Building Maintenance,Debit,95,worksop van hire,20.05.2019,ASCHPP
Nottinghamshire County Council ,Personal Needs,Debit,23.98,amazon.co.uk mn1i208i4,20.05.2019,ASCHPP
Nottinghamshire County Council ,Personal Needs,Debit,13.29,amznmktplace amazon.co.u,20.05.2019,ASCHPP
Nottinghamshire County Council ,Personal Needs,Debit,7.3,amznmktplace,21.05.2019,ASCHPP
Nottinghamshire County Council ,Provisions,Debit,50.17,w m morrisons.com,22.05.2019,ASCHPP
Nottinghamshire County Council ,Cleaning Materials,Debit,2.8,w m morrisons.com,22.05.2019,ASCHPP
Nottinghamshire County Council ,Provisions,Credi,-40,worksop van hire,22.05.2019,ASCHPP
Nottinghamshire County Council ,Activities & Support,Debit,29.84,amznmktplace,23.05.2019,ASCHPP
Nottinghamshire County Council ,Activities & Support,Debit,2.39,amznmktplace,23.05.2019,ASCHPP
Nottinghamshire County Council ,Activities & Support,Debit,16.9,amznmktplace,24.05.2019,ASCHPP
Nottinghamshire County Council ,Provisions,Debit,130.1,w m morrisons.com,24.05.2019,ASCHPP
Nottinghamshire County Council ,Provisions,Debit,88.08,w m morrisons.com,27.05.2019,ASCHPP
Nottinghamshire County Council ,Catering Equipment,Debit,24,amazon.co.uk mn0ti4734,28.05.2019,ASCHPP
Nottinghamshire County Council ,Clothing/Shoes/Uniforms,Debit,24.18,amzn mktp uk mn1ue79l4 a,28.05.2019,ASCHPP
Nottinghamshire County Council ,Building Maintenance,Debit,18.78,www.plasticsheets.com,30.05.2019,ASCHPP
Nottinghamshire County Council ,Provisions,Debit,117.86,w m morrisons.com,31.05.2019,ASCHPP
Nottinghamshire County Council ,Provisions,Debit,94.36,w m morrisons.com,03.06.2019,ASCHPP
Nottinghamshire County Council ,Cleaning Materials,Debit,15.8,w m morrisons.com,03.06.2019,ASCHPP
Nottinghamshire County Council ,Cleaning & Domestic Equipment,Debit,29,amznmktplace,05.06.2019,ASCHPP
Nottinghamshire County Council ,Provisions,Debit,52.62,w m morrisons.com,05.06.2019,ASCHPP
Nottinghamshire County Council ,Provisions,Debit,8,w m morrisons.com,09.06.2019,ASCHPP
Nottinghamshire County Council ,Provisions,Debit,86.3,w m morrisons.com,07.06.2019,ASCHPP
Nottinghamshire County Council ,Provisions,Debit,101.67,w m morrisons.com,10.06.2019,ASCHPP
Nottinghamshire County Council ,Provisions,Debit,59.56,w m morrisons.com,12.06.2019,ASCHPP
Nottinghamshire County Council ,Protective Clothing,Debit,17.97,amznmktplace,15.06.2019,ASCHPP
Nottinghamshire County Council ,Provisions,Debit,116.57,w m morrisons.com,14.06.2019,ASCHPP
Nottinghamshire County Council ,Provisions,Debit,119.1,w m morrisons.com,17.06.2019,ASCHPP
Nottinghamshire County Council ,Personal Needs,Debit,9.38,amazon.co.uk m67zd3094,17.06.2019,ASCHPP
Nottinghamshire County Council ,Provisions,Debit,132.73,w m morrisons.com,20.06.2019,ASCHPP
Nottinghamshire County Council ,Office / General Equipment,Debit,14.99,amznmktplace,24.06.2019,ASCHPP
Nottinghamshire County Council ,Provisions,Debit,118.59,w m morrisons.com,24.06.2019,ASCHPP
Nottinghamshire County Council ,Provisions,Debit,149.22,easyjet     000excxdt5,24.06.2019,ASCHPP
Nottinghamshire County Council ,Catering Equipment,Debit,34.8,www.ypo.co.uk,03.04.2019,ASCHPP
Nottinghamshire County Council ,Office / General Equipment,Debit,16.74,www.ypo.co.uk,03.04.2019,ASCHPP
Nottinghamshire County Council ,Provisions,Debit,65.6,w m morrisons.com,03.04.2019,ASCHPP
Nottinghamshire County Council ,Building Maintenance,Debit,27.5,amzn mktp uk mz0gq7ah4 a,03.04.2019,ASCHPP
Nottinghamshire County Council ,Activities & Support,Debit,31.54,amz musicmagpiestore,01.04.2019,ASCHPP
Nottinghamshire County Council ,Catering Consumables,Debit,2.99,www.accessplus.co.uk,01.04.2019,ASCHPP
Nottinghamshire County Council ,Provisions,Credi,-149.22,psd - fraud perm. credit,24.06.2019,ASCHPP
Nottinghamshire County Council ,Provisions,Credi,-149.22,psd fraud temp. credit,24.06.2019,ASCHPP
Nottinghamshire County Council ,Long Service Awards,Debit,99,swarovski crystal onli,26.04.2019,ASCHPP
Nottinghamshire County Council ,Provisions,Debit,28.62,asda superstore,24.04.2019,ASCHPP
Nottinghamshire County Council ,Provisions,Debit,49.15,asda superstore,15.04.2019,ASCHPP
Nottinghamshire County Council ,Catering Consumables,Debit,36.7,asda superstore,07.05.2019,ASCHPP
Nottinghamshire County Council ,Catering Consumables,Debit,24,wm morrisons store,08.05.2019,ASCHPP
Nottinghamshire County Council ,Catering Consumables,Debit,22.05,asda superstore,10.05.2019,ASCHPP
Nottinghamshire County Council ,Personal Needs,Debit,9.99,amznmktplace amazon.co.u,15.05.2019,ASCHPP
Nottinghamshire County Council ,Personal Needs,Debit,24.98,amznmktplace amazon.co.u,15.05.2019,ASCHPP
Nottinghamshire County Council ,Catering Consumables,Debit,46.93,asda superstore,29.05.2019,ASCHPP
Nottinghamshire County Council ,Catering Consumables,Debit,11.35,tesco stores 2512,03.06.2019,ASCHPP
Nottinghamshire County Council ,Catering Consumables,Debit,30,pcs first4healthtraini,26.06.2019,ASCHPP
Nottinghamshire County Council ,Other Fees & Services,Debit,7.26,fast key services limi,06.06.2019,"Children, Fam"
Nottinghamshire County Council ,Office / General Equipment,Debit,68.79,amznmktplace,07.06.2019,ASCHPP
Nottinghamshire County Council ,Office / General Equipment,Debit,7.45,amznmktplace,10.06.2019,"Children, Fam"
Nottinghamshire County Council ,Personal Needs,Debit,25.13,amznmktplace,20.06.2019,ASCHPP
Nottinghamshire County Council ,Other Fees & Services,Debit,154.5,tvlicensing.co.uk,25.06.2019,"Children, Fam"
Nottinghamshire County Council ,Books - General,Debit,24.25,amazon.co.uk mz6h51tt4 a,03.04.2019,"Children, Fam"
Nottinghamshire County Council ,Protective Clothing,Debit,22.47,amznmktplace,02.04.2019,ASCHPP
Nottinghamshire County Council ,Computer Equipment,Credi,-21.98,amz bloom store,27.04.2019,ASCHPP
Nottinghamshire County Council ,Furniture,Debit,704,www.ikea.com,15.04.2019,resources
Nottinghamshire County Council ,Security,Debit,19.49,amazon.co.uk mz56j5h44,13.04.2019,Resources
Nottinghamshire County Council ,Computer Equipment,Debit,18.47,amznmktplace amazon.co.u,10.04.2019,ASCHPP
Nottinghamshire County Council ,Computer Equipment,Debit,21.98,amznmktplace,05.04.2019,ASCHPP
Nottinghamshire County Council ,Other Fees & Services,Debit,10.45,amznmktplace,06.04.2019,ASCHPP
Nottinghamshire County Council ,Specialist Equipment,Debit,12.45,amznmktplace amazon.co.u,08.05.2019,ASCHPP
Nottinghamshire County Council ,Activities & Support,Debit,56.98,sportsdirect.com,09.05.2019,"Children, Fam"
Nottinghamshire County Council ,Books - General,Debit,23.61,amazon.co.uk mn5bd1g94,13.05.2019,"Children, Fam"
Nottinghamshire County Council ,Other Fees & Services,Credi,-560,www.ikea.com,15.04.2019,resources
Nottinghamshire County Council ,Office / General Equipment,Debit,298,aslamtex,30.05.2019,ASCHPP
Nottinghamshire County Council ,Leaving Care - Home Establishment Grant,Debit,68.96,amznmktplace amazon.co.u,05.06.2019,"Children, Fam"
Nottinghamshire County Council ,Leaving Care - Home Establishment Grant,Debit,59.99,amznmktplace amazon.co.u,05.06.2019,"Children, Fam"
Nottinghamshire County Council ,Leaving Care - Home Establishment Grant,Debit,30,amznmktplace amazon.co.u,05.06.2019,"Children, Fam"
Nottinghamshire County Council ,Leaving Care - Home Establishment Grant,Debit,81.27,amznmktplace amazon.co.u,05.06.2019,"Children, Fam"
Nottinghamshire County Council ,Leaving Care - Home Establishment Grant,Debit,70.96,amznmktplace amazon.co.u,06.06.2019,"Children, Fam"
Nottinghamshire County Council ,Unplanned Needs and Financial Support,Debit,14.99,tesco stores 2995,13.06.2019,"Children, Fam"
Nottinghamshire County Council ,Contract Catering,Debit,4.18,mcdonalds,14.06.2019,"Children, Fam"
Nottinghamshire County Council ,Housing/Accommodation Financial Support,Debit,433.33,bellvue ltd,17.06.2019,"Children, Fam"
Nottinghamshire County Council ,Unplanned Needs and Financial Support,Debit,3.3,tesco stores 2995,21.06.2019,"Children, Fam"
Nottinghamshire County Council ,Housing/Accommodation Financial Support,Debit,333.33,bellvue ltd,10.05.2019,"Children, Fam"
Nottinghamshire County Council ,Leaving Care - Home Establishment Grant,Debit,190.95,www.argos.co.uk,13.05.2019,"Children, Fam"
Nottinghamshire County Council ,Unplanned Needs and Financial Support,Debit,3.79,mcdonalds,20.05.2019,"Children, Fam"
Nottinghamshire County Council ,Unplanned Needs and Financial Support,Debit,2.9,fulfill vending,20.05.2019,"Children, Fam"
Nottinghamshire County Council ,Contract Catering,Debit,1.79,mcdonalds,24.05.2019,"Children, Fam"
Nottinghamshire County Council ,Contract Catering,Debit,9.56,mcdonalds,24.05.2019,"Children, Fam"
Nottinghamshire County Council ,Clothing And Footwear,Debit,135.05,jd sports 347,24.05.2019,"Children, Fam"
Nottinghamshire County Council ,Leaving Care - Home Establishment Grant,Debit,57.66,amznmktplace amazon.co.u,31.05.2019,"Children, Fam"
Nottinghamshire County Council ,Leaving Care - Home Establishment Grant,Debit,30.75,amznmktplace amazon.co.u,31.05.2019,"Children, Fam"
Nottinghamshire County Council ,Leaving Care - Home Establishment Grant,Debit,33.99,amznmktplace amazon.co.u,03.06.2019,"Children, Fam"
